Service Delivery Area(T),Service Delivery Team(T),CostC,ExpenditureGroup(T),Account(T),Supplier Name(T),Trans Date,Amount,
"Business, Development & Employment","AD - Development, Business & Housing",WDSW,Capital Expenditure,Payments to Contractor,Lovell Partnerships Limited,26/07/2016,"9,157.02",
"Business, Development & Employment","AD - Development, Business & Housing",WDSW,Capital Expenditure,Payments to Contractor,Lovell Partnerships Limited,13/07/2016,"2,733.55",
"Business, Development & Employment","AD - Development, Business & Housing",WDSW,Capital Expenditure,External Professional Fees,PINSENT MASONS LLP,13/07/2016,"3,371.00",
"Business, Development & Employment","AD - Development, Business & Housing",WDSW,Capital Expenditure,Payments to Contractor,Lovell Partnerships Limited,25/07/2016,"4,777.69",
"Business, Development & Employment","AD - Development, Business & Housing",WDSW,Capital Expenditure,External Professional Fees,PINSENT MASONS LLP,13/07/2016,"3,890.00",
"Business, Development & Employment",Development Management & Planning Policy,WDSE,Capital Expenditure,Legal Fees,Browne Jacobson LLP,11/07/2016,450.00,
"Business, Development & Employment",Development Management & Planning Policy,DDAC,Supplies & Services,Advertising,THE MIDLAND NEWS ASSOCIATION LTD,07/07/2016,187.74,
"Business, Development & Employment",Development Management & Planning Policy,DDAC,Supplies & Services,Advertising,THE MIDLAND NEWS ASSOCIATION LTD,21/07/2016,295.02,
"Business, Development & Employment",Development Management & Planning Policy,EWAJ,Supplies & Services,Advertising,THE MIDLAND NEWS ASSOCIATION LTD,06/07/2016,126.00,
"Business, Development & Employment",Development Management & Planning Policy,DDAC,Supplies & Services,Advertising,THE MIDLAND NEWS ASSOCIATION LTD,15/07/2016,295.02,
"Business, Development & Employment",Development Management & Planning Policy,DDAC,Supplies & Services,Legal Expenses,MEETING POINT TRUST LTD,27/07/2016,101.6,
"Business, Development & Employment",Development Management & Planning Policy,DDAK,Supplies & Services,Consultants Fees,IRONBRIDGE GORGE MUSEUM TRUST LTD,27/07/2016,"9,224.65",
"Business, Development & Employment",Development Management & Planning Policy,EWAJ,Supplies & Services,Research Surveys,Peter Brett Associates LLP,18/07/2016,-4578.42,
"Business, Development & Employment",Development Management & Planning Policy,EWAJ,Supplies & Services,Research Surveys,Peter Brett Associates LLP,13/07/2016,"1,222.50",
"Business, Development & Employment",Development Management & Planning Policy,DDAC,Supplies & Services,Legal Expenses,REDACTED PERSONAL INFORMATION ,07/07/2016,300.00,
"Business, Development & Employment",Development Management & Planning Policy,EWAJ,Supplies & Services,Research Surveys,Peter Brett Associates LLP,21/07/2016,"4,578.42",
"Business, Development & Employment",Development Management & Planning Policy,DDBD,Supplies & Services,Research Surveys,Trust Ecology,11/07/2016,"2,055.00",
"Business, Development & Employment",Estates & Investment,WCAJ,Capital Expenditure,Payments to Contractor,BEA Landscap Design Ltd,13/07/2016,"1,200.00",
"Business, Development & Employment",Estates & Investment,WCAJ,Capital Expenditure,Payments to Contractor,NOBRIDGE LTD,20/07/2016,235.00,
"Business, Development & Employment",Estates & Investment,WHCA,Capital Expenditure,Site Investigation,SIMPLY ECOLOGY,15/07/2016,500.00,
"Business, Development & Employment",Estates & Investment,WCAJ,Capital Expenditure,Payments to Contractor,EEC - Environment Equipment Corporation Ltd,20/07/2016,"1,600.00",
"Business, Development & Employment",Estates & Investment,WCAJ,Capital Expenditure,Payments to Contractor,Morris Property Ltd,07/07/2016,"306,930.16",
"Business, Development & Employment",Estates & Investment,WCAJ,Capital Expenditure,Payments to Contractor,REDACTED PERSONAL INFORMATION ,15/07/2016,400.00,
"Business, Development & Employment",Estates & Investment,WCAJ,Capital Expenditure,External Professional Fees,PINSENT MASONS LLP,12/07/2016,"1,067.83",
"Business, Development & Employment",Estates & Investment,WCAJ,Capital Expenditure,Payments to Contractor,Beacon Transport Planning,13/07/2016,"1,950.00",
"Business, Development & Employment",Estates & Investment,WCAJ,Capital Expenditure,Payments to Contractor,BEA Landscap Design Ltd,13/07/2016,"4,650.00",
"Business, Development & Employment",Estates & Investment,WCAJ,Capital Expenditure,Payments to Contractor,Crossfield Consulting Ltd,25/07/2016,"4,333.25",
"Business, Development & Employment",Estates & Investment,WCCA,Capital Expenditure,Payments to Contractor,TDR Heating & Ventilation Engineers,20/07/2016,"7,574.94",
"Business, Development & Employment",Estates & Investment,WHCA,Capital Expenditure,External Professional Fees,AECOM INFRASTRUCTURE & ENVIRONMENT UK LTD,20/07/2016,"4,064.62",
"Business, Development & Employment",Estates & Investment,WHCA,Capital Expenditure,External Professional Fees,Knight Webb Ltd,11/07/2016,900.00,
"Business, Development & Employment",Estates & Investment,WCCA,Capital Expenditure,Payments to Contractor,MCPHILLIPS (WELLINGTON) LTD,13/07/2016,"34,067.25",
"Business, Development & Employment",Estates & Investment,WHCA,Capital Expenditure,Site Investigation,SIMPLY ECOLOGY,15/07/2016,500.00,
"Business, Development & Employment",Estates & Investment,WCAJ,Capital Expenditure,Payments to Contractor,Design Development Partnership,25/07/2016,"32,500.00",
"Business, Development & Employment",Estates & Investment,WHCA,Capital Expenditure,Site Investigation,SHROPSHIRE WILDLIFE SURVEYS,21/07/2016,300,
"Business, Development & Employment",Estates & Investment,WCAJ,Capital Expenditure,Payments to Contractor,HOARE LEA CONSULTING ENGINEERS,19/07/2016,"1,800.00",
"Business, Development & Employment",Estates & Investment,WCAJ,Capital Expenditure,Legal Fees,PINSENT MASONS LLP,29/07/2016,"4,927.50",
"Business, Development & Employment",Estates & Investment,WCAJ,Capital Expenditure,External Professional Fees,PINSENT MASONS LLP,12/07/2016,"3,055.00",
"Business, Development & Employment",Estates & Investment,WCAJ,Capital Expenditure,Payments to Contractor,Whiting Landscape Ltd,25/07/2016,"3,150.00",
"Business, Development & Employment",Estates & Investment,WCAJ,Capital Expenditure,Payments to Contractor,PAVE AWAYS LTD,07/07/2016,"202,065.51",
"Business, Development & Employment",Estates & Investment,WCAJ,Capital Expenditure,Payments to Contractor,Morris Property Ltd,07/07/2016,"282,799.15",
"Business, Development & Employment",Estates & Investment,WCAJ,Capital Expenditure,External Professional Fees,PINSENT MASONS LLP,13/07/2016,"5,048.00",
"Business, Development & Employment",Estates & Investment,WCAJ,Capital Expenditure,Payments to Contractor,Hinton Properties,28/07/2016,"27,666.68",
"Business, Development & Employment",Estates & Investment,CEAH,Premises-Related Expenditure,Dilapidations,GRANVILLE CONSTRUCTION & MAINTENANCE LTD,13/07/2016,"1,139.00",
"Business, Development & Employment",Estates & Investment,CEAN,Premises-Related Expenditure,Electricity,West Mercia Energy (WME),18/07/2016,178.94,
"Business, Development & Employment",Estates & Investment,CEAN,Premises-Related Expenditure,Electricity,West Mercia Energy (WME),18/07/2016,126.22,
"Business, Development & Employment",Estates & Investment,CEAN,Premises-Related Expenditure,R&M -Building Other,VEOLIA ES (UK) LTD,07/07/2016,186.77,
"Business, Development & Employment",Estates & Investment,CEAH,Premises-Related Expenditure,R&M -Building Other,COOPER & WILLIAMS LTD,20/07/2016,"2,460.00",
"Business, Development & Employment",Estates & Investment,CEAN,Premises-Related Expenditure,R&M -Building Other,JCE & SONS LTD,25/07/2016,184.42,
"Business, Development & Employment",Estates & Investment,CEAE,Premises-Related Expenditure,Electricity,West Mercia Energy (WME),01/07/2016,463.25,
"Business, Development & Employment",Estates & Investment,CEAN,Premises-Related Expenditure,Electricity,West Mercia Energy (WME),13/07/2016,223.08,
"Business, Development & Employment",Estates & Investment,CEAN,Premises-Related Expenditure,Electricity,SCOTTISH & SOUTHERN ENERGY,07/07/2016,172.94,
"Business, Development & Employment",Estates & Investment,CEAE,Premises-Related Expenditure,Electricity,West Mercia Energy (WME),01/07/2016,341.06,
"Business, Development & Employment",Estates & Investment,CEAH,Premises-Related Expenditure,R&M -Building Other,JCE & SONS LTD,20/07/2016,329.2,
"Business, Development & Employment",Estates & Investment,CEAH,Premises-Related Expenditure,R&M -Building Other,COOPER & WILLIAMS LTD,20/07/2016,1660,
"Business, Development & Employment",Estates & Investment,CEAH,Premises-Related Expenditure,Gas,E.ON,20/07/2016,263.65,
"Business, Development & Employment",Estates & Investment,CEAH,Premises-Related Expenditure,Dilapidations,GRANVILLE CONSTRUCTION & MAINTENANCE LTD,13/07/2016,"1,020.00",
"Business, Development & Employment",Estates & Investment,CEAH,Premises-Related Expenditure,Dilapidations,DOOR LOADING SERVICES UK LTD,07/07/2016,200.00,
"Business, Development & Employment",Estates & Investment,CEAE,Premises-Related Expenditure,R&M -Building Other,GRA-BERN,19/07/2016,"2,155.00",
"Business, Development & Employment",Estates & Investment,CEAH,Premises-Related Expenditure,R&M -Building Other,DOOR LOADING SERVICES UK LTD,22/07/2016,1900,
"Business, Development & Employment",Estates & Investment,CEAE,Premises-Related Expenditure,Gas,West Mercia Energy (WME),18/07/2016,391.46,
"Business, Development & Employment",Estates & Investment,CEAE,Premises-Related Expenditure,Gas,West Mercia Energy (WME),04/07/2016,302.10,
"Business, Development & Employment",Estates & Investment,CEAN,Premises-Related Expenditure,Gas,BRITISH GAS BUSINESS,07/07/2016,299.95,
"Business, Development & Employment",Estates & Investment,CEAN,Premises-Related Expenditure,Gas,E.ON,04/07/2016,379.66,
"Business, Development & Employment",Estates & Investment,CEAN,Premises-Related Expenditure,R&M -Building Other,RCS ROOFING CONSTRUCTION SERVICES LTD,21/07/2016,572.08,
"Business, Development & Employment",Estates & Investment,CEAE,Premises-Related Expenditure,R&M -Building Other,COOPER & WILLIAMS LTD,20/07/2016,180.00,
"Business, Development & Employment",Estates & Investment,CEAE,Premises-Related Expenditure,R&M -Building Other,COOPER & WILLIAMS LTD,20/07/2016,645.00,
"Business, Development & Employment",Estates & Investment,CEAE,Premises-Related Expenditure,R&M -Building Other,WINDOW & DOOR CONTRACT SERVICES,20/07/2016,"5,897.32",
"Business, Development & Employment",Estates & Investment,CEAN,Premises-Related Expenditure,R&M -Building Other,HYDRO-TECH ENVIRONMENTAL LLP,25/07/2016,150.00,
"Business, Development & Employment",Estates & Investment,CEAH,Premises-Related Expenditure,R&M -Building Other,JCE & SONS LTD,25/07/2016,"1,308.50",
"Business, Development & Employment",Estates & Investment,CEAN,Income,Service Charges,THE WREKIN HOUSING TRUST (INVOICES ONLY),05/07/2016,639.51,
"Business, Development & Employment",Estates & Investment,CEAN,Premises-Related Expenditure,Electricity,TOTAL GAS & POWER LIMITED,29/07/2016,915.72,
"Business, Development & Employment",Estates & Investment,CEAN,Premises-Related Expenditure,Electricity,TOTAL GAS & POWER LIMITED,14/07/2016,659.34,
"Business, Development & Employment",Estates & Investment,CEAN,Premises-Related Expenditure,Electricity,TOTAL GAS & POWER LIMITED,14/07/2016,-926.04,
"Business, Development & Employment",Estates & Investment,CEAJ,Income,Fees & Charges General,AON LTD,21/07/2016,139.00,
"Business, Development & Employment",Estates & Investment,CEAJ,Income,Fees & Charges General,AON LTD,07/07/2016,126.94,
"Business, Development & Employment",Estates & Investment,CBAU,Income,Other Receipts,NUPLACE LTD,25/07/2016,150.00,
"Business, Development & Employment",Estates & Investment,CBAU,Income,Other Receipts,NUPLACE LTD,25/07/2016,"1,137.42",
"Business, Development & Employment",Estates & Investment,CBAU,Income,Other Receipts,NUPLACE LTD,25/07/2016,150.00,
"Business, Development & Employment",Estates & Investment,CBAU,Income,Other Receipts,NUPLACE LTD,11/07/2016,"1,590.00",
"Business, Development & Employment",Estates & Investment,CBAU,Income,Other Receipts,NUPLACE LTD,11/07/2016,"1,425.00",
"Business, Development & Employment",Estates & Investment,CEAH,Premises-Related Expenditure,Electricity,NPOWER ELECTRICITY,26/07/2016,701.62,
"Business, Development & Employment",Estates & Investment,CEAE,Premises-Related Expenditure,Electricity,West Mercia Energy (WME),18/07/2016,305.52,
"Business, Development & Employment",Estates & Investment,CEAH,Premises-Related Expenditure,Electricity,NPOWER ELECTRICITY,28/07/2016,138.84,
"Business, Development & Employment",Estates & Investment,CEAV,Premises-Related Expenditure,Electricity,West Mercia Energy (WME),29/07/2016,2453.08,
"Business, Development & Employment",Estates & Investment,CEAH,Premises-Related Expenditure,Electricity,SCOTTISH & SOUTHERN ENERGY,20/07/2016,167.12,
"Business, Development & Employment",Estates & Investment,CEAE,Premises-Related Expenditure,Electricity,West Mercia Energy (WME),18/07/2016,372.93,
"Business, Development & Employment",Estates & Investment,CEAN,Premises-Related Expenditure,Electricity,BRITISH GAS BUSINESS ELEC,19/07/2016,334.16,
"Business, Development & Employment",Estates & Investment,CEAN,Premises-Related Expenditure,Electricity,BRITISH GAS BUSINESS,19/07/2016,"5,160.40",
"Business, Development & Employment",Estates & Investment,CEAN,Premises-Related Expenditure,Electricity,West Mercia Energy (WME),18/07/2016,163.93,
"Business, Development & Employment",Estates & Investment,CEAE,Premises-Related Expenditure,Electricity,West Mercia Energy (WME),18/07/2016,215.76,
"Business, Development & Employment",Estates & Investment,CEAE,Supplies & Services,Telephones,VIRGIN MEDIA BUSINESS LTD (20119162),25/07/2016,340.65,
"Business, Development & Employment",Estates & Investment,CEAE,Supplies & Services,Telephones,MIDLAND TML,21/07/2016,721.88,
"Business, Development & Employment",Estates & Investment,CEAE,Supplies & Services,Telephones,MIDLAND TML,07/07/2016,626.84,
"Business, Development & Employment",Estates & Investment,CEAN,Premises-Related Expenditure,R&M -Building Other,George Birchall Limited,13/07/2016,"1,210.53",
"Business, Development & Employment",Estates & Investment,CEAL,Supplies & Services,Application Software Maint,PHOENIX SOFTWARE LTD,25/07/2016,336.03,
"Business, Development & Employment",Estates & Investment,CEAV,Premises-Related Expenditure,R&M -Building Other,HYDRO-TECH ENVIRONMENTAL LLP,12/07/2016,240.00,
"Business, Development & Employment",Estates & Investment,CEAN,Premises-Related Expenditure,Electricity,TOTAL GAS & POWER LIMITED,29/07/2016,"-1,526.33",
"Business, Development & Employment",Estates & Investment,CEAN,Premises-Related Expenditure,Water Rates,SEVERN TRENT WATER LTD,12/07/2016,"2,050.98",
"Business, Development & Employment",Estates & Investment,CEAN,Premises-Related Expenditure,R&M -Buildings DLO Charge,HYDRO-TECH ENVIRONMENTAL LLP,07/07/2016,150.00,
"Business, Development & Employment",Estates & Investment,CEAH,Premises-Related Expenditure,R&M -Building Other,DOOR LOADING SERVICES UK LTD,22/07/2016,"2,100.00",
"Business, Development & Employment",Estates & Investment,CEAH,Premises-Related Expenditure,R&M -Building Other,DOOR LOADING SERVICES UK LTD,14/07/2016,450.00,
"Business, Development & Employment",Estates & Investment,CEAV,Premises-Related Expenditure,R&M -Building Other,Lift Source (UK) Limited,15/07/2016,710,
"Business, Development & Employment",Estates & Investment,CEAH,Premises-Related Expenditure,R&M WC Planned,WREKIN DRAIN SERVICES LTD,21/07/2016,255,
"Business, Development & Employment",Estates & Investment,CEAN,Premises-Related Expenditure,R&M WC Planned,JONES & HAMPTON LTD,20/07/2016,135.28,
"Business, Development & Employment",Estates & Investment,CEAN,Premises-Related Expenditure,R&M -SCC Planned,JONES & HAMPTON LTD,20/07/2016,544.21,
"Business, Development & Employment",Estates & Investment,CEAN,Premises-Related Expenditure,R&M -SCC Planned,WREKIN DRAIN SERVICES LTD,20/07/2016,620.00,
"Business, Development & Employment",Estates & Investment,CEAV,Premises-Related Expenditure,R&M -Building Other,Lift Source (UK) Limited,15/07/2016,"1,348.75",
"Business, Development & Employment",Estates & Investment,CEAN,Premises-Related Expenditure,R&M -SCC Planned,WREKIN DRAIN SERVICES LTD,14/07/2016,"2,585.00",
"Business, Development & Employment",Estates & Investment,CEAN,Premises-Related Expenditure,R&M -SCC Planned,ELITE PUMPING SERVICES LIMITED,14/07/2016,705.00,
"Business, Development & Employment",Estates & Investment,CEAV,Premises-Related Expenditure,R&M -Building Other,TURNER ENGINE POWERED SERVICES LTD,15/07/2016,130.00,
"Business, Development & Employment",Estates & Investment,CEAN,Premises-Related Expenditure,Water Rates,SEVERN TRENT WATER LTD,11/07/2016,721.98,
"Business, Development & Employment",Estates & Investment,CEAE,Premises-Related Expenditure,Gas,West Mercia Energy (WME),18/07/2016,282.06,
"Business, Development & Employment",Estates & Investment,CEAN,Premises-Related Expenditure,Fire Alarms & Emergency Light,SECURITY WISE LTD,20/07/2016,438.00,
"Business, Development & Employment",Estates & Investment,CEAN,Premises-Related Expenditure,R&M -SCC Planned,REDACTED PERSONAL INFORMATION ,20/07/2016,715.50,
"Business, Development & Employment",Estates & Investment,CEAH,Premises-Related Expenditure,Water Rates,SEVERN TRENT WATER LTD,22/07/2016,107.78,
"Business, Development & Employment",Estates & Investment,CEAN,Premises-Related Expenditure,Water Rates,SEVERN TRENT WATER LTD,19/07/2016,611.26,
"Business, Development & Employment",Estates & Investment,CEAN,Premises-Related Expenditure,Water Rates,SEVERN TRENT WATER LTD,21/07/2016,113.29,
"Business, Development & Employment",Estates & Investment,CEAN,Premises-Related Expenditure,Water Rates,SEVERN TRENT WATER LTD,25/07/2016,"1,669.24",
"Business, Development & Employment",Estates & Investment,CEAN,Premises-Related Expenditure,Fire Alarms & Emergency Light,VANGUARD ALARMS LIMITED,14/07/2016,162.36,
"Business, Development & Employment",Estates & Investment,CEAN,Premises-Related Expenditure,Planned Repairs,RCS ROOFING CONSTRUCTION SERVICES LTD,20/07/2016,537.60,
"Business, Development & Employment",Estates & Investment,CEAV,Premises-Related Expenditure,R&M -Building Other,Churches Fire Security Ltd,15/07/2016,245.00,
"Business, Development & Employment",Estates & Investment,CEAN,Premises-Related Expenditure,Service Contracts,Bulleys,21/07/2016,"5,533.61",
"Business, Development & Employment",Estates & Investment,CEAH,Premises-Related Expenditure,Contract Cleaning,Telford and Shropshire Carpet Cleaning,14/07/2016,225.12,
"Business, Development & Employment",Estates & Investment,CEAN,Premises-Related Expenditure,Grounds Maintenance - L&CS,JCE & SONS LTD,26/07/2016,"1,186.38",
"Business, Development & Employment",Estates & Investment,CEAH,Supplies & Services,Consultants Fees,JOHNSON FELLOWS,20/07/2016,"2,125.00",
"Business, Development & Employment",Estates & Investment,CEAN,Premises-Related Expenditure,Window Cleaning,Clearstone Solutions Ltd,08/07/2016,180.00,
"Business, Development & Employment",Estates & Investment,CEAN,Premises-Related Expenditure,Grounds Maintenance - L&CS,FCC Environment Services (UK) Ltd,11/07/2016,"8,640.00",
"Business, Development & Employment",Estates & Investment,CEAN,Premises-Related Expenditure,Grounds Maintenance - L&CS,RMF LANDSCAPING LTD,07/07/2016,258.60,
"Business, Development & Employment",Estates & Investment,CEAV,Premises-Related Expenditure,Building Cleaning DSO,FCC Recycling (UK) Ltd,12/07/2016,103.44,
"Business, Development & Employment",Estates & Investment,CEAH,Income,Rents - General,SIMMONS STEIN,29/07/2016,"10,100.00",
"Business, Development & Employment",Estates & Investment,CEAN,Premises-Related Expenditure,Grounds Maintenance - L&CS,RMF LANDSCAPING LTD,07/07/2016,392.62,
"Business, Development & Employment",Estates & Investment,CEAN,Supplies & Services,Security Services,FCC Environment Services (UK) Ltd,11/07/2016,"7,906.33",
"Business, Development & Employment",Estates & Investment,CEAN,Supplies & Services,Security Services,BUSINESS WATCH GUARDING LIMITED,11/07/2016,349.81,
"Business, Development & Employment",Estates & Investment,CEAN,Supplies & Services,Security Services,VANGUARD ALARMS LIMITED,28/07/2016,260.10,
"Business, Development & Employment",Estates & Investment,CEAN,Supplies & Services,Security Services,BUSINESS WATCH GUARDING LIMITED,26/07/2016,709.10,
"Business, Development & Employment",Estates & Investment,CEAV,Supplies & Services,Security Services,BUSINESS WATCH GUARDING LIMITED,15/07/2016,346.59,
"Business, Development & Employment",Estates & Investment,CEAV,Premises-Related Expenditure,Insurance Loss Over 250,Vortex Cleaning,12/07/2016,950.00,
"Business, Development & Employment",Estates & Investment,CEAV,Premises-Related Expenditure,Insurance Loss Over 250,PP ELECTRICAL SERVICES (Shropshire) Ltd,22/07/2016,"10,295.00",
"Business, Development & Employment",Estates & Investment,CEAV,Supplies & Services,Other Services,Jade Security Service Ltd,15/07/2016,402.00,
"Business, Development & Employment",Inward Investment & Business Support,AEAJ,Supplies & Services,Business Sector Development,SIGNS EXPRESS (TELFORD),04/07/2016,330.72,
"Business, Development & Employment",Inward Investment & Business Support,AEAJ,Supplies & Services,Web Services,Alcium Software Ltd,15/07/2016,"2,020.25",
"Business, Development & Employment",Inward Investment & Business Support,AEAB,Supplies & Services,Contribution from Balances,Fran Raybould Associates,07/07/2016,"2,000.00",
"Business, Development & Employment",Inward Investment & Business Support,AEAB,Supplies & Services,Contribution from Balances,Fran Raybould Associates,07/07/2016,"1,000.00",
"Business, Development & Employment",Inward Investment & Business Support,AEAB,Supplies & Services,Contribution from Balances,Fran Raybould Associates,07/07/2016,500.00,
"Business, Development & Employment",Inward Investment & Business Support,AHAF,Supplies & Services,Other Grants (Expenses),Good2Great Ltd,07/07/2016,385.00,
"Business, Development & Employment",Inward Investment & Business Support,AEAD,Supplies & Services,Web Services,Fran Raybould Associates,07/07/2016,"1,000.00",
"Business, Development & Employment",Inward Investment & Business Support,AHAF,Supplies & Services,Other Grants (Expenses),Good2Great Ltd,15/07/2016,385.00,
"Business, Development & Employment",Inward Investment & Business Support,AHAF,Supplies & Services,Other Grants (Expenses),Good2Great Ltd,15/07/2016,"1,827.00",
"Business, Development & Employment",Inward Investment & Business Support,DHBD,Premises-Related Expenditure,Hire Of Rooms,UNIVERSITY OF WOLVERHAMPTON,07/07/2016,210.00,
"Business, Development & Employment",Inward Investment & Business Support,DSAE,Employees,Other Employee Costs,MARTIN KAYE,15/07/2016,291.67,
"Business, Development & Employment",Skills,ALAA,Supplies & Services,Exam Fees,NCFE,11/07/2016,556.50,
"Business, Development & Employment",Skills,ALAG,Supplies & Services,Registration / Licence Fees,CogniSoft Limited,06/07/2016,"1,120.00",
"Business, Development & Employment",Skills,ALAG,Supplies & Services,Registration / Licence Fees,CogniSoft Limited,06/07/2016,"7,500.00",
"Business, Development & Employment",Skills,ALAA,Third Party Payments,Childminders,CHILDCARE SOS,20/07/2016,341.60,
"Business, Development & Employment",Skills,ALAB,Supplies & Services,Sub Contractors,RELATE SHROPSHIRE & HEREFORDSHIRE LTD,20/07/2016,"1,200.00",
"Business, Development & Employment",Skills,ALAR,Supplies & Services,Other Grants (Expenses),BUTTERFLIES DAY NURSERY,29/07/2016,250.00,
"Business, Development & Employment",Skills,ALAR,Supplies & Services,Other Grants (Expenses),Getac UK LTD,29/07/2016,250.00,
"Business, Development & Employment",Skills,ALAR,Supplies & Services,Other Grants (Expenses),Stage and Studios Services Limited,27/07/2016,250.00,
"Business, Development & Employment",Skills,ALAB,Supplies & Services,Sub Contractors,RELATE SHROPSHIRE & HEREFORDSHIRE LTD,20/07/2016,"1,350.00",
"Business, Development & Employment",Skills,ALAR,Supplies & Services,Other Grants (Expenses),Hilton & Co Accountants,11/07/2016,375.00,
"Business, Development & Employment",Skills,ALAB,Supplies & Services,Sub Contractors,RELATE SHROPSHIRE & HEREFORDSHIRE LTD,20/07/2016,900.00,
"Business, Development & Employment",Skills,ALAC,Supplies & Services,Sub Contractors,RELATE SHROPSHIRE & HEREFORDSHIRE LTD,04/07/2016,625.00,
"Business, Development & Employment",Skills,ALAA,Supplies & Services,Exam Fees,NCFE,04/07/2016,228.50,
"Business, Development & Employment",Skills,ALAA,Third Party Payments,Childminders,CHILDCARE SOS,20/07/2016,237.90,
"Business, Development & Employment",Skills,ALAA,Third Party Payments,Childminders,CHILDCARE SOS,20/07/2016,"1,342.00",
"Business, Development & Employment",Skills,ALAA,Third Party Payments,Childminders,CHILDCARE SOS,20/07/2016,"1,018.70",
"Business, Development & Employment",Skills,KSAX,Third Party Payments,Agency Services,TELFORD COLLEGE OF ARTS & TECHNOLOGY,15/07/2016,"-4,324.35",
"Business, Development & Employment",Skills,ALAG,Employees,Course Fees,Always Consult Ltd,11/07/2016,"1,650.00",
"Business, Development & Employment",Skills,ALAB,Employees,Staff Training,Shropshire Mindfulness Ltd,26/07/2016,"1,800.00",
"Business, Development & Employment",Skills,ALAA,Premises-Related Expenditure,Hire Of Rooms,PARK LANE CENTRE,19/07/2016,625.00,
"Business, Development & Employment",Skills,ALAF,Premises-Related Expenditure,Hire Of Rooms,MEETING POINT TRUST LTD,19/07/2016,254.00,
"Business, Development & Employment",Skills,KSAW,Third Party Payments,Agency Services,YOUNG OPTIONS COLLEGE LTD,25/07/2016,26975.24,
"Business, Development & Employment",Skills,KSAX,Third Party Payments,Agency Services,STAFF SELECT LTD T/A NOVA TRAINING LTD,06/07/2016,9154.8,
"Business, Development & Employment",Skills,ALAC,Premises-Related Expenditure,Hire Of Rooms,HADLEY & LEEGOMERY PARISH COUNCIL,22/07/2016,370.50,
Children's Safeguarding,Child Protection & Assessment,JMAD,Transport-Related Expenditure,Taxi Costs,Wrixon Care Escorts and Outreach,18/07/2016,"1,607.50",
Children's Safeguarding,Child Protection & Family Support,JMAE,Supplies & Services,Other Services,LIVING SPRINGS FAMILY CENTRE,24/07/2016,"11,367.75",
Children's Safeguarding,Child Protection & Family Support,JMAE,Supplies & Services,Other Services,Keys Group (Malvern Achievement Services Ltd),29/07/2016,2859.99,
Children's Safeguarding,Child Protection & Family Support,JMAE,Supplies & Services,Other Services,Keys Group (Malvern Achievement Services Ltd),29/07/2016,"11,505.68",
Children's Safeguarding,Child Protection & Family Support,JMAE,Supplies & Services,Other Services,Keys Group (Malvern Achievement Services Ltd),29/07/2016,"9,685.71",
Children's Safeguarding,Child Protection & Family Support,JMAE,Supplies & Services,Other Services,Keys Group (Malvern Achievement Services Ltd),29/07/2016,"10,008.57",
Children's Safeguarding,Child Protection & Family Support,JMAE,Supplies & Services,Other Services,FORENSIC PSYCHOLOGY PRACTICE,24/07/2016,1235,
Children's Safeguarding,Child Protection & Family Support,JMAE,Supplies & Services,Other Services,LIVING SPRINGS FAMILY CENTRE,24/07/2016,5990,
Children's Safeguarding,Child Protection & Family Support,JMAE,Supplies & Services,Other Services,ALPHA BIOLABORATORIES LIMITED,24/07/2016,"1,015.00",
Children's Safeguarding,Child Protection & Family Support,JMAE,Supplies & Services,Other Services,ALPHA BIOLABORATORIES LIMITED,24/07/2016,109.00,
Children's Safeguarding,Child Protection & Family Support,JBAD,Supplies & Services,Translation Services,Midlands Transcription Services,18/07/2016,249.20,
Children's Safeguarding,Child Protection & Family Support,JMAE,Supplies & Services,Other Services,ALPHA BIOLABORATORIES LIMITED,24/07/2016,660.00,
Children's Safeguarding,Child Protection & Family Support,JBAH,Premises-Related Expenditure,Minor Alterations,JCE & SONS LTD,13/07/2016,"2,900.00",
Children's Safeguarding,Child Protection & Family Support,JMAE,Supplies & Services,Other Services,CARTER BROWN LIMITED,24/07/2016,740.47,
Children's Safeguarding,Child Protection & Family Support,JMAE,Supplies & Services,Other Services,LIVING SPRINGS FAMILY CENTRE,24/07/2016,"1,051.80",
Children's Safeguarding,Child Protection & Family Support,JMAE,Supplies & Services,Other Services,NEWSTART NETWORKS CIC,24/07/2016,"1,562.00",
Children's Safeguarding,Child Protection & Family Support,JMAE,Supplies & Services,Other Services,Shrewsbury Psychology Centre ltd,24/07/2016,927.00,
Children's Safeguarding,Child Protection & Family Support,JMAE,Supplies & Services,Other Services,DMR Services Ltd,24/07/2016,"1,008.00",
Children's Safeguarding,Child Protection & Family Support,JMAE,Supplies & Services,Other Services,Keys Group (Malvern Achievement Services Ltd),24/07/2016,"1,291.40",
Children's Safeguarding,Child Protection & Family Support,JMAE,Supplies & Services,Other Services,DMR Services Ltd,24/07/2016,"1,464.75",
Children's Safeguarding,Child Protection & Family Support,JMAE,Supplies & Services,Other Services,Shrewsbury Psychology Centre ltd,24/07/2016,"1,432.00",
Children's Safeguarding,Child Protection & Family Support,JMAE,Supplies & Services,Other Services,DMR Services Ltd,24/07/2016,"1,354.50",
Children's Safeguarding,Child Protection & Family Support,JBAF,Supplies & Services,Supportive Lodgings,Direct Health Homecare Limited,18/07/2016,156.00,
Children's Safeguarding,Child Protection & Family Support,JBAF,Supplies & Services,Supportive Lodgings,Direct Health Homecare Limited,18/07/2016,312.00,
Children's Safeguarding,Child Protection & Family Support,JBAF,Supplies & Services,Supportive Lodgings,Direct Health Homecare Limited,18/07/2016,364.00,
Children's Safeguarding,Child Protection & Family Support,JBAF,Supplies & Services,Supportive Lodgings,Direct Health Homecare Limited,18/07/2016,312.00,
Children's Safeguarding,Child Protection & Family Support,JBAF,Supplies & Services,Supportive Lodgings,Direct Health Homecare Limited,18/07/2016,286.00,
Children's Safeguarding,Child Protection & Family Support,JMAE,Supplies & Services,Other Services,ELMHURST PSYCHOLOGY LTD,24/07/2016,683.00,
Children's Safeguarding,Child Protection & Family Support,JMAE,Supplies & Services,Other Services,ALPHA BIOLABORATORIES LIMITED,24/07/2016,"1,315.00",
Children's Safeguarding,Child Protection & Family Support,JBAD,Supplies & Services,Legal Expenses,Thornes The Solicitors,18/07/2016,"1,207.65",
Children's Safeguarding,Child Protection & Family Support,JMAE,Supplies & Services,Other Services,DMR Services Ltd,24/07/2016,"4,512.00",
Children's Safeguarding,Child Protection & Family Support,JMAE,Supplies & Services,Other Services,DMR Services Ltd,24/07/2016,"2,345.00",
Children's Safeguarding,Child Protection & Family Support,JMAE,Supplies & Services,Other Services,WILCOX PSYCHOLOGICAL ASSOCIATES LTD,24/07/2016,"1,425.00",
Children's Safeguarding,Child Protection & Family Support,JBAE,Supplies & Services,Section 17 Childrens Act,Direct Health Homecare Limited,29/07/2016,307.97,
Children's Safeguarding,Child Protection & Family Support,JBAG,Third Party Payments,Childminders,HONEYBUNS NURSERIES,24/07/2016,214.65,
Children's Safeguarding,Child Protection & Family Support,JMAA,Supplies & Services,Legal,REDACTED PERSONAL INFORMATION ,29/07/2016,650.00,
Children's Safeguarding,Child Protection & Family Support,JMAA,Supplies & Services,Legal,REDACTED PERSONAL INFORMATION ,24/07/2016,600.00,
Children's Safeguarding,Child Protection & Family Support,JMAE,Supplies & Services,Other Services,Keys Group (Malvern Achievement Services Ltd),29/07/2016,"9,685.71",
Children's Safeguarding,Child Protection & Family Support,JBAG,Third Party Payments,Childminders,HONEYBUNS NURSERIES,24/07/2016,190.80,
Children's Safeguarding,Child Protection & Family Support,JMAA,Supplies & Services,Legal,REDACTED PERSONAL INFORMATION ,24/07/2016,650.00,
Children's Safeguarding,Child Protection & Family Support,JMAE,Supplies & Services,Other Services,REDACTED PERSONAL INFORMATION ,29/07/2016,"10,917.35",
Children's Safeguarding,Child Protection & Family Support,JMAE,Supplies & Services,Other Services,Somek & Associates Ltd,29/07/2016,263.70,
Children's Safeguarding,Child Protection & Family Support,JMAE,Supplies & Services,Other Services,The Child Psychology Service CIC,29/07/2016,360.00,
Children's Safeguarding,Child Protection & Family Support,JPAH,Supplies & Services,Other Services,Caritas Care Limited,29/07/2016,"14,333.00",
Children's Safeguarding,Child Protection & Family Support,JMAA,Supplies & Services,Legal,REDACTED PERSONAL INFORMATION ,24/07/2016,750.00,
Children's Safeguarding,Child Protection & Family Support,JMAE,Supplies & Services,Other Services,ALPHA BIOLABORATORIES LIMITED,29/07/2016,126.25,
Children's Safeguarding,Child Protection & Family Support,JBAE,Supplies & Services,Section 17 Childrens Act,Direct Health Homecare Limited,29/07/2016,292.00,
Children's Safeguarding,Child Protection & Family Support,JBAE,Supplies & Services,Section 17 Childrens Act,Direct Health Homecare Limited,29/07/2016,169.00,
Children's Safeguarding,Child Protection & Family Support,JBAE,Supplies & Services,Section 17 Childrens Act,Direct Health Homecare Limited,29/07/2016,104.00,
Children's Safeguarding,Child Protection & Family Support,JBAE,Supplies & Services,Section 17 Childrens Act,Direct Health Homecare Limited,29/07/2016,314.40,
Children's Safeguarding,Child Protection & Family Support,JBAA,Supplies & Services,Section 17 Childrens Act,South Shropshire Housing Association,27/07/2016,"1,017.40",
Children's Safeguarding,Child Protection & Family Support,JBAF,Supplies & Services,Section 17 Childrens Act,Direct Health Homecare Limited,18/07/2016,104.00,
Children's Safeguarding,Child Protection & Family Support,JBAF,Supplies & Services,Section 17 Childrens Act,Direct Health Homecare Limited,18/07/2016,396.50,
Children's Safeguarding,Child Protection & Family Support,JMAE,Supplies & Services,Other Services,Keys Group (Malvern Achievement Services Ltd),29/07/2016,"2,533.13",
Children's Safeguarding,Child Protection & Family Support,JMAE,Supplies & Services,Other Services,Keys Group (Malvern Achievement Services Ltd),29/07/2016,"12,665.67",
Children's Safeguarding,Children Specialist Services,GY03,Supplies & Services,Confectionery & Snacks,BIKOLD,28/07/2016,206.38,
Children's Safeguarding,Children Specialist Services,HDAG,Supplies & Services,Aids & Appliances,G & S SMIRTHWAITE LTD,11/07/2016,252.00,
Children's Safeguarding,Children Specialist Services,HDAG,Supplies & Services,Aids & Appliances,M A Smith Associates,15/07/2016,430.50,
Children's Safeguarding,Children Specialist Services,GY03,Income,Fees & Charges General,AT BROWN (COACHES) LTD,28/07/2016,535.00,
Children's Safeguarding,Children Specialist Services,GY03,Income,Fees & Charges General,AT BROWN (COACHES) LTD,28/07/2016,432.00,
Children's Safeguarding,Children Specialist Services,GY03,Income,Fees & Charges General,THE ALBRIGHTON TRUST,28/07/2016,340.00,
Children's Safeguarding,Children Specialist Services,HDAJ,Third Party Payments,Agency Services,NESTOR PRIMECARE SERVICES LTD T/A ALLIED HEALTHCARE,29/07/2016,397.50,
Children's Safeguarding,Children Specialist Services,HDAJ,Third Party Payments,Agency Services,Direct Health Homecare Limited,28/07/2016,172.80,
Children's Safeguarding,Children Specialist Services,HDAJ,Third Party Payments,Agency Services,NESTOR PRIMECARE SERVICES LTD T/A ALLIED HEALTHCARE,08/07/2016,123.91,
Children's Safeguarding,Children Specialist Services,HDAJ,Third Party Payments,Agency Services,NESTOR PRIMECARE SERVICES LTD T/A ALLIED HEALTHCARE,08/07/2016,228.52,
Children's Safeguarding,Children Specialist Services,HDAJ,Third Party Payments,Agency Services,Direct Health Homecare Limited,08/07/2016,136.50,
Children's Safeguarding,Children Specialist Services,HDAJ,Third Party Payments,Agency Services,Direct Health Homecare Limited,18/07/2016,150.18,
Children's Safeguarding,Children Specialist Services,HDAJ,Third Party Payments,Agency Services,Direct Health Homecare Limited,18/07/2016,191.64,
Children's Safeguarding,Children Specialist Services,HDAJ,Third Party Payments,Agency Services,Direct Health Homecare Limited,18/07/2016,118.24,
Children's Safeguarding,Children Specialist Services,HDAJ,Third Party Payments,Agency Services,Direct Health Homecare Limited,08/07/2016,246.00,
Children's Safeguarding,Children Specialist Services,HDAJ,Third Party Payments,Agency Services,NESTOR PRIMECARE SERVICES LTD T/A ALLIED HEALTHCARE,08/07/2016,126.00,
Children's Safeguarding,Children Specialist Services,HDAJ,Third Party Payments,Agency Services,NESTOR PRIMECARE SERVICES LTD T/A ALLIED HEALTHCARE,08/07/2016,250.00,
Children's Safeguarding,Children Specialist Services,HDAJ,Third Party Payments,Agency Services,Direct Health Homecare Limited,19/07/2016,118.24,
Children's Safeguarding,Children Specialist Services,GY03,Supplies & Services,Holidays & Outings,MERLIN ENTERTAINMENTS GROUP,28/07/2016,669.60,
Children's Safeguarding,Children Specialist Services,HDAC,Third Party Payments,Agency Services,NESTOR PRIMECARE SERVICES LTD T/A ALLIED HEALTHCARE,20/07/2016,378.57,
Children's Safeguarding,Children Specialist Services,HDAJ,Third Party Payments,Agency Services,NESTOR PRIMECARE SERVICES LTD T/A ALLIED HEALTHCARE,20/07/2016,224.03,
Children's Safeguarding,Children Specialist Services,HDAJ,Third Party Payments,Agency Services,NESTOR PRIMECARE SERVICES LTD T/A ALLIED HEALTHCARE,20/07/2016,150.52,
Children's Safeguarding,Children Specialist Services,HDAJ,Third Party Payments,Agency Services,Direct Health Homecare Limited,20/07/2016,123.20,
Children's Safeguarding,Children Specialist Services,HDAJ,Third Party Payments,Agency Services,Direct Health Homecare Limited,28/07/2016,115.20,
Children's Safeguarding,Children Specialist Services,HDAJ,Third Party Payments,Agency Services,NESTOR PRIMECARE SERVICES LTD T/A ALLIED HEALTHCARE,08/07/2016,500.54,
Children's Safeguarding,Children Specialist Services,HDAJ,Third Party Payments,Agency Services,NESTOR PRIMECARE SERVICES LTD T/A ALLIED HEALTHCARE,29/07/2016,149.33,
Children's Safeguarding,Children Specialist Services,HDAJ,Third Party Payments,Agency Services,NESTOR PRIMECARE SERVICES LTD T/A ALLIED HEALTHCARE,29/07/2016,199.89,
Children's Safeguarding,Children Specialist Services,HDAJ,Third Party Payments,Agency Services,NESTOR PRIMECARE SERVICES LTD T/A ALLIED HEALTHCARE,29/07/2016,251.60,
Children's Safeguarding,Children Specialist Services,HDAJ,Third Party Payments,Agency Services,NESTOR PRIMECARE SERVICES LTD T/A ALLIED HEALTHCARE,29/07/2016,278.36,
Children's Safeguarding,Children Specialist Services,HDAJ,Third Party Payments,Agency Services,Direct Health Homecare Limited,29/07/2016,184.5,
Children's Safeguarding,Children Specialist Services,HDAJ,Third Party Payments,Agency Services,NESTOR PRIMECARE SERVICES LTD T/A ALLIED HEALTHCARE,29/07/2016,114.00,
Children's Safeguarding,Children Specialist Services,HDAG,Supplies & Services,Aids & Appliances,M A Smith Associates,26/07/2016,175.50,
Children's Safeguarding,Children Specialist Services,HDAG,Supplies & Services,Aids & Appliances,JENX LIMITED,21/07/2016,155.00,
Children's Safeguarding,Children Specialist Services,HDAJ,Third Party Payments,Agency Services,WE ARE THE CARE COMPANY LTD,20/07/2016,203.20,
Children's Safeguarding,Children Specialist Services,HDAJ,Third Party Payments,Agency Services,Direct Health Homecare Limited,08/07/2016,115.20,
Children's Safeguarding,Children Specialist Services,HDAJ,Third Party Payments,Agency Services,Direct Health Homecare Limited,18/07/2016,224.08,
Children's Safeguarding,Children Specialist Services,HDAG,Supplies & Services,Aids & Appliances,G & S SMIRTHWAITE LTD,11/07/2016,252,
Children's Safeguarding,Family Connect,GEAG,Supplies & Services,Comp Software (Purch / Hire),LIQUIDLOGIC LIMITED,08/07/2016,"2,392.50",
Children's Safeguarding,Family Connect,GEAG,Supplies & Services,Other Services,SHREWSBURY & TELFORD FAMILY GRAPEVINE,04/07/2016,330.00,
Children's Safeguarding,"Family Placements, Children in Care, Leaving Care & Emergency Duty Team",JPAD,Third Party Payments,External Foster Care Payments,FOSTER CARE ASSOCIATES LTD,04/07/2016,"3,077.68",
Children's Safeguarding,"Family Placements, Children in Care, Leaving Care & Emergency Duty Team",JPAD,Third Party Payments,External Foster Care Payments,ORANGE GROVE FOSTERCARE LTD,08/07/2016,"3,344.59",
Children's Safeguarding,"Family Placements, Children in Care, Leaving Care & Emergency Duty Team",JPAD,Third Party Payments,External Foster Care Payments,ORANGE GROVE FOSTERCARE LTD,08/07/2016,"3,380.86",
Children's Safeguarding,"Family Placements, Children in Care, Leaving Care & Emergency Duty Team",JPAD,Third Party Payments,External Foster Care Payments,ORANGE GROVE FOSTERCARE LTD,08/07/2016,"3,277.63",
Children's Safeguarding,"Family Placements, Children in Care, Leaving Care & Emergency Duty Team",JPAD,Third Party Payments,External Foster Care Payments,ORANGE GROVE FOSTERCARE LTD,08/07/2016,"3,277.01",
Children's Safeguarding,"Family Placements, Children in Care, Leaving Care & Emergency Duty Team",JPAD,Third Party Payments,External Foster Care Payments,ORANGE GROVE FOSTERCARE LTD,08/07/2016,2635,
Children's Safeguarding,"Family Placements, Children in Care, Leaving Care & Emergency Duty Team",JPAD,Third Party Payments,External Foster Care Payments,By The Bridge,08/07/2016,6000.67,
Children's Safeguarding,"Family Placements, Children in Care, Leaving Care & Emergency Duty Team",JPAD,Third Party Payments,External Foster Care Payments,FOSTER CARE ASSOCIATES LTD,04/07/2016,2978.4,
Children's Safeguarding,"Family Placements, Children in Care, Leaving Care & Emergency Duty Team",JPAD,Third Party Payments,External Foster Care Payments,FOSTER CARE ASSOCIATES LTD,04/07/2016,3369.6,
Children's Safeguarding,"Family Placements, Children in Care, Leaving Care & Emergency Duty Team",JPAD,Third Party Payments,External Foster Care Payments,STAFFORDSHIRE UNIVERSITY,04/07/2016,2612.57,
Children's Safeguarding,"Family Placements, Children in Care, Leaving Care & Emergency Duty Team",JPAD,Third Party Payments,External Foster Care Payments,RED KITE FOSTERING,04/07/2016,"2,852.50",
Children's Safeguarding,"Family Placements, Children in Care, Leaving Care & Emergency Duty Team",JPAD,Third Party Payments,External Foster Care Payments,PHOENIX FOSTERING,04/07/2016,"5,878.84",
Children's Safeguarding,"Family Placements, Children in Care, Leaving Care & Emergency Duty Team",JPAD,Third Party Payments,External Foster Care Payments,RED KITE FOSTERING,04/07/2016,"5,207.14",
Children's Safeguarding,"Family Placements, Children in Care, Leaving Care & Emergency Duty Team",JPAD,Third Party Payments,External Foster Care Payments,PHOENIX FOSTERING,04/07/2016,"6,532.01",
Children's Safeguarding,"Family Placements, Children in Care, Leaving Care & Emergency Duty Team",JPAD,Third Party Payments,External Foster Care Payments,PHOENIX FOSTERING,04/07/2016,"6,532.01",
Children's Safeguarding,"Family Placements, Children in Care, Leaving Care & Emergency Duty Team",JPAD,Third Party Payments,External Foster Care Payments,RED KITE FOSTERING,04/07/2016,"5,078.57",
Children's Safeguarding,"Family Placements, Children in Care, Leaving Care & Emergency Duty Team",JPAD,Third Party Payments,External Foster Care Payments,FOSTER CARE ASSOCIATES LTD,07/07/2016,"3,481.92",
Children's Safeguarding,"Family Placements, Children in Care, Leaving Care & Emergency Duty Team",JPAD,Third Party Payments,External Foster Care Payments,FOSTERING SOLUTIONS LTD,07/07/2016,345.00,
Children's Safeguarding,"Family Placements, Children in Care, Leaving Care & Emergency Duty Team",JPAD,Third Party Payments,External Foster Care Payments,ORANGE GROVE FOSTERCARE LTD,07/07/2016,-550.80,
Children's Safeguarding,"Family Placements, Children in Care, Leaving Care & Emergency Duty Team",JPAD,Third Party Payments,External Foster Care Payments,CLIFFORD HOUSE FOSTERING LTD,06/07/2016,"3,578.70",
Children's Safeguarding,"Family Placements, Children in Care, Leaving Care & Emergency Duty Team",JPAD,Third Party Payments,External Foster Care Payments,SWIIS FOSTER CARE LTD,18/07/2016,"3,150.00",
Children's Safeguarding,"Family Placements, Children in Care, Leaving Care & Emergency Duty Team",JPAD,Third Party Payments,External Foster Care Payments,SWIIS FOSTER CARE LTD,18/07/2016,"3,739.80",
Children's Safeguarding,"Family Placements, Children in Care, Leaving Care & Emergency Duty Team",JPAD,Third Party Payments,External Foster Care Payments,Prospects for Young People Ltd,25/07/2016,"3,604.99",
Children's Safeguarding,"Family Placements, Children in Care, Leaving Care & Emergency Duty Team",JPAD,Third Party Payments,External Foster Care Payments,ORANGE GROVE FOSTERCARE LTD,12/07/2016,"3,498.57",
Children's Safeguarding,"Family Placements, Children in Care, Leaving Care & Emergency Duty Team",JPAD,Third Party Payments,External Foster Care Payments,NEXUS FOSTERING,27/07/2016,"2,950.00",
Children's Safeguarding,"Family Placements, Children in Care, Leaving Care & Emergency Duty Team",JPAD,Third Party Payments,External Foster Care Payments,Prospects for Young People Ltd,29/07/2016,"3,569.03",
Children's Safeguarding,"Family Placements, Children in Care, Leaving Care & Emergency Duty Team",JPAM,Supplies & Services,Form F Assessments,Paramount Care Solutions Ltd,07/07/2016,"2,200.00",
Children's Safeguarding,"Family Placements, Children in Care, Leaving Care & Emergency Duty Team",JCAB,Employees,Staff Training,MEETING POINT TRUST LTD,13/07/2016,164.30,
Children's Safeguarding,"Family Placements, Children in Care, Leaving Care & Emergency Duty Team",JPAN,Third Party Payments,Residential Expenditure,MGM CARE SERVICES LTD,01/07/2016,"11,571.43",
Children's Safeguarding,"Family Placements, Children in Care, Leaving Care & Emergency Duty Team",JPAD,Third Party Payments,External Foster Care Payments,Prospects for Young People Ltd,25/07/2016,"3,609.33",
Children's Safeguarding,"Family Placements, Children in Care, Leaving Care & Emergency Duty Team",JPAN,Third Party Payments,Residential Expenditure,SUNFIELD CHILDRENS HOMES LTD,07/07/2016,"3,343.50",
Children's Safeguarding,"Family Placements, Children in Care, Leaving Care & Emergency Duty Team",JPAN,Third Party Payments,Residential Expenditure,Rossie Young Peoples Trust,04/07/2016,"24,244.20",
Children's Safeguarding,"Family Placements, Children in Care, Leaving Care & Emergency Duty Team",JPAD,Third Party Payments,External Foster Care Payments,ORANGE GROVE FOSTERCARE LTD,12/07/2016,"3,277.01",
Children's Safeguarding,"Family Placements, Children in Care, Leaving Care & Emergency Duty Team",JCAB,Supplies & Services,Supportive Lodgings,Above N beyond Limited,13/07/2016,320.00,
Children's Safeguarding,"Family Placements, Children in Care, Leaving Care & Emergency Duty Team",JPAD,Third Party Payments,External Foster Care Payments,ORANGE GROVE FOSTERCARE LTD,27/07/2016,"3,065.59",
Children's Safeguarding,"Family Placements, Children in Care, Leaving Care & Emergency Duty Team",JPAD,Third Party Payments,External Foster Care Payments,COMPASS FOSTERING CENTRAL LTD,27/07/2016,533.80,
Children's Safeguarding,"Family Placements, Children in Care, Leaving Care & Emergency Duty Team",JPAD,Third Party Payments,External Foster Care Payments,NEXUS FOSTERING,22/07/2016,"3,602.20",
Children's Safeguarding,"Family Placements, Children in Care, Leaving Care & Emergency Duty Team",JPAM,Supplies & Services,Form F Assessments,HN Assessments Ltd,26/07/2016,"1,664.00",
Children's Safeguarding,"Family Placements, Children in Care, Leaving Care & Emergency Duty Team",JPAD,Third Party Payments,External Foster Care Payments,NEXUS FOSTERING,22/07/2016,"3,486.00",
Children's Safeguarding,"Family Placements, Children in Care, Leaving Care & Emergency Duty Team",JPAD,Third Party Payments,External Foster Care Payments,Prospects for Young People Ltd,25/07/2016,"3,366.60",
Children's Safeguarding,"Family Placements, Children in Care, Leaving Care & Emergency Duty Team",JPAM,Supplies & Services,Form F Assessments,HN Assessments Ltd,27/07/2016,"1,852.00",
Children's Safeguarding,"Family Placements, Children in Care, Leaving Care & Emergency Duty Team",JCAB,Transfer Payments,Leaving Care Grant,ARGOS BUSINESS SOLUTIONS,01/07/2016,287.19,
Children's Safeguarding,"Family Placements, Children in Care, Leaving Care & Emergency Duty Team",JCAB,Transfer Payments,Leaving Care Grant,DIAL-A-MATTRESS (SHROPSHIRE) LTD,19/07/2016,300.00,
Children's Safeguarding,"Family Placements, Children in Care, Leaving Care & Emergency Duty Team",JPAD,Third Party Payments,External Foster Care Payments,ORANGE GROVE FOSTERCARE LTD,12/07/2016,"3,498.66",
Children's Safeguarding,"Family Placements, Children in Care, Leaving Care & Emergency Duty Team",JCAB,Transfer Payments,Leaving Care Grant,DIAL-A-MATTRESS (SHROPSHIRE) LTD,19/07/2016,300.00,
Children's Safeguarding,"Family Placements, Children in Care, Leaving Care & Emergency Duty Team",JCAB,Transfer Payments,Leaving Care Grant,ARGOS BUSINESS SOLUTIONS,21/07/2016,258.90,
Children's Safeguarding,"Family Placements, Children in Care, Leaving Care & Emergency Duty Team",JCAB,Transfer Payments,Leaving Care Grant,DIAL-A-MATTRESS (SHROPSHIRE) LTD,28/07/2016,156.66,
Children's Safeguarding,"Family Placements, Children in Care, Leaving Care & Emergency Duty Team",JCAB,Supplies & Services,Supportive Lodgings,STAY TELFORD XC SUPPORTED HOUSE,18/07/2016,801.92,
Children's Safeguarding,"Family Placements, Children in Care, Leaving Care & Emergency Duty Team",JPAD,Third Party Payments,External Foster Care Payments,PARK FOSTER CARE,05/07/2016,"3,419.92",
Children's Safeguarding,"Family Placements, Children in Care, Leaving Care & Emergency Duty Team",JPAD,Third Party Payments,External Foster Care Payments,ORANGE GROVE FOSTERCARE LTD,22/07/2016,"3,344.59",
Children's Safeguarding,"Family Placements, Children in Care, Leaving Care & Emergency Duty Team",JCAB,Supplies & Services,Other Travel,ARRIVA MIDLANDS NORTH LIMITED,18/07/2016,127.80,
Children's Safeguarding,"Family Placements, Children in Care, Leaving Care & Emergency Duty Team",JPAM,Third Party Payments,Childminders,SMILEY FACES DAY NURSERIES LTD,12/07/2016,293.55,
Children's Safeguarding,"Family Placements, Children in Care, Leaving Care & Emergency Duty Team",JPAM,Third Party Payments,Childminders,SMILEY FACES DAY NURSERIES LTD,12/07/2016,353.40,
Children's Safeguarding,"Family Placements, Children in Care, Leaving Care & Emergency Duty Team",JCAB,Supplies & Services,Supportive Lodgings,STAY TELFORD XC SUPPORTED HOUSE,18/07/2016,741.00,
Children's Safeguarding,"Family Placements, Children in Care, Leaving Care & Emergency Duty Team",JCAB,Supplies & Services,Supportive Lodgings,BROMFORD HOUSING ASSOCIATION LIMITED,22/07/2016,977.15,
Children's Safeguarding,"Family Placements, Children in Care, Leaving Care & Emergency Duty Team",JCAB,Supplies & Services,Supportive Lodgings,Care Solutions Ltd,28/07/2016,"1,689.50",
Children's Safeguarding,"Family Placements, Children in Care, Leaving Care & Emergency Duty Team",JCAB,Supplies & Services,Supportive Lodgings,STAY TELFORD XC SUPPORTED HOUSE,18/07/2016,810.60,
Children's Safeguarding,"Family Placements, Children in Care, Leaving Care & Emergency Duty Team",JPAM,Supplies & Services,Advertising,THE MIDLAND NEWS ASSOCIATION LTD,21/07/2016,166.00,
Children's Safeguarding,"Family Placements, Children in Care, Leaving Care & Emergency Duty Team",JPAD,Third Party Payments,External Foster Care Payments,ORANGE GROVE FOSTERCARE LTD,07/07/2016,-502.30,
Children's Safeguarding,"Family Placements, Children in Care, Leaving Care & Emergency Duty Team",JPAM,Supplies & Services,Form F Assessments,Paramount Care Solutions Ltd,07/07/2016,574.90,
Children's Safeguarding,"Family Placements, Children in Care, Leaving Care & Emergency Duty Team",JPAM,Supplies & Services,Advertising,THE MIDLAND NEWS ASSOCIATION LTD,07/07/2016,166.00,
Children's Safeguarding,"Family Placements, Children in Care, Leaving Care & Emergency Duty Team",JPAD,Third Party Payments,External Foster Care Payments,Childcare Bureau,22/07/2016,"4,217.55",
Children's Safeguarding,"Family Placements, Children in Care, Leaving Care & Emergency Duty Team",JPAD,Third Party Payments,External Foster Care Payments,NATIONAL FOSTERING AGENCY,13/07/2016,"3,129.00",
Children's Safeguarding,"Family Placements, Children in Care, Leaving Care & Emergency Duty Team",JPAD,Third Party Payments,External Foster Care Payments,NATIONAL FOSTERING AGENCY,13/07/2016,"3,065.10",
Children's Safeguarding,"Family Placements, Children in Care, Leaving Care & Emergency Duty Team",JPAD,Third Party Payments,External Foster Care Payments,ORANGE GROVE FOSTERCARE LTD,12/07/2016,"3,498.66",
Children's Safeguarding,"Family Placements, Children in Care, Leaving Care & Emergency Duty Team",JPAD,Third Party Payments,External Foster Care Payments,ORANGE GROVE FOSTERCARE LTD,07/07/2016,211.42,
Children's Safeguarding,"Family Placements, Children in Care, Leaving Care & Emergency Duty Team",JPAD,Third Party Payments,External Foster Care Payments,FOSTERING SOLUTIONS LTD,01/07/2016,"2,415.00",
Children's Safeguarding,"Family Placements, Children in Care, Leaving Care & Emergency Duty Team",JPAD,Third Party Payments,External Foster Care Payments,NATIONAL FOSTERING AGENCY,13/07/2016,"3,204.90",
Children's Safeguarding,"Family Placements, Children in Care, Leaving Care & Emergency Duty Team",JPAD,Third Party Payments,External Foster Care Payments,NATIONAL FOSTERING AGENCY,13/07/2016,"3,129.00",
Children's Safeguarding,"Family Placements, Children in Care, Leaving Care & Emergency Duty Team",JPAD,Third Party Payments,External Foster Care Payments,NATIONAL FOSTERING AGENCY,13/07/2016,"3,129.00",
Children's Safeguarding,"Family Placements, Children in Care, Leaving Care & Emergency Duty Team",JPAD,Third Party Payments,External Foster Care Payments,PHOENIX FOSTERING,04/07/2016,"6,532.01",
Children's Safeguarding,"Family Placements, Children in Care, Leaving Care & Emergency Duty Team",JPAD,Third Party Payments,External Foster Care Payments,ORANGE GROVE FOSTERCARE LTD,07/07/2016,-446.45,
Children's Safeguarding,"Family Placements, Children in Care, Leaving Care & Emergency Duty Team",JPAD,Third Party Payments,External Foster Care Payments,ABC FOSTERING SERVICES LTD,22/07/2016,"2,223.77",
Children's Safeguarding,"Family Placements, Children in Care, Leaving Care & Emergency Duty Team",JPAD,Third Party Payments,External Foster Care Payments,SWIIS FOSTER CARE LTD,22/07/2016,"3,171.30",
Children's Safeguarding,"Family Placements, Children in Care, Leaving Care & Emergency Duty Team",JPAD,Third Party Payments,External Foster Care Payments,SWIIS FOSTER CARE LTD,22/07/2016,"2,841.90",
Children's Safeguarding,"Family Placements, Children in Care, Leaving Care & Emergency Duty Team",JPAD,Third Party Payments,External Foster Care Payments,FAMILIES@FAMILYCARE,22/07/2016,"2,611.56",
Children's Safeguarding,"Family Placements, Children in Care, Leaving Care & Emergency Duty Team",JPAD,Third Party Payments,External Foster Care Payments,FAMILY FOSTER CARE LTD,13/07/2016,"3,259.65",
Children's Safeguarding,"Family Placements, Children in Care, Leaving Care & Emergency Duty Team",JPAD,Third Party Payments,External Foster Care Payments,Childcare Bureau,22/07/2016,"4,081.50",
Children's Safeguarding,"Family Placements, Children in Care, Leaving Care & Emergency Duty Team",JPAD,Third Party Payments,External Foster Care Payments,FOSTER CARE ASSOCIATES LTD,22/07/2016,"3,265.60",
Children's Safeguarding,"Family Placements, Children in Care, Leaving Care & Emergency Duty Team",JPAD,Third Party Payments,External Foster Care Payments,Childcare Bureau,21/07/2016,"4,047.98",
Children's Safeguarding,"Family Placements, Children in Care, Leaving Care & Emergency Duty Team",JPAD,Third Party Payments,External Foster Care Payments,Childcare Bureau,22/07/2016,"4,217.55",
Children's Safeguarding,"Family Placements, Children in Care, Leaving Care & Emergency Duty Team",JPAD,Third Party Payments,External Foster Care Payments,FOSTER CARE ASSOCIATES LTD,21/07/2016,"3,198.27",
Children's Safeguarding,"Family Placements, Children in Care, Leaving Care & Emergency Duty Team",JPAD,Third Party Payments,External Foster Care Payments,FOSTER CARE ASSOCIATES LTD,21/07/2016,"3,366.60",
Children's Safeguarding,"Family Placements, Children in Care, Leaving Care & Emergency Duty Team",JPAD,Third Party Payments,External Foster Care Payments,ABC FOSTERING SERVICES LTD,20/07/2016,"2,223.77",
Children's Safeguarding,"Family Placements, Children in Care, Leaving Care & Emergency Duty Team",JPAD,Third Party Payments,External Foster Care Payments,ABC FOSTERING SERVICES LTD,20/07/2016,"2,223.77",
Children's Safeguarding,"Family Placements, Children in Care, Leaving Care & Emergency Duty Team",JPAD,Third Party Payments,External Foster Care Payments,FOSTERING SOLUTIONS LTD,20/07/2016,"3,376.74",
Children's Safeguarding,"Family Placements, Children in Care, Leaving Care & Emergency Duty Team",JPAD,Third Party Payments,External Foster Care Payments,FOSTERING SOLUTIONS LTD,20/07/2016,3565,
Children's Safeguarding,"Family Placements, Children in Care, Leaving Care & Emergency Duty Team",JPAD,Third Party Payments,External Foster Care Payments,FOSTER CARE ASSOCIATES LTD,21/07/2016,3537.1,
Children's Safeguarding,"Family Placements, Children in Care, Leaving Care & Emergency Duty Team",JPAD,Third Party Payments,External Foster Care Payments,SWIIS FOSTER CARE LTD,19/07/2016,2841.9,
Children's Safeguarding,"Family Placements, Children in Care, Leaving Care & Emergency Duty Team",JPAD,Third Party Payments,External Foster Care Payments,ACTION FOR CHILDREN LIMITED,19/07/2016,3516.29,
Children's Safeguarding,"Family Placements, Children in Care, Leaving Care & Emergency Duty Team",JPAD,Third Party Payments,External Foster Care Payments,FOSTERING PRIORY,20/07/2016,3618.14,
Children's Safeguarding,"Family Placements, Children in Care, Leaving Care & Emergency Duty Team",JPAD,Third Party Payments,External Foster Care Payments,NEXUS FOSTERING,20/07/2016,3566.24,
Children's Safeguarding,"Family Placements, Children in Care, Leaving Care & Emergency Duty Team",JPAD,Third Party Payments,External Foster Care Payments,NATIONAL FOSTERING AGENCY,13/07/2016,2978.7,
Children's Safeguarding,"Family Placements, Children in Care, Leaving Care & Emergency Duty Team",JPAD,Third Party Payments,External Foster Care Payments,ORANGE GROVE FOSTERCARE LTD,08/07/2016,"3,520.67",
Children's Safeguarding,"Family Placements, Children in Care, Leaving Care & Emergency Duty Team",JPAN,Third Party Payments,Residential Expenditure,YOUNG OPTIONS COLLEGE LTD,28/07/2016,"17,050.00",
Children's Safeguarding,"Family Placements, Children in Care, Leaving Care & Emergency Duty Team",JPAN,Third Party Payments,Residential Expenditure,Future in Mind Ltd,18/07/2016,"15,500.00",
Children's Safeguarding,"Family Placements, Children in Care, Leaving Care & Emergency Duty Team",JPAN,Third Party Payments,Residential Expenditure,HORIZON CARE & EDUCATION GROUP LTD,20/07/2016,13204.2,
Children's Safeguarding,"Family Placements, Children in Care, Leaving Care & Emergency Duty Team",JPAN,Third Party Payments,Residential Expenditure,Round House Care Ltd,20/07/2016,"13,285.67",
Children's Safeguarding,"Family Placements, Children in Care, Leaving Care & Emergency Duty Team",JPAD,Third Party Payments,External Foster Care Payments,Children Always First,22/07/2016,"3,364.29",
Children's Safeguarding,"Family Placements, Children in Care, Leaving Care & Emergency Duty Team",JPAN,Third Party Payments,Residential Expenditure,HORIZON CARE & EDUCATION GROUP LTD,20/07/2016,"13,644.34",
Children's Safeguarding,"Family Placements, Children in Care, Leaving Care & Emergency Duty Team",JPAN,Third Party Payments,Residential Expenditure,MGM CARE SERVICES LTD,20/07/2016,"11,957.01",
Children's Safeguarding,"Family Placements, Children in Care, Leaving Care & Emergency Duty Team",JPAN,Third Party Payments,Residential Expenditure,PETERBOROUGH CITY COUNCIL,22/07/2016,"27,720.00",
Children's Safeguarding,"Family Placements, Children in Care, Leaving Care & Emergency Duty Team",JPAD,Third Party Payments,Residential Expenditure,FAMILIES@FAMILYCARE,22/07/2016,"3,631.34",
Children's Safeguarding,"Family Placements, Children in Care, Leaving Care & Emergency Duty Team",JPAN,Third Party Payments,Residential Expenditure,AMBERLEIGH CARE LIMITED,21/07/2016,229.26,
Children's Safeguarding,"Family Placements, Children in Care, Leaving Care & Emergency Duty Team",JPAN,Third Party Payments,Residential Expenditure,FAMILIES@FAMILYCARE,21/07/2016,"3,520.67",
Children's Safeguarding,"Family Placements, Children in Care, Leaving Care & Emergency Duty Team",JPAN,Third Party Payments,Residential Expenditure,Unity Residential Care Services Ltd,25/07/2016,"11,647.01",
Children's Safeguarding,"Family Placements, Children in Care, Leaving Care & Emergency Duty Team",JPAN,Third Party Payments,Residential Expenditure,HORIZON CARE & EDUCATION GROUP LTD,25/07/2016,"17,236.00",
Children's Safeguarding,"Family Placements, Children in Care, Leaving Care & Emergency Duty Team",JPAN,Third Party Payments,Residential Expenditure,Coram Voice,28/07/2016,120.00,
Children's Safeguarding,"Family Placements, Children in Care, Leaving Care & Emergency Duty Team",JPAN,Third Party Payments,Residential Expenditure,Coram Voice,28/07/2016,486.35,
Children's Safeguarding,"Family Placements, Children in Care, Leaving Care & Emergency Duty Team",JPAN,Third Party Payments,Residential Expenditure,BETTERCARE KEYS LTD,18/07/2016,"14,614.20",
Children's Safeguarding,"Family Placements, Children in Care, Leaving Care & Emergency Duty Team",JPAN,Third Party Payments,Residential Expenditure,CARE TODAY CHILDRENS SERVICES,13/07/2016,"12,407.10",
Children's Safeguarding,"Family Placements, Children in Care, Leaving Care & Emergency Duty Team",JPAN,Third Party Payments,Residential Expenditure,CARE TODAY CHILDRENS SERVICES,13/07/2016,"3,377.10",
Children's Safeguarding,"Family Placements, Children in Care, Leaving Care & Emergency Duty Team",JPAD,Third Party Payments,External Foster Care Payments,NEXUS FOSTERING,22/07/2016,"3,602.20",
Children's Safeguarding,"Family Placements, Children in Care, Leaving Care & Emergency Duty Team",JPAD,Third Party Payments,External Foster Care Payments,FOSTER CARE ASSOCIATES LTD,22/07/2016,"3,077.68",
Children's Safeguarding,"Family Placements, Children in Care, Leaving Care & Emergency Duty Team",JPAD,Third Party Payments,External Foster Care Payments,St Christopher's Fellowship,22/07/2016,"4,261.32",
Children's Safeguarding,"Family Placements, Children in Care, Leaving Care & Emergency Duty Team",JCAB,Supplies & Services,Supportive Lodgings,STAY TELFORD XC SUPPORTED HOUSE,18/07/2016,792.87,
Children's Safeguarding,"Family Placements, Children in Care, Leaving Care & Emergency Duty Team",JPAD,Third Party Payments,External Foster Care Payments,NEXUS FOSTERING,22/07/2016,"3,486.00",
Children's Safeguarding,"Family Placements, Children in Care, Leaving Care & Emergency Duty Team",JPAD,Third Party Payments,External Foster Care Payments,FOSTER CARE ASSOCIATES LTD,22/07/2016,3481.92,
Children's Safeguarding,"Family Placements, Children in Care, Leaving Care & Emergency Duty Team",JPAD,Third Party Payments,External Foster Care Payments,FOSTERING SOLUTIONS LTD,22/07/2016,3565,
Children's Safeguarding,"Family Placements, Children in Care, Leaving Care & Emergency Duty Team",JCAB,Supplies & Services,Supportive Lodgings,STAY TELFORD XC SUPPORTED HOUSE,18/07/2016,742.00,
Children's Safeguarding,"Family Placements, Children in Care, Leaving Care & Emergency Duty Team",JCAB,Supplies & Services,Supportive Lodgings,STAY TELFORD XC SUPPORTED HOUSE,18/07/2016,240.80,
Children's Safeguarding,"Family Placements, Children in Care, Leaving Care & Emergency Duty Team",JPAD,Third Party Payments,External Foster Care Payments,FAMILIES@FAMILYCARE,22/07/2016,"4,017.60",
Children's Safeguarding,"Family Placements, Children in Care, Leaving Care & Emergency Duty Team",JPAD,Third Party Payments,External Foster Care Payments,FOSTER CARE ASSOCIATES LTD,22/07/2016,"5,247.21",
Children's Safeguarding,"Family Placements, Children in Care, Leaving Care & Emergency Duty Team",JPAD,Third Party Payments,External Foster Care Payments,SWIIS FOSTER CARE LTD,22/07/2016,225.72,
Children's Safeguarding,"Family Placements, Children in Care, Leaving Care & Emergency Duty Team",JPAD,Third Party Payments,External Foster Care Payments,NATIONAL FOSTERING AGENCY,13/07/2016,"3,271.80",
Children's Safeguarding,"Family Placements, Children in Care, Leaving Care & Emergency Duty Team",JPAN,Third Party Payments,Residential Expenditure,Unity Residential Care Services Ltd,18/07/2016,"11,647.01",
Children's Safeguarding,"Family Placements, Children in Care, Leaving Care & Emergency Duty Team",JPAD,Third Party Payments,External Foster Care Payments,CLIFFORD HOUSE FOSTERING LTD,22/07/2016,"6,407.10",
Children's Safeguarding,"Family Placements, Children in Care, Leaving Care & Emergency Duty Team",JPAM,Supplies & Services,Legal Expenses,Mortimers,26/07/2016,"1,314.71",
Children's Safeguarding,"Family Placements, Children in Care, Leaving Care & Emergency Duty Team",JPAM,Supplies & Services,Doctors Fees,WOODSIDE MEDICAL PRACTICE,12/07/2016,110.00,
Children's Safeguarding,"Family Placements, Children in Care, Leaving Care & Emergency Duty Team",JPAM,Supplies & Services,Doctors Fees,Barlow House Surgery,07/07/2016,120.00,
Children's Safeguarding,"Family Placements, Children in Care, Leaving Care & Emergency Duty Team",JPAM,Supplies & Services,Doctors Fees,Barlow House Surgery,07/07/2016,120.00,
Children's Safeguarding,"Family Placements, Children in Care, Leaving Care & Emergency Duty Team",JPAM,Supplies & Services,Doctors Fees,DONNINGTON MEDICAL PRACTICE,21/07/2016,150,
Children's Safeguarding,"Family Placements, Children in Care, Leaving Care & Emergency Duty Team",JPAM,Supplies & Services,Doctors Fees,DAWLEY MEDICAL PRACTICES,26/07/2016,133,
Children's Safeguarding,"Family Placements, Children in Care, Leaving Care & Emergency Duty Team",JPAM,Supplies & Services,Legal Expenses,Mortimers,27/07/2016,"1,479.61",
Children's Safeguarding,"Family Placements, Children in Care, Leaving Care & Emergency Duty Team",JPAM,Supplies & Services,Doctors Fees,DONNINGTON MEDICAL PRACTICE,07/07/2016,150.00,
Children's Safeguarding,"Family Placements, Children in Care, Leaving Care & Emergency Duty Team",JPAM,Supplies & Services,Legal Expenses,Ridley & Hall Solicitors,07/07/2016,520,
Children's Safeguarding,"Family Placements, Children in Care, Leaving Care & Emergency Duty Team",JPAM,Supplies & Services,Legal Expenses,Ridley & Hall Solicitors,07/07/2016,582.53,
Children's Safeguarding,"Family Placements, Children in Care, Leaving Care & Emergency Duty Team",JPAM,Supplies & Services,Legal Expenses,LANYON BOWDLER SOLICITORS,07/07/2016,1711.2,
Children's Safeguarding,"Family Placements, Children in Care, Leaving Care & Emergency Duty Team",JPAM,Supplies & Services,Registration / Licence Fees,Coram Academy Limited,21/07/2016,733.86,
Children's Safeguarding,"Family Placements, Children in Care, Leaving Care & Emergency Duty Team",JPAM,Supplies & Services,Legal Expenses,Ridley & Hall Solicitors,07/07/2016,845.2,
Children's Safeguarding,Safeguarding Advisory,JAAC,Employees,Training Expenses,European Innovation Limited,04/07/2016,107.00,
Children's Safeguarding,Safeguarding Advisory,JAAC,Transport-Related Expenditure,Travelling Expenses General,NHS Telford and Wrekin CCG,20/07/2016,125.20,
Children's Safeguarding,Safeguarding Advisory,JAAC,Third Party Payments,Other Government - Services,SHROPSHIRE COMMUNITY HEALTH NHS TRUST,20/07/2016,"3,626.06",
Children's Safeguarding,Safeguarding Advisory,JAAC,Supplies & Services,Consultants Fees,Andrew Mason Consultancy Ltd,26/07/2016,"1,136.85",
Commercial Services,Catering,CLSX,Premises-Related Expenditure,Clean Mats & Toilet Requisites,Border Janitorial Supplies Limited,13/07/2016,145.41,
Commercial Services,Catering,CLCM,Premises-Related Expenditure,Clean Mats & Toilet Requisites,Border Janitorial Supplies Limited,13/07/2016,123.88,
Commercial Services,Catering,CLSP,Premises-Related Expenditure,Clean Mats & Toilet Requisites,Border Janitorial Supplies Limited,22/07/2016,268.59,
Commercial Services,Catering,CLCM,Premises-Related Expenditure,Clean Mats & Toilet Requisites,Border Janitorial Supplies Limited,13/07/2016,166.57,
Commercial Services,Catering,CLSP,Premises-Related Expenditure,Clean Mats & Toilet Requisites,Border Janitorial Supplies Limited,22/07/2016,146.93,
Commercial Services,Catering,CLSP,Premises-Related Expenditure,Clean Mats & Toilet Requisites,Border Janitorial Supplies Limited,22/07/2016,145.38,
Commercial Services,Catering,CLCM,Premises-Related Expenditure,Clean Mats & Toilet Requisites,Border Janitorial Supplies Limited,13/07/2016,123.82,
Commercial Services,Catering,CLSX,Premises-Related Expenditure,Clean Mats & Toilet Requisites,Border Janitorial Supplies Limited,13/07/2016,105.58,
Commercial Services,Catering,CLSP,Premises-Related Expenditure,Clean Mats & Toilet Requisites,Border Janitorial Supplies Limited,22/07/2016,109.48,
Commercial Services,Catering,CLSP,Premises-Related Expenditure,Clean Mats & Toilet Requisites,Border Janitorial Supplies Limited,13/07/2016,159.89,
Commercial Services,Catering,CLSS,Premises-Related Expenditure,Clean Mats & Toilet Requisites,Border Janitorial Supplies Limited,13/07/2016,213.08,
Commercial Services,Catering,CLSP,Premises-Related Expenditure,Clean Mats & Toilet Requisites,Border Janitorial Supplies Limited,13/07/2016,175.97,
Commercial Services,Catering,CLCM,Premises-Related Expenditure,Clean Mats & Toilet Requisites,Border Janitorial Supplies Limited,13/07/2016,107.94,
Commercial Services,Catering,CLCM,Premises-Related Expenditure,Clean Mats & Toilet Requisites,Border Janitorial Supplies Limited,13/07/2016,210.20,
Commercial Services,Catering,CLCM,Premises-Related Expenditure,Clean Mats & Toilet Requisites,Border Janitorial Supplies Limited,13/07/2016,112.01,
Commercial Services,Catering,CLSS,Premises-Related Expenditure,Clean Mats & Toilet Requisites,Border Janitorial Supplies Limited,13/07/2016,147.88,
Commercial Services,Catering,CLCM,Premises-Related Expenditure,Clean Mats & Toilet Requisites,Border Janitorial Supplies Limited,13/07/2016,117.29,
Commercial Services,Catering,CLCM,Premises-Related Expenditure,Clean Mats & Toilet Requisites,Border Janitorial Supplies Limited,13/07/2016,172.96,
Commercial Services,Catering,CLSP,Premises-Related Expenditure,Clean Mats & Toilet Requisites,Border Janitorial Supplies Limited,13/07/2016,197.22,
Commercial Services,Catering,CLCM,Premises-Related Expenditure,Clean Mats & Toilet Requisites,Border Janitorial Supplies Limited,13/07/2016,165.78,
Commercial Services,Catering,CLCM,Premises-Related Expenditure,Clean Mats & Toilet Requisites,Border Janitorial Supplies Limited,13/07/2016,110.84,
Commercial Services,Catering,CLSP,Premises-Related Expenditure,Clean Mats & Toilet Requisites,THE CLEAN MACHINE DIRECT LTD,26/07/2016,113.92,
Commercial Services,Catering,CLCM,Premises-Related Expenditure,Clean Mats & Toilet Requisites,Border Janitorial Supplies Limited,22/07/2016,168.23,
Commercial Services,Catering,CLSP,Premises-Related Expenditure,Clean Mats & Toilet Requisites,Border Janitorial Supplies Limited,13/07/2016,173.73,
Commercial Services,Catering,CLSP,Premises-Related Expenditure,Clean Mats & Toilet Requisites,Border Janitorial Supplies Limited,13/07/2016,148.05,
Commercial Services,Catering,CLSP,Premises-Related Expenditure,Clean Mats & Toilet Requisites,Border Janitorial Supplies Limited,13/07/2016,101.46,
Commercial Services,Catering,CLSP,Supplies & Services,Equipment - Repair,THE CLEAN MACHINE DIRECT LTD,13/07/2016,106.46,
Commercial Services,Catering,CLCM,Premises-Related Expenditure,Clean Mats & Toilet Requisites,Border Janitorial Supplies Limited,13/07/2016,109.85,
Commercial Services,Catering,CLSP,Supplies & Services,Equipment - Repair,THE CLEAN MACHINE DIRECT LTD,13/07/2016,141.40,
Commercial Services,Facilities Management and Cleaning Services,CFAY,Supplies & Services,Equipment - Hire,QUICK SKIPS (TELFORD) LTD,05/07/2016,-165.00,
Commercial Services,Facilities Management and Cleaning Services,CFAY,Supplies & Services,Equipment - Hire,QUICK SKIPS (TELFORD) LTD,05/07/2016,365.00,
Commercial Services,Facilities Management and Cleaning Services,CFAV,Premises-Related Expenditure,Vandal Damage,PYRAMID SCHOOLS (HADLEY) LTD,27/07/2016,263.66,
Commercial Services,Facilities Management and Cleaning Services,CFAV,Premises-Related Expenditure,Vandal Damage,PYRAMID SCHOOLS (HADLEY) LTD,27/07/2016,254.75,
Commercial Services,Facilities Management and Cleaning Services,CFAD,Supplies & Services,Security Services,BUSINESS WATCH GUARDING LIMITED,15/07/2016,"18,606.00",
Commercial Services,Facilities Management and Cleaning Services,CFAA,Premises-Related Expenditure,Grounds Maintenance - Other,NOBRIDGE LTD,26/07/2016,"7,688.83",
Commercial Services,Facilities Management and Cleaning Services,CFAA,Premises-Related Expenditure,Grounds Maintenance - Other,NOBRIDGE LTD,26/07/2016,"7,398.91",
Commercial Services,Facilities Management and Cleaning Services,CFAA,Premises-Related Expenditure,Grounds Maintenance - Other,Oakleaf Ground Services,21/07/2016,741.93,
Commercial Services,Housing & NuPlace,WDAF,Capital Expenditure,Expenditure on loans & other financial assistance,DMW ENVIRONMENTAL SAFETY LTD,06/07/2016,150.00,
Commercial Services,Housing & NuPlace,WDAF,Capital Expenditure,Expenditure on loans & other financial assistance,REDACTED PERSONAL INFORMATION ,18/07/2016,"4,332.97",
Commercial Services,Housing & NuPlace,WDAF,Capital Expenditure,Expenditure on loans & other financial assistance,DMW ENVIRONMENTAL SAFETY LTD,18/07/2016,122.4,
Commercial Services,Housing & NuPlace,WDAF,Capital Expenditure,Expenditure on loans & other financial assistance,REDACTED PERSONAL INFORMATION ,18/07/2016,6418,
Commercial Services,Housing & NuPlace,WDAF,Capital Expenditure,Expenditure on loans & other financial assistance,THE WREKIN HOUSING TRUST (INVOICES ONLY),18/07/2016,714,
Commercial Services,Housing & NuPlace,WDAF,Capital Expenditure,Expenditure on loans & other financial assistance,REDACTED PERSONAL INFORMATION ,21/07/2016,"3,907.32",
Commercial Services,Housing & NuPlace,WDAF,Capital Expenditure,Expenditure on loans & other financial assistance,THE WREKIN HOUSING TRUST (INVOICES ONLY),21/07/2016,"1,600.00",
Commercial Services,Housing & NuPlace,WDAF,Capital Expenditure,Expenditure on loans & other financial assistance,THE WREKIN HOUSING TRUST (INVOICES ONLY),21/07/2016,"1,600.00",
Commercial Services,Housing & NuPlace,WDAF,Capital Expenditure,Expenditure on loans & other financial assistance,REDACTED PERSONAL INFORMATION ,07/07/2016,"7,993.00",
Commercial Services,Housing & NuPlace,WDAF,Capital Expenditure,Expenditure on loans & other financial assistance,DMW ENVIRONMENTAL SAFETY LTD,06/07/2016,150.00,
Commercial Services,Housing & NuPlace,WDAF,Capital Expenditure,Expenditure on loans & other financial assistance,MARTIN EVANS CONSTRUCTION LTD,06/07/2016,"1,785.94",
Commercial Services,Housing & NuPlace,WDAF,Capital Expenditure,Expenditure on loans & other financial assistance,THREE PINES BUILDING CO LTD,06/07/2016,"3,963.13",
Commercial Services,Housing & NuPlace,WDAF,Capital Expenditure,Expenditure on loans & other financial assistance,STANNAH LIFT SERVICES LTD,06/07/2016,"4,970.00",
Commercial Services,Housing & NuPlace,WDAF,Capital Expenditure,Expenditure on loans & other financial assistance,Carillion Energy Services Ltd,21/07/2016,604.99,
Commercial Services,Housing & NuPlace,WDAF,Capital Expenditure,Expenditure on loans & other financial assistance,Dolphin Lifts,06/07/2016,"2,200.00",
Commercial Services,Housing & NuPlace,WDAF,Capital Expenditure,Expenditure on loans & other financial assistance,REDACTED PERSONAL INFORMATION ,07/07/2016,850.00,
Commercial Services,Housing & NuPlace,WDAF,Capital Expenditure,Expenditure on loans & other financial assistance,Total Flooring,06/07/2016,269.50,
Commercial Services,Housing & NuPlace,WDAF,Capital Expenditure,Expenditure on loans & other financial assistance,STANNAH LIFT SERVICES LTD,18/07/2016,"6,074.63",
Commercial Services,Housing & NuPlace,WDAF,Capital Expenditure,Expenditure on loans & other financial assistance,STANNAH LIFT SERVICES LTD,21/07/2016,"2,237.00",
Commercial Services,Housing & NuPlace,WDAF,Capital Expenditure,Expenditure on loans & other financial assistance,THE WREKIN HOUSING TRUST (INVOICES ONLY),21/07/2016,"1,857.72",
Commercial Services,Housing & NuPlace,WDGD,Capital Expenditure,Expenditure on loans & other financial assistance,Carillion Energy Services Ltd,21/07/2016,"25,550.60",
Commercial Services,Housing & NuPlace,WDAF,Capital Expenditure,Expenditure on loans & other financial assistance,THE WREKIN HOUSING TRUST (INVOICES ONLY),21/07/2016,"1,600.00",
Commercial Services,Housing & NuPlace,WDAF,Capital Expenditure,Expenditure on loans & other financial assistance,REDACTED PERSONAL INFORMATION ,07/07/2016,"4,619.64",
Commercial Services,Housing & NuPlace,WDAF,Capital Expenditure,Expenditure on loans & other financial assistance,STANNAH LIFT SERVICES LTD,21/07/2016,"2,013.00",
Commercial Services,ICT,WCAG,Capital Expenditure,Payments to Contractor,NORTHGATEARINSO UK LTD,04/07/2016,"2,381.45",
Commercial Services,ICT,WCAG,Capital Expenditure,Payments to Contractor,NORTHGATEARINSO UK LTD,19/07/2016,"4,000.00",
Commercial Services,ICT,WCAG,Capital Expenditure,Computer Hardware,WREKIN SERVICES LTD,26/07/2016,260.00,
Commercial Services,ICT,WCAG,Capital Expenditure,Computer Hardware,WREKIN SERVICES LTD,26/07/2016,140.00,
Commercial Services,ICT,WCAG,Capital Expenditure,Computer Hardware,YOTTA,04/07/2016,"13,096.00",
Commercial Services,ICT,WCAG,Capital Expenditure,Payments to Contractor,NORTHGATEARINSO UK LTD,04/07/2016,"1,886.00",
Commercial Services,ICT,WCAG,Capital Expenditure,Computer Hardware,YOTTA,04/07/2016,"6,570.00",
Commercial Services,ICT,WCAG,Capital Expenditure,Computer Hardware,YOTTA,04/07/2016,"2,960.00",
Commercial Services,ICT,WCAG,Capital Expenditure,Computer Hardware,YOTTA,04/07/2016,"4,480.00",
Commercial Services,ICT,WCAG,Capital Expenditure,Computer Hardware,YOTTA,04/07/2016,"18,300.00",
Commercial Services,ICT,WCAG,Capital Expenditure,Computer Hardware,YOTTA,04/07/2016,"2,580.00",
Commercial Services,ICT,CBAG,Supplies & Services,Equipment - Purchase,WREKIN SERVICES LTD,21/07/2016,160.00,
Commercial Services,ICT,CBAG,Supplies & Services,Mobile Phones,EE LTD AIRTIME,05/07/2016,299.76,
Commercial Services,ICT,CBAH,Supplies & Services,Comp Hardware (Purch / Hire),SPECIALIST COMPUTERS CENTRES PLC,15/07/2016,"4,438.08",
Commercial Services,ICT,CBAL,Supplies & Services,Stationery,PREMIER PAPER GROUP LTD,18/07/2016,103.50,
Commercial Services,ICT,CBAL,Supplies & Services,Stationery,PREMIER PAPER GROUP LTD,18/07/2016,568.05,
Commercial Services,ICT,CBAL,Supplies & Services,Stationery,PREMIER PAPER GROUP LTD,18/07/2016,103.50,
Commercial Services,ICT,CBAG,Supplies & Services,Mobile Phones,EE LTD AIRTIME,05/07/2016,"2,361.98",
Commercial Services,ICT,CBAG,Supplies & Services,Mobile Phones,EE LTD AIRTIME,05/07/2016,"15,784.66",
Commercial Services,ICT,CBAL,Supplies & Services,Stationery,PREMIER PAPER GROUP LTD,08/07/2016,361.05,
Commercial Services,ICT,CBAL,Supplies & Services,Stationery,PREMIER PAPER GROUP LTD,08/07/2016,517.50,
Commercial Services,ICT,CBAL,Supplies & Services,Stationery,PREMIER PAPER GROUP LTD,08/07/2016,310.50,
Commercial Services,ICT,CBAR,Supplies & Services,Comp Hardware (Purch / Hire),EUROPEAN ELECTRONIQUE LTD,14/07/2016,"2,775.00",
Commercial Services,ICT,CBAR,Supplies & Services,Comp Hardware (Purch / Hire),EUROPEAN ELECTRONIQUE LTD,14/07/2016,104.04,
Commercial Services,ICT,CBAR,Supplies & Services,Comp Hardware (Purch / Hire),EUROPEAN ELECTRONIQUE LTD,04/07/2016,181.74,
Commercial Services,ICT,CBAG,Supplies & Services,Equipment - Purchase,WREKIN SERVICES LTD,21/07/2016,545.00,
Commercial Services,ICT,CBAG,Supplies & Services,Equipment - Purchase,WREKIN SERVICES LTD,21/07/2016,154.84,
Commercial Services,ICT,CBAG,Supplies & Services,Equipment - Purchase,WREKIN SERVICES LTD,21/07/2016,600.00,
Commercial Services,ICT,CBAG,Supplies & Services,Equipment - Purchase,WREKIN SERVICES LTD,21/07/2016,112.00,
Commercial Services,ICT,CBAJ,Supplies & Services,Comp Software (Purch / Hire),UNIT4 BUSINESS SOFTWARE LTD,04/07/2016,"45,263.37",
Commercial Services,ICT,CBAJ,Supplies & Services,Computer Hardware (Maint),ESTEEM SYSTEMS PLC,29/07/2016,"3,155.00",
Commercial Services,ICT,CBAJ,Supplies & Services,Computer Hardware (Maint),EUROPEAN ELECTRONIQUE LTD,04/07/2016,"1,963.86",
Commercial Services,ICT,CBAG,Supplies & Services,Equipment - Purchase,PP ELECTRICAL SERVICES (Shropshire) Ltd,22/07/2016,997.00,
Commercial Services,ICT,CBAR,Supplies & Services,Comp Hardware (Purch / Hire),EUROPEAN ELECTRONIQUE LTD,04/07/2016,176.00,
Commercial Services,ICT,CBAR,Supplies & Services,Comp Hardware (Purch / Hire),EUROPEAN ELECTRONIQUE LTD,04/07/2016,150.00,
Commercial Services,ICT,CBAR,Supplies & Services,Comp Hardware (Purch / Hire),EUROPEAN ELECTRONIQUE LTD,04/07/2016,150.00,
Commercial Services,ICT,CBAG,Supplies & Services,Mobile Phones,EE LTD AIRTIME,05/07/2016,"5,953.84",
Commercial Services,ICT,CBAG,Supplies & Services,Equipment - Purchase,WREKIN SERVICES LTD,26/07/2016,130.00,
Commercial Services,ICT,CBAJ,Premises-Related Expenditure,R&M -Building Other,GBE Fire & Security,15/07/2016,"8,132.70",
Commercial Services,ICT,CBAG,Supplies & Services,Equipment - Purchase,WREKIN SERVICES LTD,26/07/2016,500.00,
Commercial Services,ICT,CBAG,Supplies & Services,Equipment - Purchase,WREKIN SERVICES LTD,26/07/2016,175.00,
Commercial Services,ICT,CBAJ,Supplies & Services,Comp Hardware (Purch / Hire),IDN SUPPLIES LTD,04/07/2016,350.00,
Commercial Services,ICT,CBAH,Supplies & Services,Comp Hardware (Purch / Hire),SPECIALIST COMPUTERS CENTRES PLC,27/07/2016,438.94,
Commercial Services,ICT,CBAJ,Supplies & Services,Comp Hardware (Purch / Hire),IDN SUPPLIES LTD,04/07/2016,"7,000.00",
Commercial Services,ICT,CBAJ,Supplies & Services,Telecomms,Airband Community Internet,15/07/2016,250.00,
Commercial Services,ICT,CBAJ,Supplies & Services,Comp Software (Purch / Hire),PHOENIX SOFTWARE LTD,29/07/2016,"5,275.39",
Commercial Services,ICT,CBAH,Supplies & Services,Comp Software (Purch / Hire),PHOENIX SOFTWARE LTD,29/07/2016,"12,982.95",
Commercial Services,ICT,CBAG,Supplies & Services,Equipment - Purchase,WREKIN SERVICES LTD,21/07/2016,250.82,
Commercial Services,ICT,CBAG,Supplies & Services,Equipment - Purchase,EUROPEAN ELECTRONIQUE LTD,04/07/2016,950.10,
Commercial Services,ICT,CBAG,Supplies & Services,Equipment - Purchase,EUROPEAN ELECTRONIQUE LTD,04/07/2016,659.30,
Commercial Services,ICT,CBAH,Supplies & Services,Comp Software (Purch / Hire),Bromcom Computers Plc,19/07/2016,"5,652.31",
Commercial Services,ICT,CBAH,Supplies & Services,Telecomms,JANET (UK),18/07/2016,"13,673.50",
Commercial Services,ICT,CBAJ,Supplies & Services,Telecomms,JANET (UK),18/07/2016,13673.5,
Commercial Services,ICT,CBAJ,Supplies & Services,Telecomms,EUROPEAN ELECTRONIQUE LTD,04/07/2016,943.88,
Commercial Services,ICT,CBAJ,Supplies & Services,Telecomms,CAPITA IT SERVICES LIMITED,04/07/2016,"-12,661.88",
Commercial Services,ICT,CBAJ,Supplies & Services,Telecomms,EUROPEAN ELECTRONIQUE LTD,04/07/2016,484.10,
Commercial Services,ICT,CBAG,Supplies & Services,Equipment - Purchase,EUROPEAN ELECTRONIQUE LTD,04/07/2016,959.09,
Commercial Services,ICT,CBAJ,Supplies & Services,Telecomms,EUROPEAN ELECTRONIQUE LTD,04/07/2016,138.00,
Commercial Services,ICT,CBAG,Supplies & Services,Equipment - Purchase,EUROPEAN ELECTRONIQUE LTD,04/07/2016,226.60,
Commercial Services,ICT,CBAJ,Supplies & Services,Telecomms,EUROPEAN ELECTRONIQUE LTD,04/07/2016,130.00,
Commercial Services,ICT,CBAF,Supplies & Services,Telecomms,Airband Community Internet,15/07/2016,295.00,
Commercial Services,ICT,CBAF,Supplies & Services,Telecomms,Airband Community Internet,15/07/2016,295.00,
Commercial Services,ICT,CBAF,Supplies & Services,Telecomms,Airband Community Internet,15/07/2016,295.00,
Commercial Services,ICT,CBAF,Supplies & Services,Telecomms,Airband Community Internet,15/07/2016,790.00,
Commercial Services,ICT,CBAJ,Supplies & Services,Telecomms,Airband Community Internet,15/07/2016,250.00,
Commercial Services,ICT,CBAJ,Supplies & Services,Comp Software (Purch / Hire),PHOENIX SOFTWARE LTD,29/07/2016,"12,982.95",
Commercial Services,ICT,CBAH,Supplies & Services,Comp Software (Purch / Hire),Bromcom Computers Plc,05/07/2016,"92,588.12",
Commercial Services,ICT,CBAF,Supplies & Services,Telecomms,Airband Community Internet,15/07/2016,295.00,
Commercial Services,ICT,CBAF,Supplies & Services,Telecomms,Airband Community Internet,15/07/2016,295.00,
Commercial Services,ICT,CBAF,Supplies & Services,Telecomms,Airband Community Internet,15/07/2016,295.00,
Commercial Services,ICT,CBAF,Supplies & Services,Mobile Phones,Airband Community Internet,15/07/2016,295,
Commercial Services,ICT,CBAG,Supplies & Services,Mobile Phones,EE LTD AIRTIME,05/07/2016,"1,144.50",
Commercial Services,ICT,CBAG,Supplies & Services,Mobile Phones,EE LTD AIRTIME,05/07/2016,732.63,
Commercial Services,ICT,CBAG,Supplies & Services,Mobile Phones,EE LTD AIRTIME,05/07/2016,"3,074.09",
Commercial Services,ICT,CBAF,Supplies & Services,Telecomms,Airband Community Internet,15/07/2016,295.00,
Commercial Services,ICT,CBAG,Supplies & Services,Mobile Phones,EE LTD AIRTIME,05/07/2016,779.91,
Commercial Services,ICT,CBAH,Supplies & Services,Comp Software (Purch / Hire),Bromcom Computers Plc,19/07/2016,"1,982.08",
Commercial Services,ICT,CBAG,Supplies & Services,Equipment - Purchase,WREKIN SERVICES LTD,21/07/2016,300.00,
Commercial Services,Policy & Strategy,MMAA,Supplies & Services,Advertising,CAN Digital Solutions Ltd T/A Council Advertising Network,26/07/2016,831.8,
Commercial Services,Policy & Strategy,MPAC,Supplies & Services,Subscriptions,Oldham Council,28/07/2016,"4,312.00",
Commercial Services,Policy & Strategy,MPAE,Premises-Related Expenditure,Electricity,West Mercia Energy (WME),29/07/2016,114.72,
Commercial Services,Property & Design (BiT),WCAY,Capital Expenditure,Payments to Contractor,SENATOR INTERNATIONAL,14/07/2016,"1,429.98",
Commercial Services,Property & Design (BiT),WCAY,Capital Expenditure,Payments to Contractor,SENATOR INTERNATIONAL,14/07/2016,744.00,
Commercial Services,Property & Design (BiT),WCBE,Capital Expenditure,Payments to Contractor,GREEN SKIPS LTD,15/07/2016,340.00,
Commercial Services,Property & Design (BiT),WCAY,Capital Expenditure,Payments to Contractor,JONES & HAMPTON LTD,08/07/2016,900.00,
Commercial Services,Property & Design (BiT),WCAY,Capital Expenditure,Payments to Contractor,HARROW GREEN LIMITED,08/07/2016,565.90,
Commercial Services,Property & Design (BiT),WCAY,Capital Expenditure,Payments to Contractor,HARROW GREEN LIMITED,08/07/2016,482.30,
Commercial Services,Property & Design (BiT),WCAY,Capital Expenditure,Payments to Contractor,SENATOR INTERNATIONAL,08/07/2016,"1,769.72",
Commercial Services,Property & Design (BiT),WCHC,Capital Expenditure,Payments to Contractor,WREKIN SERVICES LTD,21/07/2016,240.00,
Commercial Services,Property & Design (BiT),WCHC,Capital Expenditure,Payments to Contractor,WREKIN SERVICES LTD,21/07/2016,995.00,
Commercial Services,Property & Design (BiT),WCAY,Capital Expenditure,Other Capital Expenditure,WREKIN SERVICES LTD,21/07/2016,160.00,
Commercial Services,Property & Design (BiT),WCBA,Capital Expenditure,Payments to Contractor,ADT FIRE & SECURITY PLC,13/07/2016,5067,
Commercial Services,Property & Design (BiT),WCBE,Capital Expenditure,Payments to Contractor,VPS (UK) LTD,14/07/2016,169.08,
Commercial Services,Property & Design (BiT),WDSQ,Capital Expenditure,Payments to Contractor,FITZGERALD CONTRACTORS LTD,29/07/2016,"10,584.74",
Commercial Services,Property & Design (BiT),WDSQ,Capital Expenditure,Payments to Contractor,FITZGERALD CONTRACTORS LTD,01/07/2016,20951.41,
Commercial Services,Property & Design (BiT),COAP,Supplies & Services,Equipment - Hire,PHS GROUP LTD,14/07/2016,312.73,
Commercial Services,Property & Design (BiT),COAP,Premises-Related Expenditure,Electricity,West Mercia Energy (WME),29/07/2016,4040.36,
Commercial Services,Property & Design (BiT),COAE,Premises-Related Expenditure,Electricity,West Mercia Energy (WME),29/07/2016,797.45,
Commercial Services,Property & Design (BiT),COAP,Premises-Related Expenditure,Electricity,West Mercia Energy (WME),29/07/2016,"3,872.34",
Commercial Services,Property & Design (BiT),COAP,Premises-Related Expenditure,Electricity,West Mercia Energy (WME),29/07/2016,"1,859.67",
Commercial Services,Property & Design (BiT),COAP,Premises-Related Expenditure,Electricity,West Mercia Energy (WME),29/07/2016,"3,681.23",
Commercial Services,Property & Design (BiT),COAE,Premises-Related Expenditure,Electricity,BRITISH GAS BUSINESS,21/07/2016,1449.58,
Commercial Services,Property & Design (BiT),COAP,Premises-Related Expenditure,Service Contracts,Churches Fire Security Ltd,05/07/2016,147.05,
Commercial Services,Property & Design (BiT),COAP,Premises-Related Expenditure,Gas,West Mercia Energy (WME),04/07/2016,378.22,
Commercial Services,Property & Design (BiT),COAP,Premises-Related Expenditure,Service Contracts,PP ELECTRICAL SERVICES (Shropshire) Ltd,08/07/2016,"1,145.00",
Commercial Services,Property & Design (BiT),COAP,Premises-Related Expenditure,Service Contracts,HYDRO-TECH ENVIRONMENTAL LLP,05/07/2016,125.00,
Commercial Services,Property & Design (BiT),COAP,Premises-Related Expenditure,Service Contracts,Churches Fire Security Ltd,05/07/2016,329.80,
Commercial Services,Property & Design (BiT),COAG,Premises-Related Expenditure,Service Contracts,Churches Fire Security Ltd,05/07/2016,159.79,
Commercial Services,Property & Design (BiT),COAP,Premises-Related Expenditure,Service Contracts,AQUALOGIC (WC) LTD,05/07/2016,146.10,
Commercial Services,Property & Design (BiT),COAG,Premises-Related Expenditure,Service Contracts,Churches Fire Security Ltd,07/07/2016,158.29,
Commercial Services,Property & Design (BiT),COAG,Premises-Related Expenditure,Service Contracts,Churches Fire Security Ltd,07/07/2016,217.09,
Commercial Services,Property & Design (BiT),COAE,Premises-Related Expenditure,Service Contracts,SECURITY WISE LTD,07/07/2016,133.75,
Commercial Services,Property & Design (BiT),COAE,Premises-Related Expenditure,Service Contracts,SECURITY WISE LTD,07/07/2016,127.50,
Commercial Services,Property & Design (BiT),COAP,Premises-Related Expenditure,Service Contracts,Zumtobel,07/07/2016,2893,
Commercial Services,Property & Design (BiT),COAE,Premises-Related Expenditure,Service Contracts,HYDRO-TECH ENVIRONMENTAL LLP,07/07/2016,150.00,
Commercial Services,Property & Design (BiT),COAP,Premises-Related Expenditure,Service Contracts,HYDRO-TECH ENVIRONMENTAL LLP,07/07/2016,195.00,
Commercial Services,Property & Design (BiT),COAP,Premises-Related Expenditure,Service Contracts,HYDRO-TECH ENVIRONMENTAL LLP,07/07/2016,150.00,
Commercial Services,Property & Design (BiT),COAE,Premises-Related Expenditure,Service Contracts,Churches Fire Security Ltd,07/07/2016,677.28,
Commercial Services,Property & Design (BiT),COAP,Premises-Related Expenditure,Service Contracts,Churches Fire Security Ltd,07/07/2016,107.74,
Commercial Services,Property & Design (BiT),COAP,Premises-Related Expenditure,Service Contracts,Churches Fire Security Ltd,07/07/2016,170.70,
Commercial Services,Property & Design (BiT),COAP,Premises-Related Expenditure,Service Contracts,AVT COMMUNICATION SYSTEMS LTD,13/07/2016,179.07,
Commercial Services,Property & Design (BiT),COAP,Premises-Related Expenditure,Service Contracts,AGS AUTOMATIC DOORS LTD,07/07/2016,120.00,
Commercial Services,Property & Design (BiT),COAP,Premises-Related Expenditure,Electricity,BRITISH GAS BUSINESS,21/07/2016,134.42,
Commercial Services,Property & Design (BiT),COAP,Premises-Related Expenditure,Electricity,BRITISH GAS BUSINESS,21/07/2016,144.01,
Commercial Services,Property & Design (BiT),COAE,Premises-Related Expenditure,Service Contracts,AGS AUTOMATIC DOORS LTD,07/07/2016,120.00,
Commercial Services,Property & Design (BiT),COAP,Premises-Related Expenditure,Service Contracts,HYDRO-TECH ENVIRONMENTAL LLP,07/07/2016,490.00,
Commercial Services,Property & Design (BiT),COAG,Premises-Related Expenditure,Service Contracts,Churches Fire Security Ltd,05/07/2016,213.35,
Commercial Services,Property & Design (BiT),COAP,Premises-Related Expenditure,Service Contracts,HYDRO-TECH ENVIRONMENTAL LLP,07/07/2016,490.00,
Commercial Services,Property & Design (BiT),COAP,Premises-Related Expenditure,Service Contracts,OTIS LIMITED,05/07/2016,"2,902.00",
Commercial Services,Property & Design (BiT),COAK,Premises-Related Expenditure,Planned Repairs,JCE & SONS LTD,12/07/2016,246.00,
Commercial Services,Property & Design (BiT),COAK,Premises-Related Expenditure,Planned Repairs,Churches Fire Security Ltd,06/07/2016,158.30,
Commercial Services,Property & Design (BiT),COAK,Premises-Related Expenditure,Planned Repairs,TAYLORS MECHANICAL H & P SERVICES LTD,26/07/2016,141.52,
Commercial Services,Property & Design (BiT),COAT,Premises-Related Expenditure,R&M -Building Other,PROKILL UK LIMITED,14/07/2016,150.00,
Commercial Services,Property & Design (BiT),COAT,Premises-Related Expenditure,R&M -Building Other,REDACTED PERSONAL INFORMATION ,26/07/2016,103.94,
Commercial Services,Property & Design (BiT),COAP,Premises-Related Expenditure,Electricity,E.ON,21/07/2016,203.20,
Commercial Services,Property & Design (BiT),COAP,Premises-Related Expenditure,R&M -Building Other,PP ELECTRICAL SERVICES (Shropshire) Ltd,21/07/2016,"2,586.00",
Commercial Services,Property & Design (BiT),COAM,Premises-Related Expenditure,R&M -Building Other,JONES & HAMPTON LTD,20/07/2016,115.89,
Commercial Services,Property & Design (BiT),COAP,Premises-Related Expenditure,Electricity,BRITISH GAS SERVICES LTD   (CIS ONLY),21/07/2016,152.59,
Commercial Services,Property & Design (BiT),COAT,Premises-Related Expenditure,R&M -Building Other,JONES & HAMPTON LTD,08/07/2016,130,
Commercial Services,Property & Design (BiT),COAT,Premises-Related Expenditure,R&M -Building Other,QUICK SPIN DOMESTICS,08/07/2016,194.00,
Commercial Services,Property & Design (BiT),COAT,Premises-Related Expenditure,R&M -Building Other,George Birchall Limited,19/07/2016,288.42,
Commercial Services,Property & Design (BiT),COAT,Premises-Related Expenditure,R&M -Building Other,George Birchall Limited,19/07/2016,179.27,
Commercial Services,Property & Design (BiT),COAP,Premises-Related Expenditure,Electricity,BRITISH GAS SERVICES LTD   (CIS ONLY),21/07/2016,151.53,
Commercial Services,Property & Design (BiT),COAT,Premises-Related Expenditure,R&M -Building Other,JONES & HAMPTON LTD,06/07/2016,"1,194.00",
Commercial Services,Property & Design (BiT),COAK,Premises-Related Expenditure,Tenant Damage,PROKILL UK LIMITED,14/07/2016,350.00,
Commercial Services,Property & Design (BiT),COAP,Premises-Related Expenditure,Electricity,West Mercia Energy (WME),12/07/2016,155.30,
Commercial Services,Property & Design (BiT),COAP,Premises-Related Expenditure,Electricity,West Mercia Energy (WME),12/07/2016,148.21,
Commercial Services,Property & Design (BiT),COAP,Premises-Related Expenditure,Electricity,West Mercia Energy (WME),06/07/2016,105.58,
Commercial Services,Property & Design (BiT),COAP,Premises-Related Expenditure,Electricity,BRITISH GAS SERVICES LTD   (CIS ONLY),21/07/2016,157.77,
Commercial Services,Property & Design (BiT),COAP,Premises-Related Expenditure,Electricity,BRITISH GAS BUSINESS,21/07/2016,127.86,
Commercial Services,Property & Design (BiT),COAP,Premises-Related Expenditure,Electricity,BRITISH GAS SERVICES LTD   (CIS ONLY),21/07/2016,133.83,
Commercial Services,Property & Design (BiT),COAP,Premises-Related Expenditure,Electricity,West Mercia Energy (WME),29/07/2016,146.52,
Commercial Services,Property & Design (BiT),COAP,Premises-Related Expenditure,Electricity,West Mercia Energy (WME),29/07/2016,"5,644.46",
Commercial Services,Property & Design (BiT),COAP,Premises-Related Expenditure,Electricity,West Mercia Energy (WME),29/07/2016,490.82,
Commercial Services,Property & Design (BiT),COAP,Premises-Related Expenditure,Electricity,West Mercia Energy (WME),29/07/2016,"7,198.52",
Commercial Services,Property & Design (BiT),COAE,Premises-Related Expenditure,Electricity,West Mercia Energy (WME),29/07/2016,"2,446.19",
Commercial Services,Property & Design (BiT),COAP,Premises-Related Expenditure,Service Contracts,OTIS LIMITED,05/07/2016,125.00,
Commercial Services,Property & Design (BiT),COAP,Premises-Related Expenditure,Electricity,BRITISH GAS BUSINESS,21/07/2016,138.35,
Commercial Services,Property & Design (BiT),COAG,Premises-Related Expenditure,Service Contracts,George Birchall Limited,25/07/2016,107.00,
Commercial Services,Property & Design (BiT),COAP,Premises-Related Expenditure,Service Contracts,TAYLORS MECHANICAL H & P SERVICES LTD,21/07/2016,142.26,
Commercial Services,Property & Design (BiT),COAP,Premises-Related Expenditure,Service Contracts,TAYLORS MECHANICAL H & P SERVICES LTD,21/07/2016,378.64,
Commercial Services,Property & Design (BiT),COAP,Premises-Related Expenditure,Service Contracts,Lift Source (UK) Limited,19/07/2016,120.00,
Commercial Services,Property & Design (BiT),COAG,Premises-Related Expenditure,Service Contracts,REDACTED PERSONAL INFORMATION ,25/07/2016,206.09,
Commercial Services,Property & Design (BiT),COAP,Premises-Related Expenditure,Service Contracts,Clearstone Solutions Ltd,25/07/2016,114.00,
Commercial Services,Property & Design (BiT),COAP,Premises-Related Expenditure,Service Contracts,Clearstone Solutions Ltd,25/07/2016,299.00,
Commercial Services,Property & Design (BiT),COAP,Premises-Related Expenditure,Service Contracts,Clearstone Solutions Ltd,25/07/2016,156.00,
Commercial Services,Property & Design (BiT),COAP,Premises-Related Expenditure,Service Contracts,George Birchall Limited,22/07/2016,131.50,
Commercial Services,Property & Design (BiT),COAG,Premises-Related Expenditure,Service Contracts,REDACTED PERSONAL INFORMATION ,22/07/2016,360.04,
Commercial Services,Property & Design (BiT),COAP,Premises-Related Expenditure,Service Contracts,George Birchall Limited,25/07/2016,537.05,
Commercial Services,Property & Design (BiT),COAG,Premises-Related Expenditure,Service Contracts,BRADLEY INDUSTRIAL SERVICES,25/07/2016,241.50,
Commercial Services,Property & Design (BiT),COAG,Premises-Related Expenditure,Service Contracts,BRADLEY INDUSTRIAL SERVICES,25/07/2016,111.5,
Commercial Services,Property & Design (BiT),COAG,Premises-Related Expenditure,Service Contracts,George Birchall Limited,25/07/2016,122,
Commercial Services,Property & Design (BiT),COAP,Premises-Related Expenditure,Service Contracts,George Birchall Limited,25/07/2016,418,
Commercial Services,Property & Design (BiT),COAP,Premises-Related Expenditure,Service Contracts,George Birchall Limited,22/07/2016,150.59,
Commercial Services,Property & Design (BiT),COAP,Premises-Related Expenditure,Service Contracts,PP ELECTRICAL SERVICES (Shropshire) Ltd,29/07/2016,435.20,
Commercial Services,Property & Design (BiT),COAG,Premises-Related Expenditure,Service Contracts,George Birchall Limited,29/07/2016,122.00,
Commercial Services,Property & Design (BiT),COAP,Premises-Related Expenditure,Service Contracts,Churches Fire Security Ltd,29/07/2016,307.85,
Commercial Services,Property & Design (BiT),COAP,Premises-Related Expenditure,Service Contracts,Churches Fire Security Ltd,29/07/2016,295.75,
Commercial Services,Property & Design (BiT),COAP,Premises-Related Expenditure,Service Contracts,Churches Fire Security Ltd,29/07/2016,146.05,
Commercial Services,Property & Design (BiT),COAP,Premises-Related Expenditure,Service Contracts,George Birchall Limited,25/07/2016,127.50,
Commercial Services,Property & Design (BiT),COAG,Premises-Related Expenditure,Service Contracts,George Birchall Limited,29/07/2016,153.00,
Commercial Services,Property & Design (BiT),COAP,Premises-Related Expenditure,Service Contracts,HANOVIA LIMITED,29/07/2016,"1,076.95",
Commercial Services,Property & Design (BiT),COAE,Premises-Related Expenditure,Service Contracts,PP ELECTRICAL SERVICES (Shropshire) Ltd,29/07/2016,482.80,
Commercial Services,Property & Design (BiT),COAE,Premises-Related Expenditure,Service Contracts,PP ELECTRICAL SERVICES (Shropshire) Ltd,29/07/2016,453.90,
Commercial Services,Property & Design (BiT),COAG,Premises-Related Expenditure,Service Contracts,George Birchall Limited,29/07/2016,136.00,
Commercial Services,Property & Design (BiT),COAE,Premises-Related Expenditure,Service Contracts,COOL SERVICES LTD,15/07/2016,195.00,
Commercial Services,Property & Design (BiT),COAP,Premises-Related Expenditure,Service Contracts,AGS AUTOMATIC DOORS LTD,14/07/2016,105.00,
Commercial Services,Property & Design (BiT),COAP,Premises-Related Expenditure,Service Contracts,WINDOW & DOOR CONTRACT SERVICES,14/07/2016,726.40,
Commercial Services,Property & Design (BiT),COAG,Premises-Related Expenditure,Service Contracts,George Birchall Limited,22/07/2016,153.00,
Commercial Services,Property & Design (BiT),COAP,Premises-Related Expenditure,Electricity,West Mercia Energy (WME),18/07/2016,445.43,
Commercial Services,Property & Design (BiT),COAG,Premises-Related Expenditure,Service Contracts,BRADLEY INDUSTRIAL SERVICES,19/07/2016,282.85,
Commercial Services,Property & Design (BiT),COAP,Premises-Related Expenditure,Service Contracts,Churches Fire Security Ltd,05/07/2016,195.74,
Commercial Services,Property & Design (BiT),COAP,Premises-Related Expenditure,Service Contracts,HOUSE OF PLAY LTD,05/07/2016,397.50,
Commercial Services,Property & Design (BiT),COAE,Premises-Related Expenditure,Service Contracts,TURNER ENGINE POWERED SERVICES LTD,05/07/2016,130.00,
Commercial Services,Property & Design (BiT),COAP,Premises-Related Expenditure,Service Contracts,HYDRO-TECH ENVIRONMENTAL LLP,05/07/2016,360.00,
Commercial Services,Property & Design (BiT),COAP,Premises-Related Expenditure,Service Contracts,JCE & SONS LTD,05/07/2016,142.00,
Commercial Services,Property & Design (BiT),COAP,Premises-Related Expenditure,Service Contracts,HYDRO-TECH ENVIRONMENTAL LLP,05/07/2016,125.00,
Commercial Services,Property & Design (BiT),COAP,Premises-Related Expenditure,Service Contracts,Churches Fire Security Ltd,05/07/2016,590.00,
Commercial Services,Property & Design (BiT),COAP,Premises-Related Expenditure,Service Contracts,AQUALOGIC (WC) LTD,05/07/2016,156.60,
Commercial Services,Property & Design (BiT),COAP,Premises-Related Expenditure,Service Contracts,AGS AUTOMATIC DOORS LTD,05/07/2016,470.00,
Commercial Services,Property & Design (BiT),COAP,Premises-Related Expenditure,Service Contracts,TAYLORS MECHANICAL H & P SERVICES LTD,05/07/2016,587.40,
Commercial Services,Property & Design (BiT),COAP,Premises-Related Expenditure,Service Contracts,Churches Fire Security Ltd,05/07/2016,127.75,
Commercial Services,Property & Design (BiT),COAG,Premises-Related Expenditure,Service Contracts,BRADLEY INDUSTRIAL SERVICES,19/07/2016,319.85,
Commercial Services,Property & Design (BiT),COAG,Premises-Related Expenditure,Service Contracts,BRADLEY INDUSTRIAL SERVICES,19/07/2016,289.85,
Commercial Services,Property & Design (BiT),COAP,Premises-Related Expenditure,Service Contracts,HYDRO-TECH ENVIRONMENTAL LLP,05/07/2016,240.00,
Commercial Services,Property & Design (BiT),COAE,Premises-Related Expenditure,Service Contracts,Churches Fire Security Ltd,05/07/2016,145.15,
Commercial Services,Property & Design (BiT),COAP,Premises-Related Expenditure,Service Contracts,Churches Fire Security Ltd,05/07/2016,168.85,
Commercial Services,Property & Design (BiT),COAP,Premises-Related Expenditure,Service Contracts,Churches Fire Security Ltd,05/07/2016,"1,195.00",
Commercial Services,Property & Design (BiT),COAP,Premises-Related Expenditure,Service Contracts,COOL SERVICES LTD,19/07/2016,304.55,
Commercial Services,Property & Design (BiT),COAP,Premises-Related Expenditure,Service Contracts,COOL SERVICES LTD,19/07/2016,409.20,
Commercial Services,Property & Design (BiT),COAP,Premises-Related Expenditure,Service Contracts,JCE & SONS LTD,19/07/2016,"1,616.00",
Commercial Services,Property & Design (BiT),COAG,Premises-Related Expenditure,Service Contracts,BRADLEY INDUSTRIAL SERVICES,19/07/2016,296.85,
Commercial Services,Property & Design (BiT),COAG,Premises-Related Expenditure,Service Contracts,BRADLEY INDUSTRIAL SERVICES,19/07/2016,283.00,
Commercial Services,Property & Design (BiT),COAG,Premises-Related Expenditure,Service Contracts,BRADLEY INDUSTRIAL SERVICES,19/07/2016,462.35,
Commercial Services,Property & Design (BiT),COAE,Premises-Related Expenditure,Service Contracts,COOL SERVICES LTD,19/07/2016,259.00,
Commercial Services,Property & Design (BiT),COAP,Premises-Related Expenditure,Service Contracts,COOL SERVICES LTD,19/07/2016,304.55,
Commercial Services,Property & Design (BiT),COAG,Premises-Related Expenditure,Service Contracts,COOL SERVICES LTD,19/07/2016,304.55,
Commercial Services,Property & Design (BiT),COAP,Premises-Related Expenditure,Service Contracts,COOL SERVICES LTD,19/07/2016,325.81,
Commercial Services,Property & Design (BiT),COAP,Premises-Related Expenditure,Service Contracts,COOL SERVICES LTD,19/07/2016,355.00,
Commercial Services,Property & Design (BiT),COAP,Premises-Related Expenditure,Service Contracts,COOL SERVICES LTD,19/07/2016,"1,270.11",
Commercial Services,Property & Design (BiT),COAP,Premises-Related Expenditure,Service Contracts,OTIS LIMITED,05/07/2016,"9,545.00",
Commercial Services,Property & Design (BiT),COAP,Premises-Related Expenditure,Service Contracts,RCS ROOFING CONSTRUCTION SERVICES LTD,14/07/2016,563.86,
Commercial Services,Property & Design (BiT),COAK,Premises-Related Expenditure,Leasehold Rents,REDACTED PERSONAL INFORMATION ,15/07/2016,525.00,
Commercial Services,Property & Design (BiT),COAK,Premises-Related Expenditure,Leasehold Rents,REDACTED PERSONAL INFORMATION ,15/07/2016,396.00,
Commercial Services,Property & Design (BiT),COAK,Premises-Related Expenditure,Leasehold Rents,CHURCHILL PL LIMITED,15/07/2016,544.50,
Commercial Services,Property & Design (BiT),COAK,Premises-Related Expenditure,Leasehold Rents,CHURCHILL PL LIMITED,15/07/2016,445.50,
Commercial Services,Property & Design (BiT),COAK,Premises-Related Expenditure,Leasehold Rents,CHURCHILL PL LIMITED,15/07/2016,445.5,
Commercial Services,Property & Design (BiT),COAK,Premises-Related Expenditure,Leasehold Rents,CHURCHILL PL LIMITED,15/07/2016,445.50,
Commercial Services,Property & Design (BiT),COAK,Premises-Related Expenditure,Leasehold Rents,THE WREKIN HOUSING TRUST (INVOICES ONLY),15/07/2016,"1,680.38",
Commercial Services,Property & Design (BiT),COAK,Premises-Related Expenditure,Leasehold Rents,REDACTED PERSONAL INFORMATION ,15/07/2016,495.00,
Commercial Services,Property & Design (BiT),COAK,Premises-Related Expenditure,Leasehold Rents,REDACTED PERSONAL INFORMATION ,15/07/2016,519.75,
Commercial Services,Property & Design (BiT),COAM,Premises-Related Expenditure,Leasehold Rents,BOURNVILLE VILLAGE TRUST,15/07/2016,"2,850.00",
Commercial Services,Property & Design (BiT),COAM,Premises-Related Expenditure,Leasehold Rents,WREKIN HOUSING TRUST (CARE SUPPORT PYMTS ONLY),15/07/2016,"1,249.82",
Commercial Services,Property & Design (BiT),COAM,Premises-Related Expenditure,Leasehold Rents,WREKIN HOUSING TRUST (CARE SUPPORT PYMTS ONLY),15/07/2016,"1,449.24",
Commercial Services,Property & Design (BiT),COAM,Premises-Related Expenditure,Leasehold Rents,WREKIN HOUSING TRUST (CARE SUPPORT PYMTS ONLY),15/07/2016,"2,015.91",
Commercial Services,Property & Design (BiT),COAM,Premises-Related Expenditure,Leasehold Rents,WREKIN HOUSING TRUST (CARE SUPPORT PYMTS ONLY),15/07/2016,"1,345.37",
Commercial Services,Property & Design (BiT),COAM,Premises-Related Expenditure,Leasehold Rents,WREKIN HOUSING TRUST (CARE SUPPORT PYMTS ONLY),15/07/2016,"1,983.67",
Commercial Services,Property & Design (BiT),COAK,Premises-Related Expenditure,Leasehold Rents,REDACTED PERSONAL INFORMATION ,15/07/2016,416.39,
Commercial Services,Property & Design (BiT),COAM,Premises-Related Expenditure,Leasehold Rents,BOURNVILLE VILLAGE TRUST,15/07/2016,"1,800.00",
Commercial Services,Property & Design (BiT),COAK,Premises-Related Expenditure,Leasehold Rents,CHURCHILL PL LIMITED,15/07/2016,445.50,
Commercial Services,Property & Design (BiT),COAK,Premises-Related Expenditure,Leasehold Rents,REDACTED PERSONAL INFORMATION ,15/07/2016,396.00,
Commercial Services,Property & Design (BiT),COAK,Premises-Related Expenditure,Leasehold Rents,CHURCHILL PL LIMITED,15/07/2016,445.50,
Commercial Services,Property & Design (BiT),COAK,Premises-Related Expenditure,Leasehold Rents,REDACTED PERSONAL INFORMATION ,15/07/2016,450.45,
Commercial Services,Property & Design (BiT),COAP,Premises-Related Expenditure,Other Energy Costs,Energy Merchants Ltd,21/07/2016,393.53,
Commercial Services,Property & Design (BiT),COAP,Premises-Related Expenditure,Solid Fuel,MIDLANDS WOOD FUEL SUPPLY LTD,13/07/2016,124.23,
Commercial Services,Property & Design (BiT),COAP,Premises-Related Expenditure,Solid Fuel,MIDLANDS WOOD FUEL SUPPLY LTD,13/07/2016,289.88,
Commercial Services,Property & Design (BiT),COAP,Premises-Related Expenditure,Gas,West Mercia Energy (WME),04/07/2016,530.32,
Commercial Services,Property & Design (BiT),COAE,Premises-Related Expenditure,Gas,West Mercia Energy (WME),04/07/2016,411.95,
Commercial Services,Property & Design (BiT),COAE,Premises-Related Expenditure,Gas,West Mercia Energy (WME),04/07/2016,136.38,
Commercial Services,Property & Design (BiT),COAK,Premises-Related Expenditure,Gas,West Mercia Energy (WME),04/07/2016,327.02,
Commercial Services,Property & Design (BiT),COAP,Premises-Related Expenditure,Gas,West Mercia Energy (WME),04/07/2016,103.05,
Commercial Services,Property & Design (BiT),COAP,Premises-Related Expenditure,Gas,West Mercia Energy (WME),18/07/2016,859.47,
Commercial Services,Property & Design (BiT),COAK,Premises-Related Expenditure,Water Rates,SEVERN TRENT WATER LTD,06/07/2016,223.05,
Commercial Services,Property & Design (BiT),COAP,Premises-Related Expenditure,Gas,West Mercia Energy (WME),18/07/2016,107.30,
Commercial Services,Property & Design (BiT),CAAG,Supplies & Services,Printing - Other,STANFORD MARSH FINANCE LTD,12/07/2016,187.92,
Commercial Services,Property & Design (BiT),COAP,Supplies & Services,Security Services,BUSINESS WATCH GUARDING LIMITED,12/07/2016,413.70,
Commercial Services,Property & Design (BiT),COAP,Supplies & Services,Security Services,RAPID SECURE LTD,29/07/2016,225.00,
Commercial Services,Property & Design (BiT),COAP,Supplies & Services,Security Services,BUSINESS WATCH GUARDING LIMITED,12/07/2016,346.52,
Commercial Services,Property & Design (BiT),COAP,Supplies & Services,Security Services,BUSINESS WATCH GUARDING LIMITED,12/07/2016,668.54,
Commercial Services,Property & Design (BiT),COAP,Supplies & Services,Security Services,LEISURE SEC PLC,12/07/2016,150.00,
Commercial Services,Property & Design (BiT),COAP,Supplies & Services,Security Services,LEISURE SEC PLC,12/07/2016,150.00,
Commercial Services,Property & Design (BiT),COAP,Premises-Related Expenditure,Contributions to Premises-related Provisions,WEST MERCIA SUPPLIES Catalogue Supplies (None Utility),21/07/2016,263.18,
Commercial Services,Property & Design (BiT),COAP,Premises-Related Expenditure,Contributions to Premises-related Provisions,WEST MERCIA SUPPLIES Catalogue Supplies (None Utility),14/07/2016,245.97,
Commercial Services,Property & Design (BiT),COAP,Premises-Related Expenditure,Hygiene Services,PHS GROUP LTD,05/07/2016,368.00,
Commercial Services,Property & Design (BiT),COAP,Premises-Related Expenditure,Hygiene Services,PHS GROUP LTD,14/07/2016,508.05,
Commercial Services,Property & Design (BiT),COAP,Premises-Related Expenditure,Swimming Pool Chemicals,PHS GROUP LTD,08/07/2016,370.41,
Commercial Services,Property & Design (BiT),CAAG,Supplies & Services,Printing - Other,STANFORD MARSH FINANCE LTD,05/07/2016,593.3,
Commercial Services,Property & Design (BiT),COAP,Premises-Related Expenditure,Swimming Pool Chemicals,PHS GROUP LTD,08/07/2016,"1,111.27",
Commercial Services,Property & Design (BiT),COAP,Premises-Related Expenditure,Swimming Pool Chemicals,PHS GROUP LTD,13/07/2016,113.52,
Commercial Services,Property & Design (BiT),COAP,Supplies & Services,Security Services,BUSINESS WATCH GUARDING LIMITED,12/07/2016,539.96,
Commercial Services,Property & Design (BiT),COAP,Premises-Related Expenditure,Swimming Pool Chemicals,MAIN MAN SUPPLIES LTD,15/07/2016,230.02,
Commercial Services,Property & Design (BiT),COAE,Premises-Related Expenditure,Trade Refuse,FCC Recycling (UK) Ltd,05/07/2016,225.16,
Commercial Services,Property & Design (BiT),COAE,Premises-Related Expenditure,Trade Refuse,FCC Recycling (UK) Ltd,05/07/2016,424.58,
Commercial Services,Property & Design (BiT),COAP,Premises-Related Expenditure,Trade Refuse,VEOLIA ES (UK) LTD,14/07/2016,114.60,
Commercial Services,Property & Design (BiT),COAP,Premises-Related Expenditure,Clean Mats & Toilet Requisites,PHS GROUP LTD,19/07/2016,731.42,
Commercial Services,Property & Design (BiT),COAP,Premises-Related Expenditure,Clean Mats & Toilet Requisites,PROVAC CLEANING SUPPLIES LTD,29/07/2016,156.00,
Commercial Services,Property & Design (BiT),COAP,Premises-Related Expenditure,Clean Mats & Toilet Requisites,MAIN MAN SUPPLIES LTD,26/07/2016,181.71,
Commercial Services,Property & Design (BiT),COAT,Premises-Related Expenditure,Water Rates,SEVERN TRENT WATER LTD,21/07/2016,"1,345.07",
Commercial Services,Property & Design (BiT),COAP,Premises-Related Expenditure,Water Rates,SEVERN TRENT WATER LTD,21/07/2016,"1,556.16",
Commercial Services,Property & Design (BiT),COAP,Premises-Related Expenditure,Water Rates,SEVERN TRENT WATER LTD,21/07/2016,479.80,
Commercial Services,Property & Design (BiT),COAP,Premises-Related Expenditure,Water Rates,SEVERN TRENT WATER LTD,21/07/2016,403.02,
Commercial Services,Property & Design (BiT),COAP,Premises-Related Expenditure,Water Rates,SEVERN TRENT WATER LTD,21/07/2016,214.87,
Commercial Services,Property & Design (BiT),COAK,Premises-Related Expenditure,Water Rates,SEVERN TRENT WATER LTD,06/07/2016,113.72,
Commercial Services,Property & Design (BiT),COAK,Premises-Related Expenditure,Water Rates,SEVERN TRENT WATER LTD,06/07/2016,136.40,
Commercial Services,Property & Design (BiT),COAK,Premises-Related Expenditure,Water Rates,SEVERN TRENT WATER LTD,06/07/2016,119.64,
Commercial Services,Property & Design (BiT),COAP,Premises-Related Expenditure,Gas,West Mercia Energy (WME),18/07/2016,124.45,
Commercial Services,Property & Design (BiT),COAP,Premises-Related Expenditure,Service Contracts,PP ELECTRICAL SERVICES (Shropshire) Ltd,14/07/2016,410.00,
Commercial Services,Property & Design (BiT),COAP,Premises-Related Expenditure,Electricity,West Mercia Energy (WME),18/07/2016,163.27,
Commercial Services,Property & Design (BiT),COAP,Premises-Related Expenditure,Electricity,West Mercia Energy (WME),18/07/2016,135.45,
Commercial Services,Property & Design (BiT),COAP,Premises-Related Expenditure,Electricity,West Mercia Energy (WME),18/07/2016,208.63,
Commercial Services,Property & Design (BiT),COAP,Premises-Related Expenditure,Electricity,West Mercia Energy (WME),18/07/2016,332.55,
Commercial Services,Property & Design (BiT),COAP,Premises-Related Expenditure,Electricity,West Mercia Energy (WME),18/07/2016,258.51,
Commercial Services,Property & Design (BiT),COAT,Premises-Related Expenditure,Electricity,West Mercia Energy (WME),18/07/2016,100.41,
Commercial Services,Property & Design (BiT),COAE,Premises-Related Expenditure,Electricity,West Mercia Energy (WME),18/07/2016,306.35,
Commercial Services,Property & Design (BiT),COAP,Premises-Related Expenditure,Electricity,West Mercia Energy (WME),18/07/2016,757.79,
Commercial Services,Property & Design (BiT),COAT,Premises-Related Expenditure,Electricity,West Mercia Energy (WME),18/07/2016,109.02,
Commercial Services,Property & Design (BiT),COAT,Premises-Related Expenditure,Electricity,West Mercia Energy (WME),18/07/2016,120.17,
Commercial Services,Property & Design (BiT),COAT,Premises-Related Expenditure,Electricity,West Mercia Energy (WME),18/07/2016,137.64,
Commercial Services,Property & Design (BiT),COAP,Premises-Related Expenditure,Electricity,West Mercia Energy (WME),18/07/2016,324.71,
Commercial Services,Property & Design (BiT),COAP,Premises-Related Expenditure,Electricity,West Mercia Energy (WME),18/07/2016,283.02,
Commercial Services,Property & Design (BiT),COAP,Premises-Related Expenditure,Electricity,West Mercia Energy (WME),18/07/2016,220.32,
Commercial Services,Property & Design (BiT),COAP,Premises-Related Expenditure,Electricity,West Mercia Energy (WME),18/07/2016,140.15,
Commercial Services,Property & Design (BiT),COAT,Premises-Related Expenditure,Electricity,West Mercia Energy (WME),18/07/2016,136.28,
Commercial Services,Property & Design (BiT),COAP,Premises-Related Expenditure,Electricity,West Mercia Energy (WME),18/07/2016,173.75,
Commercial Services,Property & Design (BiT),COAP,Premises-Related Expenditure,Electricity,West Mercia Energy (WME),18/07/2016,248.57,
Commercial Services,Property & Design (BiT),COAE,Premises-Related Expenditure,Electricity,West Mercia Energy (WME),18/07/2016,113.06,
Commercial Services,Property & Design (BiT),COAE,Premises-Related Expenditure,Electricity,West Mercia Energy (WME),18/07/2016,311.53,
Commercial Services,Property & Design (BiT),COAT,Premises-Related Expenditure,Electricity,West Mercia Energy (WME),18/07/2016,101.65,
Commercial Services,Property & Design (BiT),COAE,Premises-Related Expenditure,Electricity,West Mercia Energy (WME),18/07/2016,162.64,
Commercial Services,Property & Design (BiT),COAP,Premises-Related Expenditure,Electricity,West Mercia Energy (WME),18/07/2016,961.01,
Commercial Services,Property & Design (BiT),COAE,Premises-Related Expenditure,Electricity,West Mercia Energy (WME),18/07/2016,211.78,
Commercial Services,Property & Design (BiT),COAE,Premises-Related Expenditure,Electricity,West Mercia Energy (WME),18/07/2016,126.78,
Commercial Services,Property & Design (BiT),COAT,Premises-Related Expenditure,Electricity,West Mercia Energy (WME),18/07/2016,129.01,
Commercial Services,Property & Design (BiT),COAK,Premises-Related Expenditure,Electricity,West Mercia Energy (WME),18/07/2016,333.35,
Commercial Services,Property & Design (BiT),COAT,Premises-Related Expenditure,Electricity,West Mercia Energy (WME),18/07/2016,107.54,
Commercial Services,Property & Design (BiT),COAP,Premises-Related Expenditure,Electricity,West Mercia Energy (WME),18/07/2016,884.58,
Commercial Services,Property & Design (BiT),COAT,Premises-Related Expenditure,Electricity,West Mercia Energy (WME),18/07/2016,178.26,
Commercial Services,Property & Design (BiT),COAT,Premises-Related Expenditure,Electricity,West Mercia Energy (WME),18/07/2016,135.67,
Commercial Services,Property & Design (BiT),COAP,Premises-Related Expenditure,Electricity,West Mercia Energy (WME),18/07/2016,"1,555.15",
Commercial Services,Property & Design (BiT),COAP,Premises-Related Expenditure,Gas,West Mercia Energy (WME),18/07/2016,118.31,
Commercial Services,Property & Design (BiT),COAP,Premises-Related Expenditure,Gas,West Mercia Energy (WME),18/07/2016,837.36,
Commercial Services,Property & Design (BiT),COAP,Premises-Related Expenditure,Gas,West Mercia Energy (WME),18/07/2016,"1,769.14",
Commercial Services,Property & Design (BiT),COAP,Premises-Related Expenditure,Gas,West Mercia Energy (WME),18/07/2016,"1,771.00",
Commercial Services,Property & Design (BiT),COAP,Premises-Related Expenditure,Gas,West Mercia Energy (WME),18/07/2016,796.44,
Commercial Services,Property & Design (BiT),COAP,Premises-Related Expenditure,Gas,West Mercia Energy (WME),18/07/2016,"1,126.97",
Commercial Services,Property & Design (BiT),COAE,Premises-Related Expenditure,Gas,West Mercia Energy (WME),18/07/2016,282.26,
Commercial Services,Property & Design (BiT),COAP,Premises-Related Expenditure,Gas,West Mercia Energy (WME),18/07/2016,118.55,
Commercial Services,Property & Design (BiT),COAP,Premises-Related Expenditure,Gas,West Mercia Energy (WME),18/07/2016,"1,126.27",
Commercial Services,Property & Design (BiT),COAK,Premises-Related Expenditure,Gas,West Mercia Energy (WME),18/07/2016,262.85,
Commercial Services,Property & Design (BiT),COAP,Premises-Related Expenditure,Gas,West Mercia Energy (WME),18/07/2016,108.38,
Commercial Services,Property & Design (BiT),COAE,Premises-Related Expenditure,Gas,West Mercia Energy (WME),18/07/2016,488.29,
Commercial Services,Property & Design (BiT),COAP,Premises-Related Expenditure,Gas,West Mercia Energy (WME),18/07/2016,257.3,
Commercial Services,Property & Design (BiT),COAP,Premises-Related Expenditure,Gas,West Mercia Energy (WME),18/07/2016,153.29,
Commercial Services,Property & Design (BiT),COAP,Premises-Related Expenditure,Gas,West Mercia Energy (WME),18/07/2016,266.39,
Commercial Services,Property & Design (BiT),COAP,Premises-Related Expenditure,Hygiene Services,PHS GROUP LTD,07/07/2016,174.28,
Commercial Services,Property & Design (BiT),COAE,Premises-Related Expenditure,Gas,West Mercia Energy (WME),29/07/2016,-136.38,
Commercial Services,Property & Design (BiT),COAE,Premises-Related Expenditure,Gas,West Mercia Energy (WME),29/07/2016,221.93,
Commercial Services,Property & Design (BiT),COAP,Premises-Related Expenditure,Gas,BRITISH GAS BUSINESS,21/07/2016,157.68,
Commercial Services,Property & Design (BiT),COAE,Premises-Related Expenditure,Electricity,West Mercia Energy (WME),18/07/2016,175.05,
Commercial Services,Property & Design (BiT),COAP,Premises-Related Expenditure,Electricity,West Mercia Energy (WME),04/07/2016,"1,742.89",
Commercial Services,Property & Design (BiT),COAP,Premises-Related Expenditure,Electricity,West Mercia Energy (WME),04/07/2016,"3,629.21",
Commercial Services,Property & Design (BiT),COAP,Premises-Related Expenditure,Electricity,West Mercia Energy (WME),01/07/2016,175.58,
Commercial Services,Property & Design (BiT),COAP,Premises-Related Expenditure,Electricity,West Mercia Energy (WME),18/07/2016,244.12,
Commercial Services,Property & Design (BiT),COAE,Premises-Related Expenditure,Electricity,West Mercia Energy (WME),18/07/2016,156.92,
Commercial Services,Property & Design (BiT),COAT,Premises-Related Expenditure,Electricity,West Mercia Energy (WME),18/07/2016,108.46,
Commercial Services,Property & Design (BiT),COAT,Premises-Related Expenditure,Electricity,West Mercia Energy (WME),18/07/2016,113.28,
Commercial Services,Property & Design (BiT),COAP,Premises-Related Expenditure,Electricity,West Mercia Energy (WME),18/07/2016,184.29,
Commercial Services,Property & Design (BiT),COAT,Premises-Related Expenditure,Electricity,West Mercia Energy (WME),18/07/2016,104.14,
Commercial Services,Property & Design (BiT),COAP,Premises-Related Expenditure,Electricity,West Mercia Energy (WME),18/07/2016,226.41,
Commercial Services,Property & Design (BiT),COAT,Premises-Related Expenditure,Electricity,West Mercia Energy (WME),18/07/2016,110.87,
Commercial Services,Property & Design (BiT),COAP,Premises-Related Expenditure,Gas,West Mercia Energy (WME),18/07/2016,"1,204.69",
Commercial Services,Property & Design (BiT),COAE,Premises-Related Expenditure,Electricity,West Mercia Energy (WME),18/07/2016,132.22,
Commercial Services,Property & Design (BiT),CAAH,Premises-Related Expenditure,R&M -Buildings DLO Charge,JCE & SONS LTD,05/07/2016,"4,066.00",
Commercial Services,Property & Design (BiT),CAAH,Premises-Related Expenditure,R&M -Buildings DLO Charge,Churches Fire Security Ltd,05/07/2016,154.75,
Commercial Services,Property & Design (BiT),CAAH,Premises-Related Expenditure,R&M -Buildings DLO Charge,George Birchall Limited,05/07/2016,254.50,
Commercial Services,Property & Design (BiT),CAAH,Premises-Related Expenditure,R&M -Buildings DLO Charge,George Birchall Limited,05/07/2016,741.21,
Commercial Services,Property & Design (BiT),CAAH,Premises-Related Expenditure,R&M -Buildings DLO Charge,SECURITY WISE LTD,05/07/2016,180.00,
Commercial Services,Property & Design (BiT),COAP,Premises-Related Expenditure,R&M -Buildings DLO Charge,PRYCE (BUILDERS) LTD,05/07/2016,527.70,
Commercial Services,Property & Design (BiT),COAP,Premises-Related Expenditure,R&M -Buildings DLO Charge,A1 Glass & Glazing (Shropshire) Limited,05/07/2016,275,
Commercial Services,Property & Design (BiT),COAP,Premises-Related Expenditure,R&M -Buildings DLO Charge,A1 Glass & Glazing (Shropshire) Limited,05/07/2016,275,
Commercial Services,Property & Design (BiT),COAP,Premises-Related Expenditure,R&M -Buildings DLO Charge,A1 Glass & Glazing (Shropshire) Limited,05/07/2016,325,
Commercial Services,Property & Design (BiT),COAP,Premises-Related Expenditure,R&M -Buildings DLO Charge,A1 Glass & Glazing (Shropshire) Limited,05/07/2016,220,
Commercial Services,Property & Design (BiT),COAP,Premises-Related Expenditure,R&M -Buildings DLO Charge,COOL SERVICES LTD,05/07/2016,109,
Commercial Services,Property & Design (BiT),COAP,Premises-Related Expenditure,R&M -Buildings DLO Charge,WREKIN DRAIN SERVICES LTD,05/07/2016,215.00,
Commercial Services,Property & Design (BiT),CAAH,Premises-Related Expenditure,R&M -Buildings DLO Charge,George Birchall Limited,05/07/2016,"1,146.00",
Commercial Services,Property & Design (BiT),CAAH,Premises-Related Expenditure,R&M -Buildings DLO Charge,Churches Fire Security Ltd,05/07/2016,278.05,
Commercial Services,Property & Design (BiT),COAP,Premises-Related Expenditure,R&M -Buildings DLO Charge,RCS ROOFING CONSTRUCTION SERVICES LTD,05/07/2016,232.28,
Commercial Services,Property & Design (BiT),CAAH,Premises-Related Expenditure,R&M -Buildings DLO Charge,WREKIN DRAIN SERVICES LTD,05/07/2016,170.00,
Commercial Services,Property & Design (BiT),CAAH,Premises-Related Expenditure,R&M -Buildings DLO Charge,GRANVILLE CONSTRUCTION & MAINTENANCE LTD,05/07/2016,"1,964.84",
Commercial Services,Property & Design (BiT),CAAH,Premises-Related Expenditure,R&M -Buildings DLO Charge,RCS ROOFING CONSTRUCTION SERVICES LTD,05/07/2016,182.50,
Commercial Services,Property & Design (BiT),CAAH,Premises-Related Expenditure,R&M -Buildings DLO Charge,J R SLEE BUILDERS,19/07/2016,"4,991.64",
Commercial Services,Property & Design (BiT),COAG,Premises-Related Expenditure,R&M -Buildings DLO Charge,George Birchall Limited,19/07/2016,246.61,
Commercial Services,Property & Design (BiT),COAG,Premises-Related Expenditure,R&M -Buildings DLO Charge,George Birchall Limited,19/07/2016,447.19,
Commercial Services,Property & Design (BiT),CAAH,Premises-Related Expenditure,R&M -Buildings DLO Charge,George Birchall Limited,19/07/2016,238.54,
Commercial Services,Property & Design (BiT),CAAH,Premises-Related Expenditure,R&M -Buildings DLO Charge,George Birchall Limited,19/07/2016,202.66,
Commercial Services,Property & Design (BiT),COAP,Premises-Related Expenditure,R&M -Buildings DLO Charge,RCS ROOFING CONSTRUCTION SERVICES LTD,05/07/2016,171.54,
Commercial Services,Property & Design (BiT),CAAH,Premises-Related Expenditure,R&M -Buildings DLO Charge,George Birchall Limited,19/07/2016,122.50,
Commercial Services,Property & Design (BiT),CAAH,Premises-Related Expenditure,R&M -Buildings DLO Charge,George Birchall Limited,19/07/2016,125.80,
Commercial Services,Property & Design (BiT),COAP,Premises-Related Expenditure,R&M -Buildings DLO Charge,GRANVILLE CONSTRUCTION & MAINTENANCE LTD,19/07/2016,255.58,
Commercial Services,Property & Design (BiT),COAP,Premises-Related Expenditure,R&M -Buildings DLO Charge,WINDOW & DOOR CONTRACT SERVICES,19/07/2016,539.14,
Commercial Services,Property & Design (BiT),CAAH,Premises-Related Expenditure,R&M -Buildings DLO Charge,ASLES (TOOL HIRE & SALES) LTD,19/07/2016,399.99,
Commercial Services,Property & Design (BiT),CAAH,Premises-Related Expenditure,R&M -Buildings DLO Charge,GRANVILLE CONSTRUCTION & MAINTENANCE LTD,19/07/2016,407.5,
Commercial Services,Property & Design (BiT),CAAH,Premises-Related Expenditure,R&M -Buildings DLO Charge,PROKILL UK LIMITED,19/07/2016,150.00,
Commercial Services,Property & Design (BiT),CAAH,Premises-Related Expenditure,R&M -Buildings DLO Charge,Churches Fire Security Ltd,05/07/2016,280.20,
Commercial Services,Property & Design (BiT),COAP,Premises-Related Expenditure,R&M -Buildings DLO Charge,OSPREY WATER MANAGEMENT LTD,19/07/2016,474.58,
Commercial Services,Property & Design (BiT),COAP,Premises-Related Expenditure,R&M -Buildings DLO Charge,GRANVILLE CONSTRUCTION & MAINTENANCE LTD,05/07/2016,797.31,
Commercial Services,Property & Design (BiT),CAAH,Premises-Related Expenditure,R&M -Buildings DLO Charge,JONES & HAMPTON LTD,08/07/2016,142.10,
Commercial Services,Property & Design (BiT),CAAH,Premises-Related Expenditure,R&M -Buildings DLO Charge,THOMAS CONSULTING,07/07/2016,315.00,
Commercial Services,Property & Design (BiT),CAAH,Premises-Related Expenditure,R&M -Buildings DLO Charge,THOMAS CONSULTING,07/07/2016,335.00,
Commercial Services,Property & Design (BiT),COAP,Income,Legal Fees,Stephenson Harwood LLP,21/07/2016,"1,250.00",
Commercial Services,Property & Design (BiT),CAAH,Premises-Related Expenditure,R&M -Buildings DLO Charge,Churches Fire Security Ltd,07/07/2016,205.05,
Commercial Services,Property & Design (BiT),CAAH,Premises-Related Expenditure,R&M -Buildings DLO Charge,Churches Fire Security Ltd,07/07/2016,392.50,
Commercial Services,Property & Design (BiT),CAAH,Premises-Related Expenditure,R&M -Buildings DLO Charge,Churches Fire Security Ltd,07/07/2016,219.25,
Commercial Services,Property & Design (BiT),COAP,Premises-Related Expenditure,R&M -Buildings DLO Charge,JONES & HAMPTON LTD,08/07/2016,164.38,
Commercial Services,Property & Design (BiT),COAP,Premises-Related Expenditure,R&M -Buildings DLO Charge,Automated building & energy controls,08/07/2016,525.00,
Commercial Services,Property & Design (BiT),COAG,Premises-Related Expenditure,R&M -Buildings DLO Charge,George Birchall Limited,08/07/2016,430.06,
Commercial Services,Property & Design (BiT),CAAH,Premises-Related Expenditure,R&M -Buildings DLO Charge,WREKIN DRAIN SERVICES LTD,08/07/2016,310,
Commercial Services,Property & Design (BiT),CAAH,Premises-Related Expenditure,R&M -Buildings DLO Charge,SDT ELECTRICAL LTD,08/07/2016,1990,
Commercial Services,Property & Design (BiT),CAAH,Premises-Related Expenditure,R&M -Buildings DLO Charge,GRANVILLE CONSTRUCTION & MAINTENANCE LTD,08/07/2016,357.5,
Commercial Services,Property & Design (BiT),COAP,Premises-Related Expenditure,R&M -Buildings DLO Charge,TAYLORS MECHANICAL H & P SERVICES LTD,05/07/2016,456.00,
Commercial Services,Property & Design (BiT),CAAH,Premises-Related Expenditure,R&M -Buildings DLO Charge,THOMAS CONSULTING,07/07/2016,215.00,
Commercial Services,Property & Design (BiT),CAAH,Premises-Related Expenditure,R&M -Buildings DLO Charge,Churches Fire Security Ltd,05/07/2016,234.95,
Commercial Services,Property & Design (BiT),CAAH,Premises-Related Expenditure,R&M -Buildings DLO Charge,Churches Fire Security Ltd,05/07/2016,313.65,
Commercial Services,Property & Design (BiT),CAAH,Premises-Related Expenditure,R&M -Buildings DLO Charge,WINDOW & DOOR CONTRACT SERVICES,21/07/2016,172.52,
Commercial Services,Property & Design (BiT),COAP,Premises-Related Expenditure,R&M -Buildings DLO Charge,JONES & HAMPTON LTD,08/07/2016,138.00,
Commercial Services,Property & Design (BiT),CAAH,Premises-Related Expenditure,R&M -Buildings DLO Charge,Churches Fire Security Ltd,05/07/2016,277.65,
Commercial Services,Property & Design (BiT),CAAH,Premises-Related Expenditure,R&M -Buildings DLO Charge,TAYLORS MECHANICAL H & P SERVICES LTD,05/07/2016,136.08,
Commercial Services,Property & Design (BiT),CAAH,Premises-Related Expenditure,R&M -Buildings DLO Charge,NOBRIDGE LTD,05/07/2016,225.00,
Commercial Services,Property & Design (BiT),COAP,Premises-Related Expenditure,R&M -Buildings DLO Charge,AGS AUTOMATIC DOORS LTD,05/07/2016,389.00,
Commercial Services,Property & Design (BiT),CAAH,Premises-Related Expenditure,R&M -Buildings DLO Charge,AQUALOGIC (WC) LTD,05/07/2016,113.9,
Commercial Services,Property & Design (BiT),CAAH,Premises-Related Expenditure,R&M -Buildings DLO Charge,Churches Fire Security Ltd,05/07/2016,254.00,
Commercial Services,Property & Design (BiT),CAAH,Premises-Related Expenditure,R&M -Buildings DLO Charge,PRYCE (BUILDERS) LTD,05/07/2016,867.00,
Commercial Services,Property & Design (BiT),COAP,Premises-Related Expenditure,R&M -Buildings DLO Charge,AGS AUTOMATIC DOORS LTD,05/07/2016,200.00,
Commercial Services,Property & Design (BiT),CAAH,Premises-Related Expenditure,R&M -Buildings DLO Charge,JONES & HAMPTON LTD,05/07/2016,"1,317.35",
Commercial Services,Property & Design (BiT),COAP,Premises-Related Expenditure,R&M -Buildings DLO Charge,TAYLORS MECHANICAL H & P SERVICES LTD,05/07/2016,123.80,
Commercial Services,Property & Design (BiT),CAAH,Premises-Related Expenditure,R&M -Buildings DLO Charge,TAYLORS MECHANICAL H & P SERVICES LTD,05/07/2016,192.00,
Commercial Services,Property & Design (BiT),COAP,Premises-Related Expenditure,R&M -Buildings DLO Charge,OSPREY WATER MANAGEMENT LTD,19/07/2016,"1,500.48",
Commercial Services,Property & Design (BiT),CAAH,Premises-Related Expenditure,R&M -Buildings DLO Charge,WREKIN DRAIN SERVICES LTD,07/07/2016,540.00,
Commercial Services,Property & Design (BiT),CAAH,Premises-Related Expenditure,R&M -Buildings DLO Charge,SECURITY WISE LTD,26/07/2016,-232.00,
Commercial Services,Property & Design (BiT),COAG,Premises-Related Expenditure,R&M -Buildings DLO Charge,JCE & SONS LTD,25/07/2016,121.00,
Commercial Services,Property & Design (BiT),COAE,Premises-Related Expenditure,R&M -Buildings DLO Charge,TURNER ENGINE POWERED SERVICES LTD,25/07/2016,366.00,
Commercial Services,Property & Design (BiT),CAAH,Premises-Related Expenditure,R&M -Buildings DLO Charge,George Birchall Limited,25/07/2016,184.50,
Commercial Services,Property & Design (BiT),CAAH,Premises-Related Expenditure,R&M -Buildings DLO Charge,George Birchall Limited,25/07/2016,127.50,
Commercial Services,Property & Design (BiT),CAAH,Premises-Related Expenditure,R&M -Buildings DLO Charge,Clearstone Solutions Ltd,25/07/2016,118.00,
Commercial Services,Property & Design (BiT),COAP,Premises-Related Expenditure,R&M -Buildings DLO Charge,GRANVILLE CONSTRUCTION & MAINTENANCE LTD,25/07/2016,998.00,
Commercial Services,Property & Design (BiT),COAG,Premises-Related Expenditure,R&M -Buildings DLO Charge,GRANVILLE CONSTRUCTION & MAINTENANCE LTD,25/07/2016,"2,982.00",
Commercial Services,Property & Design (BiT),COAP,Premises-Related Expenditure,R&M -Buildings DLO Charge,JCE & SONS LTD,25/07/2016,164.88,
Commercial Services,Property & Design (BiT),CAAH,Premises-Related Expenditure,R&M -Buildings DLO Charge,George Birchall Limited,25/07/2016,275.00,
Commercial Services,Property & Design (BiT),CAAH,Premises-Related Expenditure,R&M -Buildings DLO Charge,Clearstone Solutions Ltd,25/07/2016,108.00,
Commercial Services,Property & Design (BiT),CAAH,Premises-Related Expenditure,R&M -Buildings DLO Charge,George Birchall Limited,25/07/2016,275,
Commercial Services,Property & Design (BiT),CAAH,Premises-Related Expenditure,R&M -Buildings DLO Charge,Churches Fire Security Ltd,29/07/2016,234.90,
Commercial Services,Property & Design (BiT),CAAH,Premises-Related Expenditure,R&M -Buildings DLO Charge,Churches Fire Security Ltd,29/07/2016,315.75,
Commercial Services,Property & Design (BiT),CAAH,Premises-Related Expenditure,R&M -Buildings DLO Charge,Churches Fire Security Ltd,29/07/2016,224.40,
Commercial Services,Property & Design (BiT),CAAH,Premises-Related Expenditure,R&M -Buildings DLO Charge,JCE & SONS LTD,25/07/2016,352.34,
Commercial Services,Property & Design (BiT),COAP,Premises-Related Expenditure,R&M -Buildings DLO Charge,JCE & SONS LTD,25/07/2016,"1,145.70",
Commercial Services,Property & Design (BiT),CAAH,Premises-Related Expenditure,R&M -Buildings DLO Charge,Churches Fire Security Ltd,29/07/2016,149.85,
Commercial Services,Property & Design (BiT),COAP,Premises-Related Expenditure,R&M -Buildings DLO Charge,TAYLORS MECHANICAL H & P SERVICES LTD,29/07/2016,383.08,
Commercial Services,Property & Design (BiT),CAAH,Premises-Related Expenditure,R&M -Buildings DLO Charge,GRA-BERN,29/07/2016,523.60,
Commercial Services,Property & Design (BiT),CAAH,Premises-Related Expenditure,R&M -Buildings DLO Charge,Churches Fire Security Ltd,29/07/2016,214.05,
Commercial Services,Property & Design (BiT),CAAH,Premises-Related Expenditure,R&M -Buildings DLO Charge,Churches Fire Security Ltd,29/07/2016,263.30,
Commercial Services,Property & Design (BiT),CAAH,Premises-Related Expenditure,R&M -Buildings DLO Charge,Churches Fire Security Ltd,29/07/2016,224.8,
Commercial Services,Property & Design (BiT),CAAH,Premises-Related Expenditure,R&M -Buildings DLO Charge,PP ELECTRICAL SERVICES (Shropshire) Ltd,29/07/2016,465.00,
Commercial Services,Property & Design (BiT),CAAH,Premises-Related Expenditure,R&M -Buildings DLO Charge,GRA-BERN,29/07/2016,111.00,
Commercial Services,Property & Design (BiT),CAAH,Premises-Related Expenditure,R&M -Buildings DLO Charge,GRA-BERN,29/07/2016,181.93,
Commercial Services,Property & Design (BiT),CAAH,Premises-Related Expenditure,R&M -Buildings DLO Charge,GRA-BERN,29/07/2016,237.70,
Commercial Services,Property & Design (BiT),CAAH,Premises-Related Expenditure,R&M -Buildings DLO Charge,SECURITY WISE LTD,29/07/2016,313.00,
Commercial Services,Property & Design (BiT),COAP,Premises-Related Expenditure,R&M -Buildings DLO Charge,SECURITY WISE LTD,29/07/2016,155.00,
Commercial Services,Property & Design (BiT),COAP,Premises-Related Expenditure,R&M -Buildings DLO Charge,COOL SERVICES LTD,29/07/2016,150.00,
Commercial Services,Property & Design (BiT),COAP,Premises-Related Expenditure,R&M -Buildings DLO Charge,SECURITY WISE LTD,29/07/2016,179.00,
Commercial Services,Property & Design (BiT),COAG,Premises-Related Expenditure,R&M -Buildings DLO Charge,George Birchall Limited,22/07/2016,122.00,
Commercial Services,Property & Design (BiT),CAAH,Premises-Related Expenditure,R&M -Buildings DLO Charge,SECURITY WISE LTD,29/07/2016,140.00,
Commercial Services,Property & Design (BiT),CAAH,Premises-Related Expenditure,R&M -Buildings DLO Charge,SECURITY WISE LTD,14/07/2016,232.00,
Commercial Services,Property & Design (BiT),CAAH,Premises-Related Expenditure,R&M -Buildings DLO Charge,SDT ELECTRICAL LTD,19/07/2016,225.00,
Commercial Services,Property & Design (BiT),CAAH,Premises-Related Expenditure,R&M -Buildings DLO Charge,NYKE ENERGY SERVICES LIMITED,21/07/2016,"4,441.00",
Commercial Services,Property & Design (BiT),CAAH,Premises-Related Expenditure,R&M -Buildings DLO Charge,HYDRO-TECH ENVIRONMENTAL LLP,21/07/2016,150.00,
Commercial Services,Property & Design (BiT),COAG,Premises-Related Expenditure,R&M -Buildings DLO Charge,ERIC NEVILLE CATERING SUPPLIES LTD,19/07/2016,113.75,
Commercial Services,Property & Design (BiT),COAG,Premises-Related Expenditure,R&M -Buildings DLO Charge,ERIC NEVILLE CATERING SUPPLIES LTD,19/07/2016,350.00,
Commercial Services,Property & Design (BiT),COAP,Premises-Related Expenditure,R&M -Buildings DLO Charge,TELFORD & WREKIN SERVICES LTD,19/07/2016,744.76,
Commercial Services,Property & Design (BiT),CAAH,Premises-Related Expenditure,R&M -Buildings DLO Charge,George Birchall Limited,19/07/2016,259.15,
Commercial Services,Property & Design (BiT),CAAH,Premises-Related Expenditure,R&M -Buildings DLO Charge,George Birchall Limited,22/07/2016,190.00,
Commercial Services,Property & Design (BiT),COAG,Premises-Related Expenditure,R&M -Buildings DLO Charge,JONES & HAMPTON LTD,21/07/2016,"10,000.00",
Commercial Services,Property & Design (BiT),CAAH,Premises-Related Expenditure,R&M -Buildings DLO Charge,TAYLORS MECHANICAL H & P SERVICES LTD,21/07/2016,295.14,
Commercial Services,Property & Design (BiT),COAP,Premises-Related Expenditure,R&M -Buildings DLO Charge,J.A.K. WATER SYSTEMS LTD,21/07/2016,"1,825.48",
Commercial Services,Property & Design (BiT),COAE,Premises-Related Expenditure,R&M -Buildings DLO Charge,SECURITY WISE LTD,29/07/2016,130.00,
Commercial Services,Property & Design (BiT),CAAH,Premises-Related Expenditure,R&M -Buildings DLO Charge,GRA-BERN,21/07/2016,653.64,
Commercial Services,Property & Design (BiT),CAAG,Income,Fees & Charges General,GRANVILLE CONSTRUCTION & MAINTENANCE LTD,29/07/2016,"2,585.02",
Commercial Services,Property & Design (BiT),CAAH,Premises-Related Expenditure,R&M -Buildings DLO Charge,SDT ELECTRICAL LTD,19/07/2016,485.00,
Commercial Services,Property & Design (BiT),CAAH,Premises-Related Expenditure,R&M -Buildings DLO Charge,George Birchall Limited,22/07/2016,247.00,
Commercial Services,Property & Design (BiT),CAAH,Premises-Related Expenditure,R&M -Buildings DLO Charge,George Birchall Limited,22/07/2016,184.5,
Commercial Services,Property & Design (BiT),CAAH,Premises-Related Expenditure,R&M -Buildings DLO Charge,George Birchall Limited,22/07/2016,248.00,
Commercial Services,Property & Design (BiT),CAAH,Premises-Related Expenditure,R&M -Buildings DLO Charge,George Birchall Limited,22/07/2016,247.00,
Commercial Services,Property & Design (BiT),CAAH,Premises-Related Expenditure,R&M -Buildings DLO Charge,George Birchall Limited,22/07/2016,127.50,
Commercial Services,Property & Design (BiT),CAAH,Premises-Related Expenditure,R&M -Buildings DLO Charge,George Birchall Limited,22/07/2016,190.00,
Commercial Services,Property & Design (BiT),COAG,Premises-Related Expenditure,R&M -Buildings DLO Charge,GRANVILLE CONSTRUCTION & MAINTENANCE LTD,25/07/2016,"1,365.40",
Commercial Services,Property & Design (BiT),COAG,Premises-Related Expenditure,R&M -Buildings DLO Charge,GRANVILLE CONSTRUCTION & MAINTENANCE LTD,25/07/2016,"1,040.00",
Commercial Services,Property & Design (BiT),CAAH,Premises-Related Expenditure,R&M -Buildings DLO Charge,George Birchall Limited,25/07/2016,127.50,
Commercial Services,Property & Design (BiT),CAAH,Premises-Related Expenditure,R&M -Buildings DLO Charge,REDACTED PERSONAL INFORMATION ,14/07/2016,218.50,
Commercial Services,Property & Design (BiT),CAAH,Premises-Related Expenditure,R&M -Buildings DLO Charge,SECURITY WISE LTD,14/07/2016,312.00,
Commercial Services,Property & Design (BiT),COAP,Premises-Related Expenditure,R&M -Buildings DLO Charge,SECURITY WISE LTD,14/07/2016,350.00,
Commercial Services,Property & Design (BiT),COAP,Premises-Related Expenditure,R&M -Buildings DLO Charge,George Birchall Limited,14/07/2016,563.34,
Commercial Services,Property & Design (BiT),CAAH,Premises-Related Expenditure,R&M -Buildings DLO Charge,WREKIN DRAIN SERVICES LTD,14/07/2016,170.00,
Commercial Services,Property & Design (BiT),COAG,Premises-Related Expenditure,R&M -Buildings DLO Charge,George Birchall Limited,22/07/2016,168.00,
Commercial Services,Property & Design (BiT),CAAH,Premises-Related Expenditure,R&M -Buildings DLO Charge,SDT ELECTRICAL LTD,19/07/2016,"1,220.66",
Commercial Services,Property & Design (BiT),COAP,Premises-Related Expenditure,Service Contracts,JCE & SONS LTD,05/07/2016,233.00,
Commercial Services,Property & Design (BiT),COAE,Premises-Related Expenditure,R&M -Buildings DLO Charge,SECURITY WISE LTD,29/07/2016,"1,314.95",
Commercial Services,Property & Design (BiT),CAAH,Premises-Related Expenditure,R&M -Buildings DLO Charge,RCS ROOFING CONSTRUCTION SERVICES LTD,13/07/2016,152.88,
Commercial Services,Property & Design (BiT),CAAH,Premises-Related Expenditure,R&M -Buildings DLO Charge,SECURITY WISE LTD,13/07/2016,410.00,
Commercial Services,Property & Design (BiT),CAAH,Premises-Related Expenditure,R&M -Buildings DLO Charge,THOMAS CONSULTING,07/07/2016,320.00,
Commercial Services,Property & Design (BiT),CAAH,Premises-Related Expenditure,R&M -Buildings DLO Charge,HYDRO-TECH ENVIRONMENTAL LLP,07/07/2016,490.00,
Commercial Services,Property & Design (BiT),COAG,Premises-Related Expenditure,R&M -Buildings DLO Charge,ERIC NEVILLE CATERING SUPPLIES LTD,12/07/2016,135.00,
Commercial Services,Property & Design (BiT),COAG,Premises-Related Expenditure,R&M -Buildings DLO Charge,ERIC NEVILLE CATERING SUPPLIES LTD,12/07/2016,832.02,
Commercial Services,Property & Design (BiT),COAG,Premises-Related Expenditure,R&M -Buildings DLO Charge,JCE & SONS LTD,12/07/2016,217.50,
Commercial Services,Property & Design (BiT),COAP,Premises-Related Expenditure,R&M -Buildings DLO Charge,J.A.K. WATER SYSTEMS LTD,13/07/2016,201.30,
Commercial Services,Property & Design (BiT),COAP,Premises-Related Expenditure,R&M -Buildings DLO Charge,JCE & SONS LTD,13/07/2016,102.50,
Commercial Services,Property & Design (BiT),COAM,Premises-Related Expenditure,R&M -Buildings DLO Charge,George Birchall Limited,06/07/2016,140.00,
Commercial Services,Property & Design (BiT),COAK,Premises-Related Expenditure,R&M -Buildings DLO Charge,A1 Glass & Glazing (Shropshire) Limited,06/07/2016,125.00,
Commercial Services,Property & Design (BiT),COAK,Premises-Related Expenditure,R&M -Buildings DLO Charge,A1 Glass & Glazing (Shropshire) Limited,06/07/2016,175,
Commercial Services,Property & Design (BiT),COAP,Premises-Related Expenditure,R&M -Buildings DLO Charge,SECURITY WISE LTD,13/07/2016,389.98,
Commercial Services,Property & Design (BiT),CAAH,Premises-Related Expenditure,R&M -Buildings DLO Charge,RCS ROOFING CONSTRUCTION SERVICES LTD,13/07/2016,128.44,
Commercial Services,Property & Design (BiT),CAAH,Premises-Related Expenditure,R&M -Buildings DLO Charge,George Birchall Limited,13/07/2016,315.43,
Commercial Services,Property & Design (BiT),COAE,Premises-Related Expenditure,R&M -Buildings DLO Charge,JCE & SONS LTD,12/07/2016,428.46,
Commercial Services,Property & Design (BiT),CAAH,Premises-Related Expenditure,R&M -Buildings DLO Charge,JCE & SONS LTD,12/07/2016,611,
Commercial Services,Property & Design (BiT),COAK,Premises-Related Expenditure,R&M -Buildings DLO Charge,JCE & SONS LTD,12/07/2016,102.64,
Commercial Services,Property & Design (BiT),COAG,Premises-Related Expenditure,R&M -Buildings DLO Charge,JCE & SONS LTD,12/07/2016,106.50,
Commercial Services,Property & Design (BiT),COAG,Premises-Related Expenditure,R&M -Buildings DLO Charge,JCE & SONS LTD,12/07/2016,212.00,
Commercial Services,Property & Design (BiT),COAP,Premises-Related Expenditure,R&M -Buildings DLO Charge,JCE & SONS LTD,12/07/2016,279.00,
Commercial Services,Property & Design (BiT),COAP,Premises-Related Expenditure,R&M -Buildings DLO Charge,JCE & SONS LTD,12/07/2016,167.31,
Commercial Services,Property & Design (BiT),COAP,Premises-Related Expenditure,R&M -Buildings DLO Charge,JCE & SONS LTD,12/07/2016,186.47,
Commercial Services,Property & Design (BiT),CAAH,Premises-Related Expenditure,R&M -Buildings DLO Charge,REDACTED PERSONAL INFORMATION ,12/07/2016,120.00,
Commercial Services,Property & Design (BiT),COAG,Premises-Related Expenditure,R&M -Buildings DLO Charge,JCE & SONS LTD,13/07/2016,192.01,
Commercial Services,Property & Design (BiT),COAP,Premises-Related Expenditure,R&M -Buildings DLO Charge,JCE & SONS LTD,12/07/2016,190.00,
Commercial Services,Property & Design (BiT),COAG,Premises-Related Expenditure,R&M -Buildings DLO Charge,JCE & SONS LTD,12/07/2016,108.51,
Commercial Services,Property & Design (BiT),CAAH,Premises-Related Expenditure,R&M -Buildings DLO Charge,E DAVIES & SON (TF4 3JZ),13/07/2016,608.86,
Commercial Services,Property & Design (BiT),COAP,Premises-Related Expenditure,R&M -Buildings DLO Charge,PP ELECTRICAL SERVICES (Shropshire) Ltd,08/07/2016,120.00,
Commercial Services,Property & Design (BiT),COAG,Premises-Related Expenditure,R&M -Buildings DLO Charge,REDACTED PERSONAL INFORMATION ,12/07/2016,218.50,
Commercial Services,Property & Design (BiT),COAK,Premises-Related Expenditure,R&M -Buildings DLO Charge,JONES & HAMPTON LTD,14/07/2016,420.59,
Commercial Services,Property & Design (BiT),COAP,Premises-Related Expenditure,R&M -Buildings DLO Charge,A1 Glass & Glazing (Shropshire) Limited,12/07/2016,175.00,
Commercial Services,Property & Design (BiT),COAP,Premises-Related Expenditure,R&M -Buildings DLO Charge,A1 Glass & Glazing (Shropshire) Limited,12/07/2016,175.00,
Commercial Services,Property & Design (BiT),CAAH,Premises-Related Expenditure,R&M -Buildings DLO Charge,PROKILL UK LIMITED,14/07/2016,150.00,
Commercial Services,Property & Design (BiT),COAP,Premises-Related Expenditure,R&M -Buildings DLO Charge,JCE & SONS LTD,14/07/2016,975.00,
Commercial Services,Property & Design (BiT),COAP,Premises-Related Expenditure,R&M -Buildings DLO Charge,JCE & SONS LTD,14/07/2016,-120.00,
Commercial Services,Property & Design (BiT),CAAH,Premises-Related Expenditure,R&M -Buildings DLO Charge,Churches Fire Security Ltd,07/07/2016,331.59,
Commercial Services,Property & Design (BiT),CAAH,Premises-Related Expenditure,R&M -Buildings DLO Charge,NYKE ENERGY SERVICES LIMITED,12/07/2016,165.00,
Commercial Services,Property & Design (BiT),COAP,Premises-Related Expenditure,R&M -Buildings DLO Charge,PP ELECTRICAL SERVICES (Shropshire) Ltd,12/07/2016,120.00,
Commercial Services,Property & Design (BiT),CAAH,Premises-Related Expenditure,R&M -Buildings DLO Charge,SECURITY WISE LTD,14/07/2016,190.00,
Commercial Services,Property & Design (BiT),COAP,Premises-Related Expenditure,R&M -Buildings DLO Charge,SECURITY WISE LTD,14/07/2016,823,
Commercial Services,Property & Design (BiT),COAP,Premises-Related Expenditure,R&M -Buildings DLO Charge,JONES & HAMPTON LTD,12/07/2016,132.67,
Commercial Services,Property & Design (BiT),COAE,Premises-Related Expenditure,R&M -Buildings DLO Charge,Lift Source (UK) Limited,15/07/2016,215.00,
Commercial Services,Property & Design (BiT),COAG,Premises-Related Expenditure,R&M -Buildings DLO Charge,JCE & SONS LTD,12/07/2016,150.00,
Commercial Services,Property & Design (BiT),CAAH,Premises-Related Expenditure,R&M -Buildings DLO Charge,George Birchall Limited,13/07/2016,389.35,
Commercial Services,Property & Design (BiT),CAAH,Premises-Related Expenditure,R&M -Buildings DLO Charge,Churches Fire Security Ltd,07/07/2016,304.60,
Commercial Services,Property & Design (BiT),CAAH,Premises-Related Expenditure,R&M -Buildings DLO Charge,SECURITY WISE LTD,13/07/2016,145.00,
Commercial Services,Property & Design (BiT),COAG,Premises-Related Expenditure,R&M -Buildings DLO Charge,JCE & SONS LTD,13/07/2016,"1,207.50",
Commercial Services,Property & Design (BiT),CAAH,Premises-Related Expenditure,R&M -Buildings DLO Charge,Churches Fire Security Ltd,07/07/2016,263.15,
Commercial Services,Property & Design (BiT),COAP,Premises-Related Expenditure,R&M -Buildings DLO Charge,JCE & SONS LTD,12/07/2016,122.49,
Commercial Services,Property & Design (BiT),CAAH,Premises-Related Expenditure,R&M -Buildings DLO Charge,SECURITY WISE LTD,29/07/2016,140.00,
Commercial Services,Property & Design (BiT),COAG,Premises-Related Expenditure,R&M -Buildings DLO Charge,JCE & SONS LTD,12/07/2016,179.00,
Commercial Services,Property & Design (BiT),CAAH,Premises-Related Expenditure,R&M -Buildings DLO Charge,AGS AUTOMATIC DOORS LTD,07/07/2016,370,
Commercial Services,Sport & Leisure,CASP,Supplies & Services,Provisions,BIKOLD,22/07/2016,217.98,
Commercial Services,Sport & Leisure,CASP,Supplies & Services,Provisions,BIKOLD,22/07/2016,136.63,
Commercial Services,Sport & Leisure,CAHH,Supplies & Services,Provisions,BIKOLD,22/07/2016,147.82,
Commercial Services,Sport & Leisure,CASP,Supplies & Services,Provisions,BIKOLD,22/07/2016,192.59,
Commercial Services,Sport & Leisure,CASP,Supplies & Services,Provisions,BIKOLD,22/07/2016,177.19,
Commercial Services,Sport & Leisure,CASP,Supplies & Services,Provisions,BIKOLD,22/07/2016,145.96,
Commercial Services,Sport & Leisure,CASP,Supplies & Services,Provisions,BIKOLD,22/07/2016,110.18,
Commercial Services,Sport & Leisure,CASP,Supplies & Services,Provisions,BIKOLD,22/07/2016,-178.21,
Commercial Services,Sport & Leisure,CASS,Supplies & Services,Provisions,BIKOLD,22/07/2016,549.01,
Commercial Services,Sport & Leisure,CASP,Supplies & Services,Provisions,BIKOLD,22/07/2016,114.60,
Commercial Services,Sport & Leisure,CASP,Supplies & Services,Provisions,BIKOLD,22/07/2016,266.66,
Commercial Services,Sport & Leisure,CASN,Supplies & Services,Provisions,BIKOLD,22/07/2016,127.81,
Commercial Services,Sport & Leisure,CASP,Supplies & Services,Provisions,BIKOLD,22/07/2016,332.75,
Commercial Services,Sport & Leisure,CASP,Supplies & Services,Provisions,BIKOLD,22/07/2016,220.02,
Commercial Services,Sport & Leisure,CASP,Supplies & Services,Provisions,BIKOLD,22/07/2016,167.11,
Commercial Services,Sport & Leisure,CASS,Supplies & Services,Provisions,BIKOLD,22/07/2016,168.54,
Commercial Services,Sport & Leisure,CASP,Supplies & Services,Provisions,BIKOLD,22/07/2016,150.04,
Commercial Services,Sport & Leisure,CASP,Supplies & Services,Provisions,BIKOLD,22/07/2016,109.32,
Commercial Services,Sport & Leisure,CASP,Supplies & Services,Provisions,BIKOLD,22/07/2016,291.83,
Commercial Services,Sport & Leisure,CASP,Supplies & Services,Provisions,BIKOLD,22/07/2016,337.67,
Commercial Services,Sport & Leisure,CASP,Supplies & Services,Provisions,BIKOLD,22/07/2016,106.08,
Commercial Services,Sport & Leisure,CASP,Supplies & Services,Provisions,BIKOLD,22/07/2016,230.83,
Commercial Services,Sport & Leisure,CASP,Supplies & Services,Provisions,BIKOLD,22/07/2016,217.19,
Commercial Services,Sport & Leisure,CASN,Supplies & Services,Provisions,BIKOLD,22/07/2016,166.95,
Commercial Services,Sport & Leisure,CASP,Supplies & Services,Provisions,BIKOLD,22/07/2016,312.73,
Commercial Services,Sport & Leisure,CASP,Supplies & Services,Provisions,BIKOLD,22/07/2016,105.14,
Commercial Services,Sport & Leisure,CASP,Supplies & Services,Provisions,BIKOLD,22/07/2016,293.10,
Commercial Services,Sport & Leisure,CASP,Supplies & Services,Provisions,BIKOLD,22/07/2016,128.56,
Commercial Services,Sport & Leisure,CASP,Supplies & Services,Provisions,BIKOLD,22/07/2016,235.63,
Commercial Services,Sport & Leisure,CASP,Supplies & Services,Provisions,BIKOLD,22/07/2016,203.19,
Commercial Services,Sport & Leisure,CASP,Supplies & Services,Provisions,BIKOLD,22/07/2016,246.47,
Commercial Services,Sport & Leisure,CASS,Supplies & Services,Provisions,BIKOLD,22/07/2016,-139.50,
Commercial Services,Sport & Leisure,CASP,Supplies & Services,Provisions,BIKOLD,22/07/2016,172.70,
Commercial Services,Sport & Leisure,CASP,Supplies & Services,Provisions,BIKOLD,22/07/2016,113.84,
Commercial Services,Sport & Leisure,COMM,Supplies & Services,Provisions,BIKOLD,22/07/2016,209.50,
Commercial Services,Sport & Leisure,CASP,Supplies & Services,Provisions,BIKOLD,22/07/2016,172.7,
Commercial Services,Sport & Leisure,CASP,Supplies & Services,Provisions,BIKOLD,22/07/2016,131.29,
Commercial Services,Sport & Leisure,CASP,Supplies & Services,Provisions,BIKOLD,22/07/2016,162.37,
Commercial Services,Sport & Leisure,CASP,Supplies & Services,Provisions,BIKOLD,22/07/2016,109.20,
Commercial Services,Sport & Leisure,CASP,Supplies & Services,Provisions,John Sheppard Catering Butchers,21/07/2016,220.83,
Commercial Services,Sport & Leisure,CASP,Supplies & Services,Provisions,John Sheppard Catering Butchers,21/07/2016,123.53,
Commercial Services,Sport & Leisure,CASX,Supplies & Services,Provisions,John Sheppard Catering Butchers,21/07/2016,170.29,
Commercial Services,Sport & Leisure,CASN,Supplies & Services,Provisions,John Sheppard Catering Butchers,21/07/2016,130.07,
Commercial Services,Sport & Leisure,CASP,Supplies & Services,Provisions,John Sheppard Catering Butchers,21/07/2016,136.00,
Commercial Services,Sport & Leisure,CASP,Supplies & Services,Provisions,John Sheppard Catering Butchers,21/07/2016,200.37,
Commercial Services,Sport & Leisure,CASS,Supplies & Services,Provisions,THEOS FOOD SERVICE LTD,22/07/2016,108,
Commercial Services,Sport & Leisure,CASS,Supplies & Services,Provisions,TROPICAL ICE,22/07/2016,135,
Commercial Services,Sport & Leisure,CASP,Supplies & Services,Provisions,John Sheppard Catering Butchers,21/07/2016,133.72,
Commercial Services,Sport & Leisure,CASP,Supplies & Services,Provisions,John Sheppard Catering Butchers,21/07/2016,131.64,
Commercial Services,Sport & Leisure,CASP,Supplies & Services,Provisions,John Sheppard Catering Butchers,21/07/2016,145.25,
Commercial Services,Sport & Leisure,CASP,Supplies & Services,Provisions,John Sheppard Catering Butchers,21/07/2016,134.40,
Commercial Services,Sport & Leisure,CASP,Supplies & Services,Provisions,John Sheppard Catering Butchers,21/07/2016,122.64,
Commercial Services,Sport & Leisure,CASP,Supplies & Services,Provisions,John Sheppard Catering Butchers,21/07/2016,228.94,
Commercial Services,Sport & Leisure,CASP,Supplies & Services,Provisions,BIKOLD,22/07/2016,116.87,
Commercial Services,Sport & Leisure,CASP,Supplies & Services,Provisions,John Sheppard Catering Butchers,21/07/2016,223.63,
Commercial Services,Sport & Leisure,CASP,Supplies & Services,Provisions,BIKOLD,22/07/2016,205.73,
Commercial Services,Sport & Leisure,CASP,Supplies & Services,Provisions,BIKOLD,22/07/2016,198.71,
Commercial Services,Sport & Leisure,CASN,Supplies & Services,Provisions,BIKOLD,22/07/2016,278.28,
Commercial Services,Sport & Leisure,CASP,Supplies & Services,Provisions,John Sheppard Catering Butchers,21/07/2016,123.53,
Commercial Services,Sport & Leisure,CASS,Supplies & Services,Provisions,THEOS FOOD SERVICE LTD,22/07/2016,394.80,
Commercial Services,Sport & Leisure,CASS,Supplies & Services,Provisions,On A Roll,22/07/2016,192.56,
Commercial Services,Sport & Leisure,CASP,Supplies & Services,Provisions,BIKOLD,22/07/2016,200.71,
Commercial Services,Sport & Leisure,CASP,Supplies & Services,Provisions,John Sheppard Catering Butchers,21/07/2016,163.46,
Commercial Services,Sport & Leisure,CASP,Supplies & Services,Provisions,BIKOLD,22/07/2016,162.52,
Commercial Services,Sport & Leisure,CASP,Supplies & Services,Provisions,BIKOLD,22/07/2016,241.31,
Commercial Services,Sport & Leisure,CASP,Supplies & Services,Provisions,BIKOLD,22/07/2016,166.46,
Commercial Services,Sport & Leisure,CASP,Supplies & Services,Provisions,BIKOLD,22/07/2016,127.55,
Commercial Services,Sport & Leisure,CASP,Supplies & Services,Provisions,BIKOLD,22/07/2016,280.70,
Commercial Services,Sport & Leisure,CASP,Supplies & Services,Provisions,BIKOLD,22/07/2016,102.06,
Commercial Services,Sport & Leisure,CASP,Supplies & Services,Provisions,BIKOLD,22/07/2016,166.96,
Commercial Services,Sport & Leisure,CASP,Supplies & Services,Provisions,BIKOLD,22/07/2016,138.18,
Commercial Services,Sport & Leisure,CAOC,Supplies & Services,Provisions,John Sheppard Catering Butchers,21/07/2016,180.63,
Commercial Services,Sport & Leisure,CASP,Supplies & Services,Provisions,SMART FOOD,25/07/2016,183.80,
Commercial Services,Sport & Leisure,CASP,Supplies & Services,Provisions,BIKOLD,22/07/2016,161.88,
Commercial Services,Sport & Leisure,CASP,Supplies & Services,Provisions,BIKOLD,22/07/2016,136.13,
Commercial Services,Sport & Leisure,CASP,Supplies & Services,Provisions,BIKOLD,22/07/2016,114.76,
Commercial Services,Sport & Leisure,CASP,Supplies & Services,Provisions,BIKOLD,22/07/2016,198.04,
Commercial Services,Sport & Leisure,CASP,Supplies & Services,Provisions,BIKOLD,22/07/2016,267.38,
Commercial Services,Sport & Leisure,CASP,Supplies & Services,Provisions,BIKOLD,22/07/2016,106.10,
Commercial Services,Sport & Leisure,ETAG,Transport-Related Expenditure,Servicing & Repairs V&P,AEM GROUP LTD,29/07/2016,230,
Commercial Services,Sport & Leisure,ETAG,Transport-Related Expenditure,Servicing & Repairs V&P,AEM GROUP LTD,26/07/2016,184.00,
Commercial Services,Sport & Leisure,ETAG,Transport-Related Expenditure,Servicing & Repairs V&P,AEM GROUP LTD,29/07/2016,460.00,
Commercial Services,Sport & Leisure,ETAG,Transport-Related Expenditure,Servicing & Repairs V&P,FTA,04/07/2016,179.50,
Commercial Services,Sport & Leisure,LEHM,Transport-Related Expenditure,Servicing & Repairs V&P,CHARLIES STORES LTD,20/07/2016,224.60,
Commercial Services,Sport & Leisure,ETAG,Transport-Related Expenditure,Servicing & Repairs V&P,P LEEK COMMERCIAL REPAIRS LTD,21/07/2016,227.50,
Commercial Services,Sport & Leisure,ETAG,Transport-Related Expenditure,Servicing & Repairs V&P,AEM GROUP LTD,21/07/2016,138.00,
Commercial Services,Sport & Leisure,ETAG,Transport-Related Expenditure,Servicing & Repairs V&P,AEM GROUP LTD,21/07/2016,368.00,
Commercial Services,Sport & Leisure,ETAG,Transport-Related Expenditure,Servicing & Repairs V&P,AEM GROUP LTD,21/07/2016,322.00,
Commercial Services,Sport & Leisure,ETAG,Transport-Related Expenditure,Servicing & Repairs V&P,AEM GROUP LTD,04/07/2016,460.00,
Commercial Services,Sport & Leisure,ETAG,Transport-Related Expenditure,Servicing & Repairs V&P,AEM GROUP LTD,26/07/2016,138.00,
Commercial Services,Sport & Leisure,LEHM,Transport-Related Expenditure,Servicing & Repairs V&P,CHARLIES STORES LTD,20/07/2016,224.52,
Commercial Services,Sport & Leisure,ETAG,Transport-Related Expenditure,Servicing & Repairs V&P,AEM GROUP LTD,26/07/2016,138.00,
Commercial Services,Sport & Leisure,CASP,Supplies & Services,Provisions,BIKOLD,01/07/2016,140.08,
Commercial Services,Sport & Leisure,CASP,Supplies & Services,Provisions,John Sheppard Catering Butchers,21/07/2016,149.43,
Commercial Services,Sport & Leisure,ETAG,Transport-Related Expenditure,Servicing & Repairs V&P,P LEEK COMMERCIAL REPAIRS LTD,21/07/2016,262.50,
Commercial Services,Sport & Leisure,ETAG,Transport-Related Expenditure,Servicing & Repairs V&P,P LEEK COMMERCIAL REPAIRS LTD,26/07/2016,192.50,
Commercial Services,Sport & Leisure,ETAG,Transport-Related Expenditure,Servicing & Repairs V&P,AEM GROUP LTD,26/07/2016,230.00,
Commercial Services,Sport & Leisure,ETAG,Transport-Related Expenditure,Servicing & Repairs V&P,AEM GROUP LTD,11/07/2016,184,
Commercial Services,Sport & Leisure,ETAG,Transport-Related Expenditure,Servicing & Repairs V&P,T J VICKERS & SONS LTD,11/07/2016,270.00,
Commercial Services,Sport & Leisure,ETAG,Transport-Related Expenditure,Servicing & Repairs V&P,AEM GROUP LTD,26/07/2016,138.00,
Commercial Services,Sport & Leisure,ETAG,Transport-Related Expenditure,Servicing & Repairs V&P,P LEEK COMMERCIAL REPAIRS LTD,26/07/2016,262.50,
Commercial Services,Sport & Leisure,LEAN,Supplies & Services,Financial Services,DEBIT FINANCE COLLECTIONS (DFC),05/07/2016,118.20,
Commercial Services,Sport & Leisure,LECE,Supplies & Services,Financial Services,DEBIT FINANCE COLLECTIONS (DFC),05/07/2016,103.00,
Commercial Services,Sport & Leisure,ETAH,Supplies & Services,Comp Hardware (Purch / Hire),CF CORPORATE FINANCE LTD,28/07/2016,189.58,
Commercial Services,Sport & Leisure,CAMA,Supplies & Services,Computer Hardware (Maint),NATIONWIDE RETAIL SYSTEMS LTD,11/07/2016,107.00,
Commercial Services,Sport & Leisure,LEDH,Supplies & Services,Flex Charges,Core Business Systems Ltd  T/A Cascade,25/07/2016,"5,835.00",
Commercial Services,Sport & Leisure,CAMA,Supplies & Services,Conference Expenses,APSE (MANCHESTER),11/07/2016,158.00,
Commercial Services,Sport & Leisure,LECB,Premises-Related Expenditure,R&M -Building Other,NOBRIDGE LTD,14/07/2016,187.50,
Commercial Services,Sport & Leisure,LECB,Premises-Related Expenditure,R&M -Building Other,NOBRIDGE LTD,14/07/2016,187.50,
Commercial Services,Sport & Leisure,CAHH,Premises-Related Expenditure,R&M -Building Other,REDACTED PERSONAL INFORMATION ,06/07/2016,270.00,
Commercial Services,Sport & Leisure,COMM,Supplies & Services,Respite Care,Handmade Speciality Products Ltd,22/07/2016,125.78,
Commercial Services,Sport & Leisure,CAHH,Premises-Related Expenditure,R&M -Building Other,Churches Fire Security Ltd,19/07/2016,160.85,
Commercial Services,Sport & Leisure,LEIC,Premises-Related Expenditure,R&M -Building Other,BRADLEY INDUSTRIAL SERVICES,25/07/2016,289.85,
Commercial Services,Sport & Leisure,LEWA,Supplies & Services,Financial Services,DEBIT FINANCE COLLECTIONS (DFC),05/07/2016,143.20,
Commercial Services,Sport & Leisure,CASS,Supplies & Services,Provisions,SMART FOOD,25/07/2016,229.20,
Commercial Services,Sport & Leisure,CAMA,Supplies & Services,Subscriptions,APSE (MANCHESTER),11/07/2016,"3,236.00",
Commercial Services,Sport & Leisure,ETAH,Supplies & Services,Subscriptions,COMMUNITY TRANSPORT ASSOCIATION UK (CTA UK),21/07/2016,182.03,
Commercial Services,Sport & Leisure,LEDB,Supplies & Services,Advertising,360 IMAGERY,14/07/2016,120.00,
Commercial Services,Sport & Leisure,LEDC,Supplies & Services,Advertising,THE MIDLAND NEWS ASSOCIATION LTD,14/07/2016,140.00,
Commercial Services,Sport & Leisure,LEDB,Supplies & Services,Advertising,THE MIDLAND NEWS ASSOCIATION LTD,25/07/2016,140.00,
Commercial Services,Sport & Leisure,LEIR,Supplies & Services,First Aid,ST JOHN AMBULANCE,06/07/2016,345.00,
Commercial Services,Sport & Leisure,LENP,Supplies & Services,First Aid,SP SERVICES (UK) LTD,13/07/2016,140.65,
Commercial Services,Sport & Leisure,LEAD,Supplies & Services,First Aid,SP SERVICES (UK) LTD,21/07/2016,126.20,
Commercial Services,Sport & Leisure,LEAF,Supplies & Services,Performing Rights Fees,PRS FOR MUSIC,12/07/2016,334.90,
Commercial Services,Sport & Leisure,LECE,Supplies & Services,Performing Rights Fees,PRS FOR MUSIC,12/07/2016,"2,051.21",
Commercial Services,Sport & Leisure,LEAD,Supplies & Services,Performing Rights Fees,PRS FOR MUSIC,12/07/2016,"2,006.94",
Commercial Services,Sport & Leisure,LEIR,Third Party Payments,Contribution To Other La's,PS PROMOTIONS LTD,25/07/2016,675,
Commercial Services,Sport & Leisure,LEIR,Third Party Payments,Contribution To Other La's,PS PROMOTIONS LTD,13/07/2016,490.00,
Commercial Services,Sport & Leisure,LEIL,Supplies & Services,Payment Of Income Collected,REDACTED PERSONAL INFORMATION ,06/07/2016,442.80,
Commercial Services,Sport & Leisure,LEWA,Supplies & Services,Financial Services,DEBIT FINANCE COLLECTIONS (DFC),12/07/2016,217.20,
Commercial Services,Sport & Leisure,CAHH,Premises-Related Expenditure,General Rents,Forestry Commission,11/07/2016,"2,000.00",
Commercial Services,Sport & Leisure,LEWP,Premises-Related Expenditure,Swimming Pool Chemicals,BRENNTAG UK LIMITED,07/07/2016,175.50,
Commercial Services,Sport & Leisure,LEAD,Employees,Professional Subs,BADMINTON ASSOCIATION OF ENGLAND LIMITED,13/07/2016,400.00,
Commercial Services,Sport & Leisure,LEAD,Premises-Related Expenditure,Swimming Pool Chemicals,BRENNTAG UK LIMITED,06/07/2016,120.00,
Commercial Services,Sport & Leisure,LEAD,Premises-Related Expenditure,Swimming Pool Chemicals,BRENNTAG UK LIMITED,06/07/2016,257.00,
Commercial Services,Sport & Leisure,CASP,Premises-Related Expenditure,Clean Mats & Toilet Requisites,ERIC NEVILLE CATERING SUPPLIES LTD,04/07/2016,140.00,
Commercial Services,Sport & Leisure,CASP,Premises-Related Expenditure,Clean Mats & Toilet Requisites,ERIC NEVILLE CATERING SUPPLIES LTD,22/07/2016,140.00,
Commercial Services,Sport & Leisure,LEAN,Premises-Related Expenditure,Preventative Maintenance,AMER SPORTS UK LTD,05/07/2016,"2,556.84",
Commercial Services,Sport & Leisure,CAMA,Employees,Training Expenses,ST JOHN AMBULANCE,19/07/2016,130.00,
Commercial Services,Sport & Leisure,CASP,Premises-Related Expenditure,Clean Mats & Toilet Requisites,ERIC NEVILLE CATERING SUPPLIES LTD,14/07/2016,140,
Commercial Services,Sport & Leisure,CAMA,Employees,Training Expenses,CIEH,21/07/2016,169.15,
Commercial Services,Sport & Leisure,ETAH,Employees,Staff Training,APPROVED VOCATIONAL TRAINING,11/07/2016,455.00,
Commercial Services,Sport & Leisure,LEAN,Employees,Staff Training,REDACTED PERSONAL INFORMATION ,27/07/2016,206.28,
Commercial Services,Sport & Leisure,LEAD,Premises-Related Expenditure,Swimming Pool Chemicals,BRENNTAG UK LIMITED,26/07/2016,120.00,
Commercial Services,Sport & Leisure,LENA,Premises-Related Expenditure,Hire Of Rooms,COSY HALL,14/07/2016,148.50,
Commercial Services,Sport & Leisure,LEAJ,Premises-Related Expenditure,Grounds Maint - Sports Pitches,TELFORD & WREKIN SERVICES LTD,20/07/2016,520.55,
Commercial Services,Sport & Leisure,LEAD,Premises-Related Expenditure,Swimming Pool Chemicals,BRENNTAG UK LIMITED,26/07/2016,162.00,
Commercial Services,Sport & Leisure,LEAN,Supplies & Services,Financial Services,DEBIT FINANCE COLLECTIONS (DFC),12/07/2016,178.20,
Commercial Services,Sport & Leisure,LENA,Supplies & Services,Financial Services,DEBIT FINANCE COLLECTIONS (DFC),12/07/2016,133.4,
Commercial Services,Sport & Leisure,LENL,Supplies & Services,Financial Services,DEBIT FINANCE COLLECTIONS (DFC),12/07/2016,202.40,
Commercial Services,Sport & Leisure,ETAN,Transport-Related Expenditure,Servicing & Repairs V&P,P LEEK COMMERCIAL REPAIRS LTD,15/07/2016,185.13,
Commercial Services,Sport & Leisure,ETAG,Transport-Related Expenditure,Servicing & Repairs V&P,AEM GROUP LTD,15/07/2016,275.00,
Commercial Services,Sport & Leisure,LECH,Supplies & Services,Financial Services,DEBIT FINANCE COLLECTIONS (DFC),12/07/2016,136.40,
Commercial Services,Sport & Leisure,LECE,Supplies & Services,Financial Services,DEBIT FINANCE COLLECTIONS (DFC),12/07/2016,224.00,
Commercial Services,Sport & Leisure,LEWL,Supplies & Services,Financial Services,DEBIT FINANCE COLLECTIONS (DFC),12/07/2016,200.80,
Commercial Services,Sport & Leisure,LEAN,Supplies & Services,Financial Services,DEBIT FINANCE COLLECTIONS (DFC),28/07/2016,117.40,
Commercial Services,Sport & Leisure,LEWA,Supplies & Services,Financial Services,DEBIT FINANCE COLLECTIONS (DFC),28/07/2016,147.20,
Commercial Services,Sport & Leisure,LECE,Supplies & Services,Financial Services,DEBIT FINANCE COLLECTIONS (DFC),28/07/2016,105.00,
Commercial Services,Sport & Leisure,ETAG,Transport-Related Expenditure,Servicing & Repairs V&P,GREENHOUS VOLKSWAGEN VAN CENTRE,15/07/2016,"2,600.00",
Commercial Services,Sport & Leisure,LEHA,Supplies & Services,Financial Services,DEBIT FINANCE COLLECTIONS (DFC),12/07/2016,113.20,
Commercial Services,Sport & Leisure,ETAG,Transport-Related Expenditure,Servicing & Repairs V&P,T J VICKERS & SONS LTD,15/07/2016,360.00,
Commercial Services,Sport & Leisure,GTAC,Employees,Agency Supply Costs,SHROPSHIRE COUNCIL,11/07/2016,"6,250.00",
Commercial Services,Sport & Leisure,LEAL,Supplies & Services,Financial Services,DEBIT FINANCE COLLECTIONS (DFC),12/07/2016,200.80,
Commercial Services,Sport & Leisure,CASP,Supplies & Services,Provisions,BIKOLD,08/07/2016,160.54,
Commercial Services,Sport & Leisure,CASP,Supplies & Services,Provisions,ROWLANDS & COMPANY,05/07/2016,156.96,
Commercial Services,Sport & Leisure,CASP,Supplies & Services,Provisions,ROWLANDS & COMPANY,05/07/2016,135.30,
Commercial Services,Sport & Leisure,CASP,Supplies & Services,Provisions,ROWLANDS & COMPANY,05/07/2016,138.03,
Commercial Services,Sport & Leisure,CASP,Supplies & Services,Provisions,ROWLANDS & COMPANY,05/07/2016,177.21,
Commercial Services,Sport & Leisure,CASP,Supplies & Services,Provisions,ROWLANDS & COMPANY,05/07/2016,124.74,
Commercial Services,Sport & Leisure,CASP,Supplies & Services,Provisions,ROWLANDS & COMPANY,05/07/2016,161.13,
Commercial Services,Sport & Leisure,CASP,Supplies & Services,Provisions,ROWLANDS & COMPANY,05/07/2016,106.33,
Commercial Services,Sport & Leisure,CASP,Supplies & Services,Provisions,ROWLANDS & COMPANY,05/07/2016,100.43,
Commercial Services,Sport & Leisure,CASP,Supplies & Services,Provisions,ROWLANDS & COMPANY,05/07/2016,137.97,
Commercial Services,Sport & Leisure,CASP,Supplies & Services,Provisions,ROWLANDS & COMPANY,05/07/2016,127.66,
Commercial Services,Sport & Leisure,CAHH,Supplies & Services,Provisions,Aroma Tea & Coffee Merchants,11/07/2016,136.05,
Commercial Services,Sport & Leisure,CAHH,Supplies & Services,Provisions,Buttercross Farm,11/07/2016,112.50,
Commercial Services,Sport & Leisure,CASS,Supplies & Services,Provisions,THEOS FOOD SERVICE LTD,11/07/2016,143.85,
Commercial Services,Sport & Leisure,CASP,Supplies & Services,Provisions,ROWLANDS & COMPANY,05/07/2016,151.80,
Commercial Services,Sport & Leisure,CASS,Supplies & Services,Provisions,BIKOLD,08/07/2016,157.03,
Commercial Services,Sport & Leisure,CASS,Supplies & Services,Provisions,BIKOLD,08/07/2016,140.77,
Commercial Services,Sport & Leisure,CAHH,Supplies & Services,Provisions,ROWLANDS & COMPANY,11/07/2016,165.78,
Commercial Services,Sport & Leisure,CASP,Supplies & Services,Provisions,ROWLANDS & COMPANY,05/07/2016,218.91,
Commercial Services,Sport & Leisure,CASP,Supplies & Services,Provisions,ROWLANDS & COMPANY,05/07/2016,125.94,
Commercial Services,Sport & Leisure,CASP,Supplies & Services,Provisions,ROWLANDS & COMPANY,05/07/2016,222.68,
Commercial Services,Sport & Leisure,CASS,Supplies & Services,Provisions,BIKOLD,08/07/2016,165.57,
Commercial Services,Sport & Leisure,CASP,Supplies & Services,Provisions,ROWLANDS & COMPANY,05/07/2016,151.02,
Commercial Services,Sport & Leisure,CASP,Supplies & Services,Provisions,BIKOLD,08/07/2016,105.18,
Commercial Services,Sport & Leisure,CASP,Supplies & Services,Provisions,BIKOLD,08/07/2016,258.47,
Commercial Services,Sport & Leisure,CASP,Supplies & Services,Provisions,BIKOLD,08/07/2016,138.63,
Commercial Services,Sport & Leisure,CASX,Supplies & Services,Provisions,BIKOLD,08/07/2016,147.91,
Commercial Services,Sport & Leisure,CASP,Supplies & Services,Provisions,BIKOLD,08/07/2016,123.55,
Commercial Services,Sport & Leisure,CASP,Supplies & Services,Provisions,BIKOLD,08/07/2016,147.63,
Commercial Services,Sport & Leisure,CASP,Supplies & Services,Provisions,BIKOLD,08/07/2016,133.48,
Commercial Services,Sport & Leisure,CASP,Supplies & Services,Provisions,BIKOLD,08/07/2016,157.60,
Commercial Services,Sport & Leisure,CASP,Supplies & Services,Provisions,BIKOLD,08/07/2016,130.71,
Commercial Services,Sport & Leisure,LCAP,Supplies & Services,Provisions,BIKOLD,08/07/2016,108.78,
Commercial Services,Sport & Leisure,CASP,Supplies & Services,Provisions,BIKOLD,08/07/2016,251.66,
Commercial Services,Sport & Leisure,CASP,Supplies & Services,Provisions,BIKOLD,08/07/2016,194.98,
Commercial Services,Sport & Leisure,CASP,Supplies & Services,Provisions,BIKOLD,08/07/2016,311.56,
Commercial Services,Sport & Leisure,CASP,Supplies & Services,Provisions,BIKOLD,08/07/2016,452.53,
Commercial Services,Sport & Leisure,CASP,Supplies & Services,Provisions,BIKOLD,08/07/2016,183.61,
Commercial Services,Sport & Leisure,CASN,Supplies & Services,Provisions,BIKOLD,08/07/2016,225.46,
Commercial Services,Sport & Leisure,CASP,Supplies & Services,Provisions,BIKOLD,08/07/2016,142.43,
Commercial Services,Sport & Leisure,CASP,Supplies & Services,Provisions,BIKOLD,08/07/2016,148.02,
Commercial Services,Sport & Leisure,CASP,Supplies & Services,Provisions,BIKOLD,08/07/2016,135.75,
Commercial Services,Sport & Leisure,CASP,Supplies & Services,Provisions,BIKOLD,08/07/2016,159.24,
Commercial Services,Sport & Leisure,CASP,Supplies & Services,Provisions,BIKOLD,08/07/2016,256.35,
Commercial Services,Sport & Leisure,CASP,Supplies & Services,Provisions,ROWLANDS & COMPANY,05/07/2016,142.74,
Commercial Services,Sport & Leisure,CASP,Supplies & Services,Provisions,BIKOLD,08/07/2016,122.58,
Commercial Services,Sport & Leisure,CASP,Supplies & Services,Provisions,John Sheppard Catering Butchers,05/07/2016,137.56,
Commercial Services,Sport & Leisure,CASN,Supplies & Services,Provisions,John Sheppard Catering Butchers,05/07/2016,118.76,
Commercial Services,Sport & Leisure,CASP,Supplies & Services,Provisions,ROWLANDS & COMPANY,05/07/2016,150.64,
Commercial Services,Sport & Leisure,CASS,Supplies & Services,Provisions,ROWLANDS & COMPANY,05/07/2016,105.73,
Commercial Services,Sport & Leisure,CASP,Supplies & Services,Provisions,ROWLANDS & COMPANY,05/07/2016,102.05,
Commercial Services,Sport & Leisure,CASP,Supplies & Services,Provisions,ROWLANDS & COMPANY,05/07/2016,132.33,
Commercial Services,Sport & Leisure,CASP,Supplies & Services,Provisions,ROWLANDS & COMPANY,05/07/2016,167.67,
Commercial Services,Sport & Leisure,CASP,Supplies & Services,Provisions,John Sheppard Catering Butchers,05/07/2016,202.42,
Commercial Services,Sport & Leisure,CASP,Supplies & Services,Provisions,John Sheppard Catering Butchers,05/07/2016,230.04,
Commercial Services,Sport & Leisure,CASP,Supplies & Services,Provisions,John Sheppard Catering Butchers,05/07/2016,150.00,
Commercial Services,Sport & Leisure,CASP,Supplies & Services,Provisions,John Sheppard Catering Butchers,05/07/2016,264.02,
Commercial Services,Sport & Leisure,CASP,Supplies & Services,Provisions,John Sheppard Catering Butchers,05/07/2016,193.72,
Commercial Services,Sport & Leisure,CASS,Supplies & Services,Provisions,John Sheppard Catering Butchers,05/07/2016,114.41,
Commercial Services,Sport & Leisure,CASP,Supplies & Services,Provisions,John Sheppard Catering Butchers,05/07/2016,251.43,
Commercial Services,Sport & Leisure,CASP,Supplies & Services,Provisions,John Sheppard Catering Butchers,05/07/2016,155.97,
Commercial Services,Sport & Leisure,CASP,Supplies & Services,Provisions,John Sheppard Catering Butchers,05/07/2016,156.00,
Commercial Services,Sport & Leisure,CASP,Supplies & Services,Provisions,John Sheppard Catering Butchers,05/07/2016,243.13,
Commercial Services,Sport & Leisure,CASP,Supplies & Services,Provisions,John Sheppard Catering Butchers,05/07/2016,140.63,
Commercial Services,Sport & Leisure,CASP,Supplies & Services,Provisions,John Sheppard Catering Butchers,05/07/2016,146.41,
Commercial Services,Sport & Leisure,CASP,Supplies & Services,Provisions,John Sheppard Catering Butchers,05/07/2016,154.60,
Commercial Services,Sport & Leisure,CASP,Supplies & Services,Provisions,John Sheppard Catering Butchers,05/07/2016,184.87,
Commercial Services,Sport & Leisure,CASP,Supplies & Services,Provisions,John Sheppard Catering Butchers,05/07/2016,110.97,
Commercial Services,Sport & Leisure,CASP,Supplies & Services,Provisions,ROWLANDS & COMPANY,05/07/2016,141.84,
Commercial Services,Sport & Leisure,CASP,Supplies & Services,Provisions,John Sheppard Catering Butchers,05/07/2016,189.49,
Commercial Services,Sport & Leisure,CASP,Supplies & Services,Provisions,John Sheppard Catering Butchers,05/07/2016,273.44,
Commercial Services,Sport & Leisure,CASP,Supplies & Services,Provisions,John Sheppard Catering Butchers,05/07/2016,224.84,
Commercial Services,Sport & Leisure,CASP,Supplies & Services,Provisions,John Sheppard Catering Butchers,05/07/2016,149.27,
Commercial Services,Sport & Leisure,CASP,Supplies & Services,Provisions,John Sheppard Catering Butchers,05/07/2016,215.12,
Commercial Services,Sport & Leisure,CASP,Supplies & Services,Provisions,John Sheppard Catering Butchers,05/07/2016,132.80,
Commercial Services,Sport & Leisure,CASP,Supplies & Services,Provisions,John Sheppard Catering Butchers,05/07/2016,181.07,
Commercial Services,Sport & Leisure,CASP,Supplies & Services,Provisions,John Sheppard Catering Butchers,05/07/2016,244.06,
Commercial Services,Sport & Leisure,CASP,Supplies & Services,Provisions,ROWLANDS & COMPANY,05/07/2016,107.35,
Commercial Services,Sport & Leisure,CASP,Supplies & Services,Provisions,ROWLANDS & COMPANY,05/07/2016,113.73,
Commercial Services,Sport & Leisure,CASP,Supplies & Services,Provisions,ROWLANDS & COMPANY,05/07/2016,120.80,
Commercial Services,Sport & Leisure,CASP,Supplies & Services,Provisions,ROWLANDS & COMPANY,05/07/2016,124.16,
Commercial Services,Sport & Leisure,CASP,Supplies & Services,Provisions,ROWLANDS & COMPANY,05/07/2016,149.38,
Commercial Services,Sport & Leisure,CASP,Supplies & Services,Provisions,John Sheppard Catering Butchers,05/07/2016,190.33,
Commercial Services,Sport & Leisure,CASP,Supplies & Services,Provisions,ROWLANDS & COMPANY,05/07/2016,103.10,
Commercial Services,Sport & Leisure,CASP,Supplies & Services,Provisions,ROWLANDS & COMPANY,05/07/2016,109.58,
Commercial Services,Sport & Leisure,CASP,Supplies & Services,Provisions,ROWLANDS & COMPANY,05/07/2016,114.47,
Commercial Services,Sport & Leisure,CASP,Supplies & Services,Provisions,ROWLANDS & COMPANY,05/07/2016,187.25,
Commercial Services,Sport & Leisure,CASP,Supplies & Services,Provisions,ROWLANDS & COMPANY,05/07/2016,130.96,
Commercial Services,Sport & Leisure,CASP,Supplies & Services,Provisions,ROWLANDS & COMPANY,05/07/2016,166.66,
Commercial Services,Sport & Leisure,CASP,Supplies & Services,Provisions,ROWLANDS & COMPANY,05/07/2016,115.69,
Commercial Services,Sport & Leisure,CASP,Supplies & Services,Provisions,ROWLANDS & COMPANY,05/07/2016,112.01,
Commercial Services,Sport & Leisure,COMM,Supplies & Services,Provisions,BIKOLD,08/07/2016,275.74,
Commercial Services,Sport & Leisure,CASP,Supplies & Services,Provisions,ROWLANDS & COMPANY,05/07/2016,208.10,
Commercial Services,Sport & Leisure,CASP,Supplies & Services,Provisions,BIKOLD,08/07/2016,280.60,
Commercial Services,Sport & Leisure,CASP,Supplies & Services,Provisions,BIKOLD,08/07/2016,118.34,
Commercial Services,Sport & Leisure,CASP,Supplies & Services,Provisions,BIKOLD,08/07/2016,118.56,
Commercial Services,Sport & Leisure,CASP,Supplies & Services,Provisions,BIKOLD,08/07/2016,256.57,
Commercial Services,Sport & Leisure,CASP,Supplies & Services,Provisions,BIKOLD,08/07/2016,301.74,
Commercial Services,Sport & Leisure,CASP,Supplies & Services,Provisions,BIKOLD,08/07/2016,183.29,
Commercial Services,Sport & Leisure,CASP,Supplies & Services,Provisions,BIKOLD,08/07/2016,265.11,
Commercial Services,Sport & Leisure,CASP,Supplies & Services,Provisions,BIKOLD,08/07/2016,209.82,
Commercial Services,Sport & Leisure,CASP,Supplies & Services,Provisions,BIKOLD,08/07/2016,219.32,
Commercial Services,Sport & Leisure,CASP,Supplies & Services,Provisions,BIKOLD,08/07/2016,156.01,
Commercial Services,Sport & Leisure,CASP,Supplies & Services,Provisions,BIKOLD,08/07/2016,115.12,
Commercial Services,Sport & Leisure,CASP,Supplies & Services,Provisions,BIKOLD,08/07/2016,364.81,
Commercial Services,Sport & Leisure,CASP,Supplies & Services,Provisions,BIKOLD,08/07/2016,168.59,
Commercial Services,Sport & Leisure,CASS,Supplies & Services,Provisions,BIKOLD,08/07/2016,197.69,
Commercial Services,Sport & Leisure,CASS,Supplies & Services,Provisions,BIKOLD,08/07/2016,173.3,
Commercial Services,Sport & Leisure,CASP,Supplies & Services,Provisions,BIKOLD,08/07/2016,127.82,
Commercial Services,Sport & Leisure,CASP,Supplies & Services,Provisions,BIKOLD,08/07/2016,149.62,
Commercial Services,Sport & Leisure,CASP,Supplies & Services,Provisions,BIKOLD,08/07/2016,128.59,
Commercial Services,Sport & Leisure,CASP,Supplies & Services,Provisions,BIKOLD,08/07/2016,117.23,
Commercial Services,Sport & Leisure,CASP,Supplies & Services,Provisions,BIKOLD,08/07/2016,131.39,
Commercial Services,Sport & Leisure,CASS,Supplies & Services,Provisions,BIKOLD,08/07/2016,448.67,
Commercial Services,Sport & Leisure,COMM,Supplies & Services,Provisions,BIKOLD,08/07/2016,154.79,
Commercial Services,Sport & Leisure,CASP,Supplies & Services,Provisions,BIKOLD,08/07/2016,458.30,
Commercial Services,Sport & Leisure,CASP,Supplies & Services,Provisions,BIKOLD,08/07/2016,178.98,
Commercial Services,Sport & Leisure,CASP,Supplies & Services,Provisions,BIKOLD,08/07/2016,337.15,
Commercial Services,Sport & Leisure,CASP,Supplies & Services,Provisions,BIKOLD,08/07/2016,132.84,
Commercial Services,Sport & Leisure,CASP,Supplies & Services,Provisions,BIKOLD,08/07/2016,261.93,
Commercial Services,Sport & Leisure,CASP,Supplies & Services,Provisions,BIKOLD,08/07/2016,149.67,
Commercial Services,Sport & Leisure,CASP,Supplies & Services,Provisions,BIKOLD,08/07/2016,340.22,
Commercial Services,Sport & Leisure,CASP,Supplies & Services,Provisions,BIKOLD,08/07/2016,122.05,
Commercial Services,Sport & Leisure,CASS,Supplies & Services,Provisions,On A Roll,04/07/2016,211.03,
Commercial Services,Sport & Leisure,CASS,Supplies & Services,Provisions,TROPICAL ICE,04/07/2016,345.00,
Commercial Services,Sport & Leisure,CASS,Supplies & Services,Provisions,THEOS FOOD SERVICE LTD,04/07/2016,116.05,
Commercial Services,Sport & Leisure,CASP,Supplies & Services,Provisions,BIKOLD,08/07/2016,139.82,
Commercial Services,Sport & Leisure,CASP,Supplies & Services,Provisions,BIKOLD,08/07/2016,101.53,
Commercial Services,Sport & Leisure,CASP,Supplies & Services,Provisions,BIKOLD,08/07/2016,183.37,
Commercial Services,Sport & Leisure,CASP,Supplies & Services,Provisions,BIKOLD,01/07/2016,132.74,
Commercial Services,Sport & Leisure,CASP,Supplies & Services,Provisions,BIKOLD,01/07/2016,124.38,
Commercial Services,Sport & Leisure,CASP,Supplies & Services,Provisions,BIKOLD,01/07/2016,342.95,
Commercial Services,Sport & Leisure,COMM,Supplies & Services,Provisions,Adelie Foods Limited (FORMERLY BRAMBLES FOODS LTD),04/07/2016,533.34,
Commercial Services,Sport & Leisure,COMM,Supplies & Services,Provisions,Adelie Foods Limited (FORMERLY BRAMBLES FOODS LTD),04/07/2016,535.98,
Commercial Services,Sport & Leisure,CASS,Supplies & Services,Provisions,Handmade Speciality Products Ltd,04/07/2016,231.13,
Commercial Services,Sport & Leisure,CASP,Supplies & Services,Provisions,BIKOLD,01/07/2016,129.27,
Commercial Services,Sport & Leisure,CASP,Supplies & Services,Provisions,BIKOLD,01/07/2016,132.43,
Commercial Services,Sport & Leisure,CASP,Supplies & Services,Provisions,BIKOLD,08/07/2016,109.02,
Commercial Services,Sport & Leisure,CASP,Supplies & Services,Provisions,BIKOLD,01/07/2016,207.07,
Commercial Services,Sport & Leisure,CASP,Supplies & Services,Provisions,BIKOLD,08/07/2016,366.95,
Commercial Services,Sport & Leisure,CASP,Supplies & Services,Provisions,BIKOLD,08/07/2016,335.97,
Commercial Services,Sport & Leisure,CASS,Supplies & Services,Provisions,BIKOLD,08/07/2016,242.79,
Commercial Services,Sport & Leisure,CASP,Supplies & Services,Provisions,BIKOLD,08/07/2016,217.73,
Commercial Services,Sport & Leisure,CASP,Supplies & Services,Provisions,BIKOLD,08/07/2016,263.73,
Commercial Services,Sport & Leisure,CASP,Supplies & Services,Provisions,BIKOLD,08/07/2016,194.04,
Commercial Services,Sport & Leisure,CASP,Supplies & Services,Provisions,BIKOLD,08/07/2016,215.78,
Commercial Services,Sport & Leisure,CASP,Supplies & Services,Provisions,BIKOLD,08/07/2016,118.98,
Commercial Services,Sport & Leisure,CASP,Supplies & Services,Provisions,BIKOLD,08/07/2016,124.72,
Commercial Services,Sport & Leisure,CASP,Supplies & Services,Provisions,BIKOLD,08/07/2016,122.68,
Commercial Services,Sport & Leisure,CASS,Supplies & Services,Provisions,BIKOLD,08/07/2016,409.77,
Commercial Services,Sport & Leisure,CASS,Supplies & Services,Provisions,BIKOLD,08/07/2016,164.90,
Commercial Services,Sport & Leisure,CAHH,Supplies & Services,Provisions,BIKOLD,08/07/2016,177.33,
Commercial Services,Sport & Leisure,CASP,Supplies & Services,Provisions,BIKOLD,08/07/2016,155.91,
Commercial Services,Sport & Leisure,CASP,Supplies & Services,Provisions,BIKOLD,08/07/2016,153.85,
Commercial Services,Sport & Leisure,CASP,Supplies & Services,Provisions,BIKOLD,08/07/2016,151.25,
Commercial Services,Sport & Leisure,CASP,Supplies & Services,Provisions,BIKOLD,08/07/2016,204.38,
Commercial Services,Sport & Leisure,CASP,Supplies & Services,Provisions,BIKOLD,08/07/2016,404,
Commercial Services,Sport & Leisure,CASP,Supplies & Services,Provisions,BIKOLD,08/07/2016,147.12,
Commercial Services,Sport & Leisure,CASP,Supplies & Services,Provisions,BIKOLD,08/07/2016,147.69,
Commercial Services,Sport & Leisure,CASP,Supplies & Services,Provisions,BIKOLD,08/07/2016,101.46,
Commercial Services,Sport & Leisure,CASP,Supplies & Services,Provisions,BIKOLD,08/07/2016,109.34,
Commercial Services,Sport & Leisure,CASP,Supplies & Services,Provisions,BIKOLD,08/07/2016,129.51,
Commercial Services,Sport & Leisure,CASP,Supplies & Services,Provisions,BIKOLD,08/07/2016,136.31,
Commercial Services,Sport & Leisure,CASS,Supplies & Services,Provisions,BIKOLD,08/07/2016,149.50,
Commercial Services,Sport & Leisure,CASN,Supplies & Services,Provisions,BIKOLD,08/07/2016,124.83,
Commercial Services,Sport & Leisure,CASS,Supplies & Services,Provisions,BIKOLD,08/07/2016,226.65,
Commercial Services,Sport & Leisure,CASP,Supplies & Services,Provisions,BIKOLD,08/07/2016,223.96,
Commercial Services,Sport & Leisure,CASP,Supplies & Services,Provisions,BIKOLD,08/07/2016,228.47,
Commercial Services,Sport & Leisure,CASP,Supplies & Services,Provisions,BIKOLD,08/07/2016,193.87,
Commercial Services,Sport & Leisure,CASP,Supplies & Services,Provisions,BIKOLD,08/07/2016,261.96,
Commercial Services,Sport & Leisure,CASP,Supplies & Services,Provisions,BIKOLD,08/07/2016,353.21,
Commercial Services,Sport & Leisure,CASP,Supplies & Services,Provisions,BIKOLD,08/07/2016,445.73,
Commercial Services,Sport & Leisure,CASN,Supplies & Services,Provisions,BIKOLD,08/07/2016,105.38,
Commercial Services,Sport & Leisure,CASP,Supplies & Services,Provisions,BIKOLD,08/07/2016,186.06,
Commercial Services,Sport & Leisure,CASP,Supplies & Services,Provisions,BIKOLD,08/07/2016,159.18,
Commercial Services,Sport & Leisure,CASP,Supplies & Services,Provisions,BIKOLD,08/07/2016,103.5,
Commercial Services,Sport & Leisure,CASP,Supplies & Services,Provisions,BIKOLD,08/07/2016,214.31,
Commercial Services,Sport & Leisure,CASP,Supplies & Services,Provisions,BIKOLD,08/07/2016,161.93,
Commercial Services,Sport & Leisure,CASP,Supplies & Services,Provisions,BIKOLD,08/07/2016,119.61,
Commercial Services,Sport & Leisure,CASP,Supplies & Services,Provisions,BIKOLD,08/07/2016,272.03,
Commercial Services,Sport & Leisure,CASP,Supplies & Services,Provisions,BIKOLD,08/07/2016,108.37,
Commercial Services,Sport & Leisure,CASP,Supplies & Services,Provisions,BIKOLD,08/07/2016,107.52,
Commercial Services,Sport & Leisure,CASP,Supplies & Services,Provisions,BIKOLD,08/07/2016,224.99,
Commercial Services,Sport & Leisure,CASS,Supplies & Services,Provisions,BIKOLD,08/07/2016,117.77,
Commercial Services,Sport & Leisure,LEIC,Supplies & Services,Provisions,BIKOLD,08/07/2016,220.74,
Commercial Services,Sport & Leisure,CASP,Supplies & Services,Provisions,ROWLANDS & COMPANY,05/07/2016,118.54,
Commercial Services,Sport & Leisure,CASP,Supplies & Services,Provisions,BIKOLD,01/07/2016,180.82,
Commercial Services,Sport & Leisure,CASS,Supplies & Services,Equipment - Purchase,BIKOLD,15/07/2016,145.82,
Commercial Services,Sport & Leisure,LEWP,Supplies & Services,Chemicals/Cleaning Products,BRENNTAG UK LIMITED,07/07/2016,689.00,
Commercial Services,Sport & Leisure,LEAD,Supplies & Services,Chemicals/Cleaning Products,PRINCIPAL HYGIENE SYSTEMS,06/07/2016,120.00,
Commercial Services,Sport & Leisure,LEAN,Supplies & Services,Sport Equip - Purchase,J P LENNARD LTD,06/07/2016,138.66,
Commercial Services,Sport & Leisure,LEAD,Supplies & Services,Sport Equip - Purchase,J P LENNARD LTD,06/07/2016,221.06,
Commercial Services,Sport & Leisure,GTAB,Supplies & Services,Sport Equip - Purchase,THE OUTDOORS COMPANY,11/07/2016,370.03,
Commercial Services,Sport & Leisure,GTAB,Supplies & Services,Sport Equip - Purchase,ALLCORD LIMITED,20/07/2016,129.4,
Commercial Services,Sport & Leisure,GTAB,Supplies & Services,Sport Equip - Purchase,DMM INTERNATIONAL LTD,11/07/2016,281.95,
Commercial Services,Sport & Leisure,GTAB,Supplies & Services,Sport Equip - Purchase,DMM INTERNATIONAL LTD,11/07/2016,105.25,
Commercial Services,Sport & Leisure,GTAB,Supplies & Services,Sport Equip - Purchase,ADVENTURE KIT UK LIMITED,11/07/2016,719.00,
Commercial Services,Sport & Leisure,LEIC,Supplies & Services,Equipment - Repair,ERIC NEVILLE CATERING SUPPLIES LTD,12/07/2016,136.20,
Commercial Services,Sport & Leisure,CAMA,Supplies & Services,Equipment - Repair,Tarplett Generator services Limited,12/07/2016,486.00,
Commercial Services,Sport & Leisure,CAHH,Supplies & Services,Equipment - Repair,ERIC NEVILLE CATERING SUPPLIES LTD,12/07/2016,168.10,
Commercial Services,Sport & Leisure,LEIR,Supplies & Services,Equipment - Hire,Ezy Lockers,25/07/2016,379.98,
Commercial Services,Sport & Leisure,LEIR,Supplies & Services,Equipment - Hire,Ezy Lockers,25/07/2016,794.28,
Commercial Services,Sport & Leisure,LEAN,Supplies & Services,Equipment - Hire,PARK LANE CENTRE,20/07/2016,132.00,
Commercial Services,Sport & Leisure,LECA,Supplies & Services,Equipment - Hire,SPS LLP,19/07/2016,214.48,
Commercial Services,Sport & Leisure,LEHG,Supplies & Services,Equipment - Hire,REDACTED PERSONAL INFORMATION,18/07/2016,665.00,
Commercial Services,Sport & Leisure,CASS,Supplies & Services,Equipment - Purchase,BIKOLD,15/07/2016,167.66,
Commercial Services,Sport & Leisure,CASS,Supplies & Services,Equipment - Purchase,BIKOLD,15/07/2016,106.81,
Commercial Services,Sport & Leisure,CASS,Supplies & Services,Equipment - Purchase,BIKOLD,15/07/2016,252.63,
Commercial Services,Sport & Leisure,CASS,Supplies & Services,Equipment - Purchase,BIKOLD,15/07/2016,157.02,
Commercial Services,Sport & Leisure,LEAD,Supplies & Services,Chemicals/Cleaning Products,BOC LTD,20/07/2016,207.00,
Commercial Services,Sport & Leisure,CASP,Supplies & Services,Provisions,John Sheppard Catering Butchers,21/07/2016,146.89,
Commercial Services,Sport & Leisure,CASP,Supplies & Services,Provisions,John Sheppard Catering Butchers,21/07/2016,102.30,
Commercial Services,Sport & Leisure,CASS,Supplies & Services,Provisions,John Sheppard Catering Butchers,21/07/2016,154.62,
Commercial Services,Sport & Leisure,COMM,Supplies & Services,Provisions,Adelie Foods Limited (FORMERLY BRAMBLES FOODS LTD),21/07/2016,541.98,
Commercial Services,Sport & Leisure,CASS,Supplies & Services,Provisions,TROPICAL ICE,21/07/2016,135.00,
Commercial Services,Sport & Leisure,CASP,Supplies & Services,Provisions,John Sheppard Catering Butchers,21/07/2016,110.76,
Commercial Services,Sport & Leisure,CASP,Supplies & Services,Provisions,John Sheppard Catering Butchers,21/07/2016,111.69,
Commercial Services,Sport & Leisure,COMM,Supplies & Services,Provisions,Adelie Foods Limited (FORMERLY BRAMBLES FOODS LTD),21/07/2016,456.94,
Commercial Services,Sport & Leisure,CASP,Supplies & Services,Provisions,John Sheppard Catering Butchers,21/07/2016,235.83,
Commercial Services,Sport & Leisure,CASP,Supplies & Services,Provisions,John Sheppard Catering Butchers,21/07/2016,154.98,
Commercial Services,Sport & Leisure,CASP,Supplies & Services,Provisions,John Sheppard Catering Butchers,21/07/2016,162.00,
Commercial Services,Sport & Leisure,CASP,Supplies & Services,Provisions,ROWLANDS & COMPANY,20/07/2016,175.65,
Commercial Services,Sport & Leisure,CASP,Supplies & Services,Provisions,ROWLANDS & COMPANY,20/07/2016,116.44,
Commercial Services,Sport & Leisure,CASP,Supplies & Services,Provisions,ROWLANDS & COMPANY,20/07/2016,111.42,
Commercial Services,Sport & Leisure,CASP,Supplies & Services,Provisions,John Sheppard Catering Butchers,21/07/2016,195.57,
Commercial Services,Sport & Leisure,CASP,Supplies & Services,Provisions,John Sheppard Catering Butchers,21/07/2016,229.17,
Commercial Services,Sport & Leisure,CASP,Supplies & Services,Provisions,ROWLANDS & COMPANY,20/07/2016,259.01,
Commercial Services,Sport & Leisure,CASP,Supplies & Services,Provisions,ROWLANDS & COMPANY,20/07/2016,129.29,
Commercial Services,Sport & Leisure,CASP,Supplies & Services,Provisions,ROWLANDS & COMPANY,20/07/2016,260.07,
Commercial Services,Sport & Leisure,CASP,Supplies & Services,Provisions,ROWLANDS & COMPANY,20/07/2016,126.28,
Commercial Services,Sport & Leisure,CASP,Supplies & Services,Provisions,ROWLANDS & COMPANY,20/07/2016,145.02,
Commercial Services,Sport & Leisure,LEAD,Supplies & Services,Items For Resale,ASA AWARDS,06/07/2016,456.98,
Commercial Services,Sport & Leisure,CASP,Supplies & Services,Provisions,ROWLANDS & COMPANY,20/07/2016,139.03,
Commercial Services,Sport & Leisure,LEIC,Supplies & Services,Provisions,BIKOLD,29/07/2016,172.02,
Commercial Services,Sport & Leisure,CASX,Supplies & Services,Provisions,BIKOLD,22/07/2016,132.98,
Commercial Services,Sport & Leisure,CAHH,Supplies & Services,Provisions,ROWLANDS & COMPANY,26/07/2016,123.7,
Commercial Services,Sport & Leisure,CASS,Supplies & Services,Provisions,SDT ELECTRICAL LTD,25/07/2016,169.31,
Commercial Services,Sport & Leisure,CASS,Supplies & Services,Provisions,THEOS FOOD SERVICE LTD,25/07/2016,122.90,
Commercial Services,Sport & Leisure,COMM,Supplies & Services,Provisions,Adelie Foods Limited (FORMERLY BRAMBLES FOODS LTD),25/07/2016,599.92,
Commercial Services,Sport & Leisure,LEIC,Supplies & Services,Provisions,Delice de France,25/07/2016,277.74,
Commercial Services,Sport & Leisure,COMM,Supplies & Services,Provisions,Adelie Foods Limited (FORMERLY BRAMBLES FOODS LTD),25/07/2016,547.01,
Commercial Services,Sport & Leisure,GTAB,Supplies & Services,Provisions,WOODWARD FOODSERVICE LTD,26/07/2016,987.98,
Commercial Services,Sport & Leisure,GTAB,Supplies & Services,Provisions,ERIC NEVILLE CATERING SUPPLIES LTD,26/07/2016,111.03,
Commercial Services,Sport & Leisure,GTAB,Supplies & Services,Provisions,HENLLAN BREAD (UK) LIMITED,26/07/2016,130.62,
Commercial Services,Sport & Leisure,CASS,Supplies & Services,Provisions,On A Roll,26/07/2016,256.33,
Commercial Services,Sport & Leisure,CASS,Supplies & Services,Provisions,RADNOR HILLS MINERAL WATER COMPANY LTD,26/07/2016,188.7,
Commercial Services,Sport & Leisure,CAHH,Supplies & Services,Provisions,ROWLANDS & COMPANY,26/07/2016,142.48,
Commercial Services,Sport & Leisure,CASN,Supplies & Services,Provisions,BIKOLD,29/07/2016,162.36,
Commercial Services,Sport & Leisure,CASP,Supplies & Services,Provisions,BIKOLD,29/07/2016,298.82,
Commercial Services,Sport & Leisure,CASP,Supplies & Services,Provisions,BIKOLD,29/07/2016,321.44,
Commercial Services,Sport & Leisure,GTAB,Supplies & Services,Provisions,Castell Howell Foods Ltd,26/07/2016,150.32,
Commercial Services,Sport & Leisure,GTAB,Supplies & Services,Provisions,WOODWARD FOODSERVICE LTD,26/07/2016,551.78,
Commercial Services,Sport & Leisure,GTAB,Supplies & Services,Provisions,Castell Howell Foods Ltd,26/07/2016,237.93,
Commercial Services,Sport & Leisure,CASP,Supplies & Services,Provisions,BIKOLD,29/07/2016,161.12,
Commercial Services,Sport & Leisure,CASN,Supplies & Services,Provisions,BIKOLD,29/07/2016,129.72,
Commercial Services,Sport & Leisure,CASP,Supplies & Services,Provisions,BIKOLD,22/07/2016,190.96,
Commercial Services,Sport & Leisure,LEIC,Supplies & Services,Provisions,BIKOLD,29/07/2016,126.05,
Commercial Services,Sport & Leisure,CASN,Supplies & Services,Provisions,BIKOLD,29/07/2016,144.51,
Commercial Services,Sport & Leisure,CAHH,Supplies & Services,Provisions,BIKOLD,29/07/2016,233.58,
Commercial Services,Sport & Leisure,LEIC,Supplies & Services,Provisions,BIKOLD,29/07/2016,178.39,
Commercial Services,Sport & Leisure,CAHH,Supplies & Services,Provisions,BIKOLD,29/07/2016,191.03,
